Workbook

Sheet Main
B10: 2023-12-04
B12: Sheet No. | C12: Template Name | D12: Summary
B13: 1 | C13: Future Intra | D13: For Intraday trading in F&O segment
B14: 2 | C14: Cash Intra | D14: For Intraday trading in cash market segment
B15: 3 | C15: Mid-cap Intra | D15: For Intraday trading in Mid-cap stocks
B16: 4 | C16: Bulk Deals | D16: Reveals Bulk Deals carried on NSE & BSE
B17: 5 | C17: Call Tracker
K27: `

Sheet Future Intra
M5: Back to Main Page
A6: FOR INTRA DAY TRADING | L6: =Main!B10 -> 2023-12-04
A9: Sr.no | B9: Sector | C9: Scrip | D9: Expiry Date | E9: CLOSE RATE | F9: Pivot Point | G9: Supports | J9: Resistances
E10: Point | F10: Point | G10: S1 | H10: S2 | I10: S3 | J10: R1 | K10: R2 | L10: R3 | M10: HIGH | N10: LOW | O10: OI | P10: % Change in OI
A11: 1 | B11: Index | C11: NIFTY | D11: 2023-12-28 | E11: 20375.15 | F11: 20359.35 | G11: 20308.70 | H11: 20242.25 | I11: 20191.60 | J11: 20425.80 | K11: 20476.45 | L11: 20542.90 | M11: 20410 | N11: 20292.9 | O11: 10869750 | P11: 1.44%
A12: 2 | B12: Index | C12: BANKNIFTY | D12: 2023-12-28 | E12: 45071.20 | F12: 44941.38 | G12: 44652.17 | H12: 44233.13 | I12: 43943.92 | J12: 45360.42 | K12: 45649.63 | L12: 46068.67 | M12: 45230.6 | N12: 44522.35 | O12: 2389155 | P12: -8.03%
A13: 3 | B13: Index | C13: FINNIFTY | D13: 2023-12-26 | E13: 20327.20 | F13: 20309.02 | G13: 20248.08 | H13: 20168.97 | I13: 20108.03 | J13: 20388.13 | K13: 20449.07 | L13: 20528.18 | M13: 20369.95 | N13: 20229.9 | O13: 69000 | P13: 1.65%
A14: 4 | B14: Index | C14: MIDCPNIFTY | D14: 2023-12-22 | E14: 9776.20 | F14: 9763.87 | G14: 9727.33 | H14: 9678.47 | I14: 9641.93 | J14: 9812.73 | K14: 9849.27 | L14: 9898.13 | M14: 9800.4 | N14: 9715 | O14: 638925 | P14: 3.93%
A15: 5 | B15: Chemical | C15: AARTIIND | D15: 2023-12-28 | E15: 556.20 | F15: 555.90 | G15: 548.35 | H15: 540.50 | I15: 532.95 | J15: 563.75 | K15: 571.30 | L15: 579.15 | M15: 563.45 | N15: 548.05 | O15: 13238000 | P15: -3.34%
A16: 6 | B16: Capital_Goods | C16: ABB | D16: 2023-12-28 | E16: 4420.20 | F16: 4435.37 | G16: 4392.18 | H16: 4364.17 | I16: 4320.98 | J16: 4463.38 | K16: 4506.57 | L16: 4534.58 | M16: 4478.55 | N16: 4407.35 | O16: 1113500 | P16: -1.97%
A17: 7 | B17: Pharma | C17: ABBOTINDIA | D17: 2023-12-28 | E17: 23863.25 | F17: 23915.12 | G17: 23749.28 | H17: 23635.32 | I17: 23469.48 | J17: 24029.08 | K17: 24194.92 | L17: 24308.88 | M17: 24080.95 | N17: 23801.15 | O17: 72080 | P17: 1.07%
A18: 8 | B18: Others | C18: ABCAPITAL | D18: 2023-12-28 | E18: 170.90 | F18: 171.60 | G18: 169.70 | H18: 168.50 | I18: 166.60 | J18: 172.80 | K18: 174.70 | L18: 175.90 | M18: 173.5 | N18: 170.4 | O18: 64044000 | P18: 4.28%
A19: 9 | B19: Textile | C19: ABFRL | D19: 2023-12-28 | E19: 232.80 | F19: 234.43 | G19: 230.47 | H19: 228.13 | I19: 224.17 | J19: 236.77 | K19: 240.73 | L19: 243.07 | M19: 238.4 | N19: 232.1 | O19: 27476800 | P19: -1.15%
A20: 10 | B20: Cement | C20: ACC | D20: 2023-12-28 | E20: 1909.75 | F20: 1910.40 | G20: 1896.80 | H20: 1883.85 | I20: 1870.25 | J20: 1923.35 | K20: 1936.95 | L20: 1949.90 | M20: 1924 | N20: 1897.45 | O20: 5146800 | P20: -0.16%
A21: 11 | B21: Others | C21: ADANIENT | D21: 2023-12-28 | E21: 2377.90 | F21: 2387.98 | G21: 2357.97 | H21: 2338.03 | I21: 2308.02 | J21: 2407.92 | K21: 2437.93 | L21: 2457.87 | M21: 2418 | N21: 2368.05 | O21: 11526900 | P21: 0.84%
A22: 12 | B22: Others | C22: ADANIPORTS | D22: 2023-12-28 | E22: 834.15 | F22: 835.75 | G22: 829.10 | H22: 824.05 | I22: 817.40 | J22: 840.80 | K22: 847.45 | L22: 852.50 | M22: 842.4 | N22: 830.7 | O22: 53420800 | P22: 0.79%
A23: 13 | B23: Pharma | C23: ALKEM | D23: 2023-12-28 | E23: 4662.35 | F23: 4678.47 | G23: 4630.88 | H23: 4599.42 | I23: 4551.83 | J23: 4709.93 | K23: 4757.52 | L23: 4788.98 | M23: 4726.05 | N23: 4647 | O23: 634400 | P23: -5.03%
A24: 14 | B24: Cement | C24: AMBUJACEM | D24: 2023-12-28 | E24: 444.10 | F24: 443.42 | G24: 440.68 | H24: 437.27 | I24: 434.53 | J24: 446.83 | K24: 449.57 | L24: 452.98 | M24: 446.15 | N24: 440 | O24: 55702800 | P24: -0.73%
A25: 15 | B25: Others | C25: APOLLOHOSP | D25: 2023-12-28 | E25: 5615.80 | F25: 5625.45 | G25: 5545.35 | H25: 5474.90 | I25: 5394.80 | J25: 5695.90 | K25: 5776.00 | L25: 5846.45 | M25: 5705.55 | N25: 5555 | O25: 1927875 | P25: -6.35%
A26: 16 | B26: Automobile | C26: APOLLOTYRE | D26: 2023-12-28 | E26: 444.65 | F26: 442.02 | G26: 435.58 | H26: 426.52 | I26: 420.08 | J26: 451.08 | K26: 457.52 | L26: 466.58 | M26: 448.45 | N26: 432.95 | O26: 11738500 | P26: 4.23%
A27: 17 | B27: Automobile | C27: ASHOKLEY | D27: 2023-12-28 | E27: 176.55 | F27: 178.70 | G27: 173.15 | H27: 169.75 | I27: 164.20 | J27: 182.10 | K27: 187.65 | L27: 191.05 | M27: 184.25 | N27: 175.3 | O27: 80755000 | P27: 15.81%
A28: 18 | B28: FMCG | C28: ASIANPAINT | D28: 2023-12-28 | E28: 3194.00 | F28: 3189.32 | G28: 3164.63 | H28: 3135.27 | I28: 3110.58 | J28: 3218.68 | K28: 3243.37 | L28: 3272.73 | M28: 3214 | N28: 3159.95 | O28: 5150800 | P28: 3.09%
A29: 19 | B29: Others | C29: ASTRAL | D29: 2023-12-28 | E29: 1993.40 | F29: 1982.20 | G29: 1964.40 | H29: 1935.40 | I29: 1917.60 | J29: 2011.20 | K29: 2029.00 | L29: 2058.00 | M29: 2000 | N29: 1953.2 | O29: 2991050 | P29: -1.80%
A30: 20 | B30: Others | C30: ATUL | D30: 2023-12-28 | E30: 6694.45 | F30: 6685.20 | G30: 6652.40 | H30: 6610.35 | I30: 6577.55 | J30: 6727.25 | K30: 6760.05 | L30: 6802.10 | M30: 6718 | N30: 6643.15 | O30: 230250 | P30: 0.62%
A31: 21 | B31: Banking | C31: AUBANK | D31: 2023-12-28 | E31: 744.10 | F31: 745.75 | G31: 740.60 | H31: 737.10 | I31: 731.95 | J31: 749.25 | K31: 754.40 | L31: 757.90 | M31: 750.9 | N31: 742.25 | O31: 12867000 | P31: -1.77%
A32: 22 | B32: Pharma | C32: AUROPHARMA | D32: 2023-12-28 | E32: 1041.95 | F32: 1049.13 | G32: 1033.27 | H32: 1024.58 | I32: 1008.72 | J32: 1057.82 | K32: 1073.68 | L32: 1082.37 | M32: 1065 | N32: 1040.45 | O32: 19812100 | P32: 0.83%
A33: 23 | B33: Banking | C33: AXISBANK | D33: 2023-12-28 | E33: 1106.70 | F33: 1097.40 | G33: 1084.80 | H33: 1062.90 | I33: 1050.30 | J33: 1119.30 | K33: 1131.90 | L33: 1153.80 | M33: 1110 | N33: 1075.5 | O33: 46680000 | P33: -2.14%
A34: 24 | B34: Automobile | C34: BAJAJ-AUTO | D34: 2023-12-28 | E34: 6075.15 | F34: 6083.20 | G34: 6036.95 | H34: 5998.75 | I34: 5952.50 | J34: 6121.40 | K34: 6167.65 | L34: 6205.85 | M34: 6129.45 | N34: 6045 | O34: 2477000 | P34: 1.59%
A35: 25 | B35: Finance | C35: BAJAJFINSV | D35: 2023-12-28 | E35: 1693.55 | F35: 1690.80 | G35: 1682.75 | H35: 1671.95 | I35: 1663.90 | J35: 1701.60 | K35: 1709.65 | L35: 1720.45 | M35: 1698.85 | N35: 1680 | O35: 8210500 | P35: -0.43%
A36: 26 | B36: Finance | C36: BAJFINANCE | D36: 2023-12-28 | E36: 7303.15 | F36: 7275.12 | G36: 7214.98 | H36: 7126.82 | I36: 7066.68 | J36: 7363.28 | K36: 7423.42 | L36: 7511.58 | M36: 7335.25 | N36: 7186.95 | O36: 7000125 | P36: -1.28%
A37: 27 | B37: Automobile | C37: BALKRISIND | D37: 2023-12-28 | E37: 2579.40 | F37: 2586.78 | G37: 2558.72 | H37: 2538.03 | I37: 2509.97 | J37: 2607.47 | K37: 2635.53 | L37: 2656.22 | M37: 2614.85 | N37: 2566.1 | O37: 1630800 | P37: 1.78%
A38: 28 | B38: Others | C38: BALRAMCHIN | D38: 2023-12-28 | E38: 474.75 | F38: 475.82 | G38: 471.78 | H38: 468.82 | I38: 464.78 | J38: 478.78 | K38: 482.82 | L38: 485.78 | M38: 479.85 | N38: 472.85 | O38: 8955200 | P38: -0.50%
A39: 29 | B39: Banking | C39: BANDHANBNK | D39: 2023-12-28 | E39: 227.50 | F39: 228.63 | G39: 225.72 | H39: 223.93 | I39: 221.02 | J39: 230.42 | K39: 233.33 | L39: 235.12 | M39: 231.55 | N39: 226.85 | O39: 77920000 | P39: 1.72%
A40: 30 | B40: Banking | C40: BANKBARODA | D40: 2023-12-28 | E40: 203.30 | F40: 202.70 | G40: 200.10 | H40: 196.90 | I40: 194.30 | J40: 205.90 | K40: 208.50 | L40: 211.70 | M40: 205.3 | N40: 199.5 | O40: 123160050 | P40: -4.86%
A41: 31 | B41: FMCG | C41: BATAINDIA | D41: 2023-12-28 | E41: 1615.50 | F41: 1619.50 | G41: 1609.00 | H41: 1602.50 | I41: 1592.00 | J41: 1626.00 | K41: 1636.50 | L41: 1643.00 | M41: 1630 | N41: 1613 | O41: 1834875 | P41: 0.82%
A42: 32 | B42: Capital_Goods | C42: BEL | D42: 2023-12-28 | E42: 148.55 | F42: 148.93 | G42: 146.62 | H42: 144.68 | I42: 142.37 | J42: 150.87 | K42: 153.18 | L42: 155.12 | M42: 151.25 | N42: 147 | O42: 74419200 | P42: 0.54%
A43: 33 | B43: FMCG | C43: BERGEPAINT | D43: 2023-12-28 | E43: 583.90 | F43: 584.58 | G43: 576.82 | H43: 569.73 | I43: 561.97 | J43: 591.67 | K43: 599.43 | L43: 606.52 | M43: 592.35 | N43: 577.5 | O43: 8119320 | P43: 6.33%
A44: 34 | B44: Automobile | C44: BHARATFORG | D44: 2023-12-28 | E44: 1162.50 | F44: 1154.87 | G44: 1137.73 | H44: 1112.97 | I44: 1095.83 | J44: 1179.63 | K44: 1196.77 | L44: 1221.53 | M44: 1172 | N44: 1130.1 | O44: 6818000 | P44: 2.00%
A45: 35 | B45: Telecom | C45: BHARTIARTL | D45: 2023-12-28 | E45: 1016.90 | F45: 1018.30 | G45: 1009.30 | H45: 1001.70 | I45: 992.70 | J45: 1025.90 | K45: 1034.90 | L45: 1042.50 | M45: 1027.3 | N45: 1010.7 | O45: 29955400 | P45: -1.57%
A46: 36 | B46: Capital_Goods | C46: BHEL | D46: 2023-12-28 | E46: 171.85 | F46: 172.68 | G46: 169.82 | H46: 167.78 | I46: 164.92 | J46: 174.72 | K46: 177.58 | L46: 179.62 | M46: 175.55 | N46: 170.65 | O46: 99461250 | P46: 3.74%
A47: 37 | B47: Pharma | C47: BIOCON | D47: 2023-12-28 | E47: 241.75 | F47: 242.93 | G47: 239.97 | H47: 238.18 | I47: 235.22 | J47: 244.72 | K47: 247.68 | L47: 249.47 | M47: 245.9 | N47: 241.15 | O47: 34542500 | P47: 0.58%
A48: 38 | B48: Automobile | C48: BOSCHLTD | D48: 2023-12-28 | E48: 21982.90 | F48: 21893.13 | G48: 21669.77 | H48: 21356.63 | I48: 21133.27 | J48: 22206.27 | K48: 22429.63 | L48: 22742.77 | M48: 22116.5 | N48: 21580 | O48: 139050 | P48: 6.06%
A49: 39 | B49: Oil_Gas | C49: BPCL | D49: 2023-12-28 | E49: 440.15 | F49: 439.88 | G49: 435.52 | H49: 430.88 | I49: 426.52 | J49: 444.52 | K49: 448.88 | L49: 453.52 | M49: 444.25 | N49: 435.25 | O49: 28470600 | P49: 3.39%
A50: 40 | B50: FMCG | C50: BRITANNIA | D50: 2023-12-28 | E50: 4984.35 | F50: 4957.07 | G50: 4912.18 | H50: 4840.02 | I50: 4795.13 | J50: 5029.23 | K50: 5074.12 | L50: 5146.28 | M50: 5001.95 | N50: 4884.9 | O50: 1902200 | P50: -1.04%
A51: 41 | B51: Technology | C51: BSOFT | D51: 2023-12-28 | E51: 639.30 | F51: 639.80 | G51: 632.65 | H51: 626.00 | I51: 618.85 | J51: 646.45 | K51: 653.60 | L51: 660.25 | M51: 646.95 | N51: 633.15 | O51: 5344000 | P51: -4.18%
A52: 42 | B52: Banking | C52: CANBK | D52: 2023-12-28 | E52: 413.50 | F52: 414.03 | G52: 405.47 | H52: 397.43 | I52: 388.87 | J52: 422.07 | K52: 430.63 | L52: 438.67 | M52: 422.6 | N52: 406 | O52: 48481200 | P52: 5.65%
A53: 43 | B53: Finance | C53: CANFINHOME | D53: 2023-12-28 | E53: 819.45 | F53: 808.95 | G53: 794.55 | H53: 769.65 | I53: 755.25 | J53: 833.85 | K53: 848.25 | L53: 873.15 | M53: 823.35 | N53: 784.05 | O53: 4702425 | P53: 21.09%
A54: 44 | B54: Others | C54: CHAMBLFERT | D54: 2023-12-28 | E54: 322.70 | F54: 322.80 | G54: 318.80 | H54: 314.90 | I54: 310.90 | J54: 326.70 | K54: 330.70 | L54: 334.60 | M54: 326.8 | N54: 318.9 | O54: 12559000 | P54: 4.34%
A55: 45 | B55: Finance | C55: CHOLAFIN | D55: 2023-12-28 | E55: 1136.05 | F55: 1136.57 | G55: 1127.83 | H55: 1119.62 | I55: 1110.88 | J55: 1144.78 | K55: 1153.52 | L55: 1161.73 | M55: 1145.3 | N55: 1128.35 | O55: 12548750 | P55: 0.95%
A56: 46 | B56: Pharma | C56: CIPLA | D56: 2023-12-28 | E56: 1210.90 | F56: 1214.05 | G56: 1205.90 | H56: 1200.90 | I56: 1192.75 | J56: 1219.05 | K56: 1227.20 | L56: 1232.20 | M56: 1222.2 | N56: 1209.05 | O56: 11155300 | P56: 0.12%
A57: 47 | B57: Others | C57: COALINDIA | D57: 2023-12-28 | E57: 348.35 | F57: 348.85 | G57: 343.80 | H57: 339.25 | I57: 334.20 | J57: 353.40 | K57: 358.45 | L57: 363.00 | M57: 353.9 | N57: 344.3 | O57: 55797000 | P57: 2.49%
A58: 48 | B58: Technology | C58: COFORGE | D58: 2023-12-28 | E58: 5744.90 | F58: 5765.02 | G58: 5706.98 | H58: 5669.07 | I58: 5611.03 | J58: 5802.93 | K58: 5860.97 | L58: 5898.88 | M58: 5823.05 | N58: 5727.1 | O58: 1117650 | P58: 0.87%
A59: 49 | B59: FMCG | C59: COLPAL | D59: 2023-12-28 | E59: 2267.95 | F59: 2244.22 | G59: 2213.53 | H59: 2159.12 | I59: 2128.43 | J59: 2298.63 | K59: 2329.32 | L59: 2383.73 | M59: 2274.9 | N59: 2189.8 | O59: 4154150 | P59: 4.99%
A60: 50 | B60: Others | C60: CONCOR | D60: 2023-12-28 | E60: 788.05 | F60: 784.95 | G60: 778.20 | H60: 768.35 | I60: 761.60 | J60: 794.80 | K60: 801.55 | L60: 811.40 | M60: 791.7 | N60: 775.1 | O60: 5474000 | P60: 0.59%
A61: 51 | B61: Others | C61: COROMANDEL | D61: 2023-12-28 | E61: 1170.10 | F61: 1169.33 | G61: 1159.42 | H61: 1148.73 | I61: 1138.82 | J61: 1180.02 | K61: 1189.93 | L61: 1200.62 | M61: 1179.25 | N61: 1158.65 | O61: 969500 | P61: -0.43%
A62: 52 | B62: Capital_Goods | C62: CROMPTON | D62: 2023-12-28 | E62: 291.55 | F62: 290.28 | G62: 288.37 | H62: 285.18 | I62: 283.27 | J62: 293.47 | K62: 295.38 | L62: 298.57 | M62: 292.2 | N62: 287.1 | O62: 11984400 | P62: 0.12%
A63: 53 | B63: Banking | C63: CUB | D63: 2023-12-28 | E63: 149.60 | F63: 149.97 | G63: 148.23 | H63: 146.87 | I63: 145.13 | J63: 151.33 | K63: 153.07 | L63: 154.43 | M63: 151.7 | N63: 148.6 | O63: 28895000 | P63: 0.93%
A64: 54 | B64: Capital_Goods | C64: CUMMINSIND | D64: 2023-12-28 | E64: 1927.00 | F64: 1921.28 | G64: 1911.57 | H64: 1896.13 | I64: 1886.42 | J64: 1936.72 | K64: 1946.43 | L64: 1961.87 | M64: 1931 | N64: 1905.85 | O64: 3677700 | P64: -0.65%
A65: 55 | B65: FMCG | C65: DABUR | D65: 2023-12-28 | E65: 543.55 | F65: 543.85 | G65: 540.05 | H65: 536.55 | I65: 532.75 | J65: 547.35 | K65: 551.15 | L65: 554.65 | M65: 547.65 | N65: 540.35 | O65: 19232500 | P65: -1.19%
A66: 56 | B66: Cement | C66: DALBHARAT | D66: 2023-12-28 | E66: 2277.50 | F66: 2265.85 | G66: 2245.15 | H66: 2212.80 | I66: 2192.10 | J66: 2298.20 | K66: 2318.90 | L66: 2351.25 | M66: 2286.55 | N66: 2233.5 | O66: 2454000 | P66: -2.86%
A67: 57 | B67: Chemical | C67: DEEPAKNTR | D67: 2023-12-28 | E67: 2231.60 | F67: 2228.23 | G67: 2211.37 | H67: 2191.13 | I67: 2174.27 | J67: 2248.47 | K67: 2265.33 | L67: 2285.57 | M67: 2245.1 | N67: 2208 | O67: 2215500 | P67: -0.57%
A68: 58 | B68: Others | C68: DELTACORP | D68: 2023-12-28 | E68: 146.75 | F68: 148.87 | G68: 142.88 | H68: 139.02 | I68: 133.03 | J68: 152.73 | K68: 158.72 | L68: 162.58 | M68: 154.85 | N68: 145 | O68: 21487000 | P68: 35.52%
A69: 59 | B69: Pharma | C69: DIVISLAB | D69: 2023-12-28 | E69: 3815.70 | F69: 3818.72 | G69: 3790.63 | H69: 3765.57 | I69: 3737.48 | J69: 3843.78 | K69: 3871.87 | L69: 3896.93 | M69: 3846.8 | N69: 3793.65 | O69: 2528000 | P69: -0.27%
A70: 60 | B70: Others | C70: DIXON | D70: 2023-12-28 | E70: 5989.20 | F70: 5874.07 | G70: 5668.13 | H70: 5347.07 | I70: 5141.13 | J70: 6195.13 | K70: 6401.07 | L70: 6722.13 | M70: 6080 | N70: 5553 | O70: 1410600 | P70: 12.09%
A71: 61 | B71: Realty | C71: DLF | D71: 2023-12-28 | E71: 633.85 | F71: 634.10 | G71: 629.75 | H71: 625.65 | I71: 621.30 | J71: 638.20 | K71: 642.55 | L71: 646.65 | M71: 638.45 | N71: 630 | O71: 42136050 | P71: 1.97%
A72: 62 | B72: Pharma | C72: DRREDDY | D72: 2023-12-28 | E72: 5793.25 | F72: 5824.50 | G72: 5753.75 | H72: 5714.25 | I72: 5643.50 | J72: 5864.00 | K72: 5934.75 | L72: 5974.25 | M72: 5895.25 | N72: 5785 | O72: 3004500 | P72: 1.80%
A73: 63 | B73: Automobile | C73: EICHERMOT | D73: 2023-12-28 | E73: 3905.85 | F73: 3923.18 | G73: 3879.72 | H73: 3853.58 | I73: 3810.12 | J73: 3949.32 | K73: 3992.78 | L73: 4018.92 | M73: 3966.65 | N73: 3897.05 | O73: 3026275 | P73: -3.19%
A74: 64 | B74: Automobile | C74: ESCORTS | D74: 2023-12-28 | E74: 3230.10 | F74: 3226.13 | G74: 3173.27 | H74: 3116.43 | I74: 3063.57 | J74: 3282.97 | K74: 3335.83 | L74: 3392.67 | M74: 3279 | N74: 3169.3 | O74: 2120525 | P74: 5.11%
A75: 65 | B75: Automobile | C75: EXIDEIND | D75: 2023-12-28 | E75: 293.85 | F75: 293.77 | G75: 288.13 | H75: 282.42 | I75: 276.78 | J75: 299.48 | K75: 305.12 | L75: 310.83 | M75: 299.4 | N75: 288.05 | O75: 17305200 | P75: 7.68%
A76: 66 | B76: Banking | C76: FEDERALBNK | D76: 2023-12-28 | E76: 149.90 | F76: 149.97 | G76: 148.78 | H76: 147.67 | I76: 146.48 | J76: 151.08 | K76: 152.27 | L76: 153.38 | M76: 151.15 | N76: 148.85 | O76: 96900000 | P76: -2.52%
A77: 67 | B77: Oil_Gas | C77: GAIL | D77: 2023-12-28 | E77: 136.95 | F77: 136.15 | G77: 133.95 | H77: 130.95 | I77: 128.75 | J77: 139.15 | K77: 141.35 | L77: 144.35 | M77: 138.35 | N77: 133.15 | O77: 168373725 | P77: 1.26%
A78: 68 | B78: Pharma | C78: GLENMARK | D78: 2023-12-28 | E78: 798.50 | F78: 796.50 | G78: 788.00 | H78: 777.50 | I78: 769.00 | J78: 807.00 | K78: 815.50 | L78: 826.00 | M78: 805 | N78: 786 | O78: 10798150 | P78: -0.90%
A79: 69 | B79: Infrastructure | C79: GMRINFRA | D79: 2023-12-28 | E79: 61.35 | F79: 61.18 | G79: 60.52 | H79: 59.68 | I79: 59.02 | J79: 62.02 | K79: 62.68 | L79: 63.52 | M79: 61.85 | N79: 60.35 | O79: 124481250 | P79: 0.26%
A80: 70 | B80: Others | C80: GNFC | D80: 2023-12-28 | E80: 708.45 | F80: 705.23 | G80: 696.47 | H80: 684.48 | I80: 675.72 | J80: 717.22 | K80: 725.98 | L80: 737.97 | M80: 714 | N80: 693.25 | O80: 7991100 | P80: 1.81%
A81: 71 | B81: FMCG | C81: GODREJCP | D81: 2023-12-28 | E81: 1031.65 | F81: 1027.63 | G81: 1019.07 | H81: 1006.48 | I81: 997.92 | J81: 1040.22 | K81: 1048.78 | L81: 1061.37 | M81: 1036.2 | N81: 1015.05 | O81: 8777500 | P81: 2.76%
A82: 72 | B82: Realty | C82: GODREJPROP | D82: 2023-12-28 | E82: 1880.20 | F82: 1883.90 | G82: 1859.80 | H82: 1839.40 | I82: 1815.30 | J82: 1904.30 | K82: 1928.40 | L82: 1948.80 | M82: 1908 | N82: 1863.5 | O82: 3516900 | P82: 2.66%
A83: 73 | B83: Pharma | C83: GRANULES | D83: 2023-12-28 | E83: 396.05 | F83: 399.27 | G83: 391.13 | H83: 386.22 | I83: 378.08 | J83: 404.18 | K83: 412.32 | L83: 417.23 | M83: 407.4 | N83: 394.35 | O83: 9892000 | P83: 1.83%
A84: 74 | B84: Cement | C84: GRASIM | D84: 2023-12-28 | E84: 2024.75 | F84: 2032.93 | G84: 2011.87 | H84: 1998.98 | I84: 1977.92 | J84: 2045.82 | K84: 2066.88 | L84: 2079.77 | M84: 2054 | N84: 2020.05 | O84: 10052900 | P84: -2.99%
A85: 75 | B85: Oil_Gas | C85: GUJGASLTD | D85: 2023-12-28 | E85: 437.40 | F85: 437.02 | G85: 431.53 | H85: 425.67 | I85: 420.18 | J85: 442.88 | K85: 448.37 | L85: 454.23 | M85: 442.5 | N85: 431.15 | O85: 6930000 | P85: -1.23%
A86: 76 | B86: Others | C86: HAL | D86: 2023-12-28 | E86: 2478.55 | F86: 2474.97 | G86: 2445.08 | H86: 2411.62 | I86: 2381.73 | J86: 2508.43 | K86: 2538.32 | L86: 2571.78 | M86: 2504.85 | N86: 2441.5 | O86: 6352200 | P86: -6.51%
A87: 77 | B87: Capital_Goods | C87: HAVELLS | D87: 2023-12-28 | E87: 1320.35 | F87: 1319.92 | G87: 1312.93 | H87: 1305.52 | I87: 1298.53 | J87: 1327.33 | K87: 1334.32 | L87: 1341.73 | M87: 1326.9 | N87: 1312.5 | O87: 5945000 | P87: 0.28%
A88: 78 | B88: Technology | C88: HCLTECH | D88: 2023-12-28 | E88: 1345.00 | F88: 1345.53 | G88: 1337.77 | H88: 1330.53 | I88: 1322.77 | J88: 1352.77 | K88: 1360.53 | L88: 1367.77 | M88: 1353.3 | N88: 1338.3 | O88: 12173700 | P88: 1.77%
A89: 79 | B89: Finance | C89: HDFCAMC | D89: 2023-12-28 | E89: 2939.90 | F89: 2955.15 | G89: 2915.30 | H89: 2890.70 | I89: 2850.85 | J89: 2979.75 | K89: 3019.60 | L89: 3044.20 | M89: 2995 | N89: 2930.55 | O89: 2471100 | P89: -0.96%
A90: 80 | B90: Banking | C90: HDFCBANK | D90: 2023-12-28 | E90: 1562.45 | F90: 1564.85 | G90: 1556.70 | H90: 1550.95 | I90: 1542.80 | J90: 1570.60 | K90: 1578.75 | L90: 1584.50 | M90: 1573 | N90: 1559.1 | O90: 146932500 | P90: -4.52%
A91: 81 | B91: Finance | C91: HDFCLIFE | D91: 2023-12-28 | E91: 685.35 | F91: 689.05 | G91: 680.65 | H91: 675.95 | I91: 667.55 | J91: 693.75 | K91: 702.15 | L91: 706.85 | M91: 697.45 | N91: 684.35 | O91: 15030400 | P91: 0.15%
A92: 82 | B92: Automobile | C92: HEROMOTOCO | D92: 2023-12-28 | E92: 3759.80 | F92: 3797.25 | G92: 3709.40 | H92: 3659.00 | I92: 3571.15 | J92: 3847.65 | K92: 3935.50 | L92: 3985.90 | M92: 3885.1 | N92: 3746.85 | O92: 3784500 | P92: 9.97%
A93: 83 | B93: Metals | C93: HINDALCO | D93: 2023-12-28 | E93: 521.30 | F93: 522.83 | G93: 516.87 | H93: 512.43 | I93: 506.47 | J93: 527.27 | K93: 533.23 | L93: 537.67 | M93: 528.8 | N93: 518.4 | O93: 37112600 | P93: 5.98%
A94: 84 | B94: Metals | C94: HINDCOPPER | D94: 2023-12-28 | E94: 177.00 | F94: 177.72 | G94: 174.43 | H94: 171.87 | I94: 168.58 | J94: 180.28 | K94: 183.57 | L94: 186.13 | M94: 181 | N94: 175.15 | O94: 35467600 | P94: 16.87%
A95: 85 | B95: Oil_Gas | C95: HINDPETRO | D95: 2023-12-28 | E95: 347.45 | F95: 350.15 | G95: 342.30 | H95: 337.15 | I95: 329.30 | J95: 355.30 | K95: 363.15 | L95: 368.30 | M95: 358 | N95: 345 | O95: 40840200 | P95: -0.15%
A96: 86 | B96: FMCG | C96: HINDUNILVR | D96: 2023-12-28 | E96: 2580.95 | F96: 2577.87 | G96: 2558.73 | H96: 2536.52 | I96: 2517.38 | J96: 2600.08 | K96: 2619.22 | L96: 2641.43 | M96: 2597 | N96: 2555.65 | O96: 8989800 | P96: 1.99%
A97: 87 | B97: Finance | C97: IBULHSGFIN | D97: 2023-12-28 | E97: 204.80 | F97: 208.02 | G97: 199.43 | H97: 194.07 | I97: 185.48 | J97: 213.38 | K97: 221.97 | L97: 227.33 | M97: 216.6 | N97: 202.65 | O97: 63474600 | P97: 6.74%
A98: 88 | B98: Banking | C98: ICICIBANK | D98: 2023-12-28 | E98: 952.75 | F98: 949.32 | G98: 941.33 | H98: 929.92 | I98: 921.93 | J98: 960.73 | K98: 968.72 | L98: 980.13 | M98: 957.3 | N98: 937.9 | O98: 95675300 | P98: -4.63%
A99: 89 | B99: Finance | C99: ICICIGI | D99: 2023-12-28 | E99: 1467.55 | F99: 1475.12 | G99: 1453.43 | H99: 1439.32 | I99: 1417.63 | J99: 1489.23 | K99: 1510.92 | L99: 1525.03 | M99: 1496.8 | N99: 1461 | O99: 2682500 | P99: 3.57%
A100: 90 | B100: Finance | C100: ICICIPRULI | D100: 2023-12-28 | E100: 561.50 | F100: 563.70 | G100: 555.80 | H100: 550.10 | I100: 542.20 | J100: 569.40 | K100: 577.30 | L100: 583.00 | M100: 571.6 | N100: 558 | O100: 9963000 | P100: 2.25%
A101: 91 | B101: Telecom | C101: IDEA | D101: 2023-12-28 | E101: 13.35 | F101: 13.43 | G101: 13.22 | H101: 13.08 | I101: 12.87 | J101: 13.57 | K101: 13.78 | L101: 13.92 | M101: 13.65 | N101: 13.3 | O101: 1694400000 | P101: 1.18%
A102: 92 | B102: Finance | C102: IDFC | D102: 2023-12-28 | E102: 119.90 | F102: 120.03 | G102: 119.27 | H102: 118.63 | I102: 117.87 | J102: 120.67 | K102: 121.43 | L102: 122.07 | M102: 120.8 | N102: 119.4 | O102: 71735000 | P102: 0.57%
A103: 93 | B103: Banking | C103: IDFCFIRSTB | D103: 2023-12-28 | E103: 85.55 | F103: 85.40 | G103: 84.95 | H103: 84.35 | I103: 83.90 | J103: 86.00 | K103: 86.45 | L103: 87.05 | M103: 85.85 | N103: 84.8 | O103: 263805000 | P103: -1.90%
A104: 94 | B104: Others | C104: IEX | D104: 2023-12-28 | E104: 143.85 | F104: 144.57 | G104: 142.78 | H104: 141.72 | I104: 139.93 | J104: 145.63 | K104: 147.42 | L104: 148.48 | M104: 146.35 | N104: 143.5 | O104: 59587500 | P104: 1.73%
A105: 95 | B105: Oil_Gas | C105: IGL | D105: 2023-12-28 | E105: 396.70 | F105: 397.37 | G105: 390.83 | H105: 384.97 | I105: 378.43 | J105: 403.23 | K105: 409.77 | L105: 415.63 | M105: 403.9 | N105: 391.5 | O105: 15987125 | P105: 4.26%
A106: 96 | B106: Infrastructure | C106: INDHOTEL | D106: 2023-12-28 | E106: 429.70 | F106: 429.47 | G106: 425.48 | H106: 421.27 | I106: 417.28 | J106: 433.68 | K106: 437.67 | L106: 441.88 | M106: 433.45 | N106: 425.25 | O106: 17832000 | P106: 0.43%
A107: 97 | B107: Cement | C107: INDIACEM | D107: 2023-12-28 | E107: 254.85 | F107: 254.90 | G107: 250.20 | H107: 245.55 | I107: 240.85 | J107: 259.55 | K107: 264.25 | L107: 268.90 | M107: 259.6 | N107: 250.25 | O107: 25401100 | P107: 5.80%
A108: 98 | B108: Others | C108: INDIAMART | D108: 2023-12-28 | E108: 2615.95 | F108: 2621.75 | G108: 2600.55 | H108: 2585.15 | I108: 2563.95 | J108: 2637.15 | K108: 2658.35 | L108: 2673.75 | M108: 2642.95 | N108: 2606.35 | O108: 960300 | P108: 6.91%
A109: 99 | B109: Others | C109: INDIGO | D109: 2023-12-28 | E109: 2757.30 | F109: 2752.27 | G109: 2729.68 | H109: 2702.07 | I109: 2679.48 | J109: 2779.88 | K109: 2802.47 | L109: 2830.08 | M109: 2774.85 | N109: 2724.65 | O109: 6274200 | P109: 0.22%
A110: 100 | B110: Banking | C110: INDUSINDBK | D110: 2023-12-28 | E110: 1472.60 | F110: 1482.27 | G110: 1460.73 | H110: 1448.87 | I110: 1427.33 | J110: 1494.13 | K110: 1515.67 | L110: 1527.53 | M110: 1503.8 | N110: 1470.4 | O110: 22023500 | P110: -4.04%
A111: 101 | B111: Telecom | C111: INDUSTOWER | D111: 2023-12-28 | E111: 188.60 | F111: 188.17 | G111: 186.13 | H111: 183.67 | I111: 181.63 | J111: 190.63 | K111: 192.67 | L111: 195.13 | M111: 190.2 | N111: 185.7 | O111: 67911600 | P111: 1.15%
A112: 102 | B112: Technology | C112: INFY | D112: 2023-12-28 | E112: 1461.00 | F112: 1462.23 | G112: 1453.77 | H112: 1446.53 | I112: 1438.07 | J112: 1469.47 | K112: 1477.93 | L112: 1485.17 | M112: 1470.7 | N112: 1455 | O112: 25334400 | P112: -0.10%
A113: 103 | B113: Oil_Gas | C113: IOC | D113: 2023-12-28 | E113: 112.00 | F113: 112.60 | G113: 110.60 | H113: 109.20 | I113: 107.20 | J113: 114.00 | K113: 116.00 | L113: 117.40 | M113: 114.6 | N113: 111.2 | O113: 136383000 | P113: 0.63%
A114: 104 | B114: Pharma | C114: IPCALAB | D114: 2023-12-28 | E114: 1131.05 | F114: 1127.62 | G114: 1116.73 | H114: 1102.42 | I114: 1091.53 | J114: 1141.93 | K114: 1152.82 | L114: 1167.13 | M114: 1138.5 | N114: 1113.3 | O114: 1937650 | P114: 3.22%
A115: 105 | B115: Others | C115: IRCTC | D115: 2023-12-28 | E115: 706.40 | F115: 710.32 | G115: 701.63 | H115: 696.87 | I115: 688.18 | J115: 715.08 | K115: 723.77 | L115: 728.53 | M115: 719 | N115: 705.55 | O115: 12915000 | P115: 1.60%
A116: 106 | B116: FMCG | C116: ITC | D116: 2023-12-28 | E116: 453.20 | F116: 449.25 | G116: 444.10 | H116: 435.00 | I116: 429.85 | J116: 458.35 | K116: 463.50 | L116: 472.60 | M116: 454.4 | N116: 440.15 | O116: 66560000 | P116: 4.78%
A117: 107 | B117: Metals | C117: JINDALSTEL | D117: 2023-12-28 | E117: 694.50 | F117: 689.22 | G117: 680.33 | H117: 666.17 | I117: 657.28 | J117: 703.38 | K117: 712.27 | L117: 726.43 | M117: 698.1 | N117: 675.05 | O117: 24522500 | P117: -1.45%
A118: 108 | B118: Cement | C118: JKCEMENT | D118: 2023-12-28 | E118: 3671.95 | F118: 3662.57 | G118: 3633.23 | H118: 3594.52 | I118: 3565.18 | J118: 3701.28 | K118: 3730.62 | L118: 3769.33 | M118: 3691.9 | N118: 3623.85 | O118: 566750 | P118: -1.56%
A119: 109 | B119: Metals | C119: JSWSTEEL | D119: 2023-12-28 | E119: 816.55 | F119: 812.85 | G119: 805.20 | H119: 793.85 | I119: 786.20 | J119: 824.20 | K119: 831.85 | L119: 843.20 | M119: 820.5 | N119: 801.5 | O119: 15319800 | P119: -1.12%
A120: 110 | B120: Others | C120: JUBLFOOD | D120: 2023-12-28 | E120: 555.85 | F120: 556.55 | G120: 552.85 | H120: 549.85 | I120: 546.15 | J120: 559.55 | K120: 563.25 | L120: 566.25 | M120: 560.25 | N120: 553.55 | O120: 22730000 | P120: 1.78%
A121: 111 | B121: Banking | C121: KOTAKBANK | D121: 2023-12-28 | E121: 1763.50 | F121: 1766.18 | G121: 1758.47 | H121: 1753.43 | I121: 1745.72 | J121: 1771.22 | K121: 1778.93 | L121: 1783.97 | M121: 1773.9 | N121: 1761.15 | O121: 29496400 | P121: -0.40%
A122: 112 | B122: Finance | C122: L&TFH | D122: 2023-12-28 | E122: 152.05 | F122: 152.62 | G122: 148.83 | H122: 145.62 | I122: 141.83 | J122: 155.83 | K122: 159.62 | L122: 162.83 | M122: 156.4 | N122: 149.4 | O122: 52009072 | P122: 3.65%
A123: 113 | B123: Others | C123: LALPATHLAB | D123: 2023-12-28 | E123: 2758.65 | F123: 2753.88 | G123: 2727.77 | H123: 2696.88 | I123: 2670.77 | J123: 2784.77 | K123: 2810.88 | L123: 2841.77 | M123: 2780 | N123: 2723 | O123: 959400 | P123: 13.93%
A124: 114 | B124: Pharma | C124: LAURUSLABS | D124: 2023-12-28 | E124: 381.20 | F124: 383.68 | G124: 378.07 | H124: 374.93 | I124: 369.32 | J124: 386.82 | K124: 392.43 | L124: 395.57 | M124: 389.3 | N124: 380.55 | O124: 10859600 | P124: 1.95%
A125: 115 | B125: Finance | C125: LICHSGFIN | D125: 2023-12-28 | E125: 495.15 | F125: 498.30 | G125: 490.20 | H125: 485.25 | I125: 477.15 | J125: 503.25 | K125: 511.35 | L125: 516.30 | M125: 506.4 | N125: 493.35 | O125: 22466000 | P125: -2.83%
A126: 116 | B126: Capital_Goods | C126: LT | D126: 2023-12-28 | E126: 3207.90 | F126: 3188.72 | G126: 3159.48 | H126: 3111.07 | I126: 3081.83 | J126: 3237.13 | K126: 3266.37 | L126: 3314.78 | M126: 3217.95 | N126: 3140.3 | O126: 9279300 | P126: 0.03%
A127: 117 | B127: Technology | C127: LTIM | D127: 2023-12-28 | E127: 5605.20 | F127: 5598.63 | G127: 5562.27 | H127: 5519.33 | I127: 5482.97 | J127: 5641.57 | K127: 5677.93 | L127: 5720.87 | M127: 5635 | N127: 5555.7 | O127: 1388400 | P127: 1.99%
A128: 118 | B128: Technology | C128: LTTS | D128: 2023-12-28 | E128: 4830.60 | F128: 4821.42 | G128: 4780.28 | H128: 4729.97 | I128: 4688.83 | J128: 4871.73 | K128: 4912.87 | L128: 4963.18 | M128: 4862.55 | N128: 4771.1 | O128: 655600 | P128: -2.59%
A129: 119 | B129: Pharma | C129: LUPIN | D129: 2023-12-28 | E129: 1305.75 | F129: 1301.38 | G129: 1290.27 | H129: 1274.78 | I129: 1263.67 | J129: 1316.87 | K129: 1327.98 | L129: 1343.47 | M129: 1312.5 | N129: 1285.9 | O129: 8772850 | P129: 6.41%
A130: 120 | B130: Automobile | C130: M&M | D130: 2023-12-28 | E130: 1638.10 | F130: 1649.00 | G130: 1623.00 | H130: 1607.90 | I130: 1581.90 | J130: 1664.10 | K130: 1690.10 | L130: 1705.20 | M130: 1675 | N130: 1633.9 | O130: 15228150 | P130: 4.19%
A131: 121 | B131: Finance | C131: M&MFIN | D131: 2023-12-28 | E131: 272.10 | F131: 273.07 | G131: 270.03 | H131: 267.97 | I131: 264.93 | J131: 275.13 | K131: 278.17 | L131: 280.23 | M131: 276.1 | N131: 271 | O131: 28824000 | P131: -2.05%
A132: 122 | B132: Finance | C132: MANAPPURAM | D132: 2023-12-28 | E132: 164.05 | F132: 165.03 | G132: 162.32 | H132: 160.58 | I132: 157.87 | J132: 166.77 | K132: 169.48 | L132: 171.22 | M132: 167.75 | N132: 163.3 | O132: 67620000 | P132: 4.08%
A133: 123 | B133: FMCG | C133: MARICO | D133: 2023-12-28 | E133: 539.35 | F133: 539.83 | G133: 536.52 | H133: 533.68 | I133: 530.37 | J133: 542.67 | K133: 545.98 | L133: 548.82 | M133: 543.15 | N133: 537 | O133: 10285200 | P133: -0.42%
A134: 124 | B134: Automobile | C134: MARUTI | D134: 2023-12-28 | E134: 10644.70 | F134: 10693.18 | G134: 10556.52 | H134: 10468.33 | I134: 10331.67 | J134: 10781.37 | K134: 10918.03 | L134: 11006.22 | M134: 10829.85 | N134: 10605 | O134: 2566100 | P134: 2.32%
A135: 125 | B135: FMCG | C135: MCDOWELL-N | D135: 2023-12-28 | E135: 1060.50 | F135: 1060.05 | G135: 1055.35 | H135: 1050.20 | I135: 1045.50 | J135: 1065.20 | K135: 1069.90 | L135: 1075.05 | M135: 1064.75 | N135: 1054.9 | O135: 8800400 | P135: 0.62%
A136: 126 | B136: Others | C136: MCX | D136: 2023-12-28 | E136: 3142.60 | F136: 3182.73 | G136: 3087.87 | H136: 3033.13 | I136: 2938.27 | J136: 3237.47 | K136: 3332.33 | L136: 3387.07 | M136: 3277.6 | N136: 3128 | O136: 2347200 | P136: 12.09%
A137: 127 | B137: Pharma | C137: METROPOLIS | D137: 2023-12-28 | E137: 1695.95 | F137: 1703.77 | G137: 1683.88 | H137: 1671.82 | I137: 1651.93 | J137: 1715.83 | K137: 1735.72 | L137: 1747.78 | M137: 1723.65 | N137: 1691.7 | O137: 1090400 | P137: -0.94%
A138: 128 | B138: Finance | C138: MFSL | D138: 2023-12-28 | E138: 1025.10 | F138: 1024.07 | G138: 1017.08 | H138: 1009.07 | I138: 1002.08 | J138: 1032.08 | K138: 1039.07 | L138: 1047.08 | M138: 1031.05 | N138: 1016.05 | O138: 6440000 | P138: -4.72%
A139: 129 | B139: Oil_Gas | C139: MGL | D139: 2023-12-28 | E139: 1068.40 | F139: 1068.05 | G139: 1046.60 | H139: 1024.80 | I139: 1003.35 | J139: 1089.85 | K139: 1111.30 | L139: 1133.10 | M139: 1089.5 | N139: 1046.25 | O139: 1564800 | P139: 5.16%
A140: 130 | B140: Automobile | C140: MOTHERSON | D140: 2023-12-28 | E140: 93.60 | F140: 93.27 | G140: 92.08 | H140: 90.57 | I140: 89.38 | J140: 94.78 | K140: 95.97 | L140: 97.48 | M140: 94.45 | N140: 91.75 | O140: 91668100 | P140: -0.49%
A141: 131 | B141: Technology | C141: MPHASIS | D141: 2023-12-28 | E141: 2386.40 | F141: 2378.68 | G141: 2359.72 | H141: 2333.03 | I141: 2314.07 | J141: 2405.37 | K141: 2424.33 | L141: 2451.02 | M141: 2397.65 | N141: 2352 | O141: 2230250 | P141: 0.45%
A142: 132 | B142: Automobile | C142: MRF | D142: 2023-12-28 | E142: 112178.40 | F142: 112342.78 | G142: 111735.62 | H142: 111292.83 | I142: 110685.67 | J142: 112785.57 | K142: 113392.73 | L142: 113835.52 | M142: 112949.95 | N142: 111900 | O142: 34920 | P142: -0.31%
A143: 133 | B143: Finance | C143: MUTHOOTFIN | D143: 2023-12-28 | E143: 1424.70 | F143: 1427.32 | G143: 1410.68 | H143: 1396.67 | I143: 1380.03 | J143: 1441.33 | K143: 1457.97 | L143: 1471.98 | M143: 1443.95 | N143: 1413.3 | O143: 6790300 | P143: 8.31%
A144: 134 | B144: Metals | C144: NATIONALUM | D144: 2023-12-28 | E144: 94.40 | F144: 94.10 | G144: 93.30 | H144: 92.20 | I144: 91.40 | J144: 95.20 | K144: 96.00 | L144: 97.10 | M144: 94.9 | N144: 93 | O144: 73927500 | P144: 2.70%
A145: 135 | B145: Others | C145: NAUKRI | D145: 2023-12-28 | E145: 4598.25 | F145: 4608.32 | G145: 4540.38 | H145: 4482.52 | I145: 4414.58 | J145: 4666.18 | K145: 4734.12 | L145: 4791.98 | M145: 4676.25 | N145: 4550.45 | O145: 1505850 | P145: 0.95%
A146: 136 | B146: Chemical | C146: NAVINFLUOR | D146: 2023-12-28 | E146: 3758.40 | F146: 3759.35 | G146: 3728.05 | H146: 3697.70 | I146: 3666.40 | J146: 3789.70 | K146: 3821.00 | L146: 3851.35 | M146: 3790.65 | N146: 3729 | O146: 724050 | P146: 1.17%
A147: 137 | B147: FMCG | C147: NESTLEIND | D147: 2023-12-28 | E147: 24495.35 | F147: 24458.45 | G147: 24376.90 | H147: 24258.45 | I147: 24176.90 | J147: 24576.90 | K147: 24658.45 | L147: 24776.90 | M147: 24540 | N147: 24340 | O147: 347760 | P147: 2.15%
A148: 138 | B148: Metals | C148: NMDC | D148: 2023-12-28 | E148: 183.35 | F148: 183.98 | G148: 181.82 | H148: 180.28 | I148: 178.12 | J148: 185.52 | K148: 187.68 | L148: 189.22 | M148: 186.15 | N148: 182.45 | O148: 81103500 | P148: 0.17%
A149: 139 | B149: Power | C149: NTPC | D149: 2023-12-28 | E149: 271.05 | F149: 270.02 | G149: 263.08 | H149: 255.12 | I149: 248.18 | J149: 277.98 | K149: 284.92 | L149: 292.88 | M149: 276.95 | N149: 262.05 | O149: 98259000 | P149: 1.75%
A150: 140 | B150: Realty | C150: OBEROIRLTY | D150: 2023-12-28 | E150: 1423.40 | F150: 1423.37 | G150: 1412.03 | H150: 1400.67 | I150: 1389.33 | J150: 1434.73 | K150: 1446.07 | L150: 1457.43 | M150: 1434.7 | N150: 1412 | O150: 7568400 | P150: 4.09%
A151: 141 | B151: Technology | C151: OFSS | D151: 2023-12-28 | E151: 4068.75 | F151: 4063.88 | G151: 4035.87 | H151: 4002.98 | I151: 3974.97 | J151: 4096.77 | K151: 4124.78 | L151: 4157.67 | M151: 4091.9 | N151: 4031 | O151: 557000 | P151: 1.09%
A152: 142 | B152: Oil_Gas | C152: ONGC | D152: 2023-12-28 | E152: 196.05 | F152: 197.15 | G152: 194.65 | H152: 193.25 | I152: 190.75 | J152: 198.55 | K152: 201.05 | L152: 202.45 | M152: 199.65 | N152: 195.75 | O152: 43131550 | P152: -0.03%
A153: 143 | B153: Textile | C153: PAGEIND | D153: 2023-12-28 | E153: 38093.30 | F153: 37891.85 | G153: 37552.60 | H153: 37011.90 | I153: 36672.65 | J153: 38432.55 | K153: 38771.80 | L153: 39312.50 | M153: 38231.1 | N153: 37351.15 | O153: 135270 | P153: 2.55%
A154: 144 | B154: Pharma | C154: PEL | D154: 2023-12-28 | E154: 936.05 | F154: 939.67 | G154: 930.63 | H154: 925.22 | I154: 916.18 | J154: 945.08 | K154: 954.12 | L154: 959.53 | M154: 948.7 | N154: 934.25 | O154: 11056500 | P154: -1.90%
A155: 145 | B155: Technology | C155: PERSISTENT | D155: 2023-12-28 | E155: 6356.35 | F155: 6343.92 | G155: 6308.88 | H155: 6261.42 | I155: 6226.38 | J155: 6391.38 | K155: 6426.42 | L155: 6473.88 | M155: 6378.95 | N155: 6296.45 | O155: 2230875 | P155: -1.13%
A156: 146 | B156: Oil_Gas | C156: PETRONET | D156: 2023-12-28 | E156: 203.05 | F156: 203.65 | G156: 201.45 | H156: 199.85 | I156: 197.65 | J156: 205.25 | K156: 207.45 | L156: 209.05 | M156: 205.85 | N156: 202.05 | O156: 46791000 | P156: 4.06%
A157: 147 | B157: Finance | C157: PFC | D157: 2023-12-28 | E157: 368.05 | F157: 359.62 | G157: 346.43 | H157: 324.82 | I157: 311.63 | J157: 381.23 | K157: 394.42 | L157: 416.03 | M157: 372.8 | N157: 338 | O157: 55172250 | P157: 3.36%
A158: 148 | B158: FMCG | C158: PIDILITIND | D158: 2023-12-28 | E158: 2575.25 | F158: 2576.95 | G158: 2557.50 | H158: 2539.75 | I158: 2520.30 | J158: 2594.70 | K158: 2614.15 | L158: 2631.90 | M158: 2596.4 | N158: 2559.2 | O158: 2303250 | P158: 0.48%
A159: 149 | B159: Chemical | C159: PIIND | D159: 2023-12-28 | E159: 3839.70 | F159: 3824.58 | G159: 3797.97 | H159: 3756.23 | I159: 3729.62 | J159: 3866.32 | K159: 3892.93 | L159: 3934.67 | M159: 3851.2 | N159: 3782.85 | O159: 1572000 | P159: 0.82%
A160: 150 | B160: Banking | C160: PNB | D160: 2023-12-28 | E160: 81.20 | F160: 80.63 | G160: 79.12 | H160: 77.03 | I160: 75.52 | J160: 82.72 | K160: 84.23 | L160: 86.32 | M160: 82.15 | N160: 78.55 | O160: 261600000 | P160: 0.12%
A161: 151 | B161: Others | C161: POLYCAB | D161: 2023-12-28 | E161: 5275.55 | F161: 5296.55 | G161: 5238.00 | H161: 5200.45 | I161: 5141.90 | J161: 5334.10 | K161: 5392.65 | L161: 5430.20 | M161: 5355.1 | N161: 5259 | O161: 2172500 | P161: -4.28%
A162: 152 | B162: Power | C162: POWERGRID | D162: 2023-12-28 | E162: 211.85 | F162: 212.37 | G162: 210.73 | H162: 209.62 | I162: 207.98 | J162: 213.48 | K162: 215.12 | L162: 216.23 | M162: 214 | N162: 211.25 | O162: 74509200 | P162: 7.97%
A163: 153 | B163: Media | C163: PVRINOX | D163: 2023-12-28 | E163: 1751.10 | F163: 1750.37 | G163: 1735.98 | H163: 1720.87 | I163: 1706.48 | J163: 1765.48 | K163: 1779.87 | L163: 1794.98 | M163: 1764.75 | N163: 1735.25 | O163: 5619042 | P163: -2.01%
A164: 154 | B164: Cement | C164: RAMCOCEM | D164: 2023-12-28 | E164: 1012.85 | F164: 1009.67 | G164: 1002.33 | H164: 991.82 | I164: 984.48 | J164: 1020.18 | K164: 1027.52 | L164: 1038.03 | M164: 1017 | N164: 999.15 | O164: 2483700 | P164: -1.55%
A165: 155 | B165: Banking | C165: RBLBANK | D165: 2023-12-28 | E165: 234.90 | F165: 236.42 | G165: 232.38 | H165: 229.87 | I165: 225.83 | J165: 238.93 | K165: 242.97 | L165: 245.48 | M165: 240.45 | N165: 233.9 | O165: 52215000 | P165: 2.72%
A166: 156 | B166: Power | C166: RECLTD | D166: 2023-12-28 | E166: 376.85 | F166: 370.83 | G166: 357.57 | H166: 338.28 | I166: 325.02 | J166: 390.12 | K166: 403.38 | L166: 422.67 | M166: 384.1 | N166: 351.55 | O166: 43612000 | P166: 3.22%
A167: 157 | B167: Oil_Gas | C167: RELIANCE | D167: 2023-12-28 | E167: 2407.10 | F167: 2403.03 | G167: 2395.07 | H167: 2383.03 | I167: 2375.07 | J167: 2415.07 | K167: 2423.03 | L167: 2435.07 | M167: 2411 | N167: 2391 | O167: 46211250 | P167: 0.74%
A168: 158 | B168: Metals | C168: SAIL | D168: 2023-12-28 | E168: 94.00 | F168: 93.97 | G168: 92.93 | H168: 91.87 | I168: 90.83 | J168: 95.03 | K168: 96.07 | L168: 97.13 | M168: 95 | N168: 92.9 | O168: 140616000 | P168: 2.47%
A169: 159 | B169: Banking | C169: SBICARD | D169: 2023-12-28 | E169: 743.80 | F169: 745.83 | G169: 740.37 | H169: 736.93 | I169: 731.47 | J169: 749.27 | K169: 754.73 | L169: 758.17 | M169: 751.3 | N169: 742.4 | O169: 13308000 | P169: -0.48%
A170: 160 | B170: Finance | C170: SBILIFE | D170: 2023-12-28 | E170: 1433.65 | F170: 1439.37 | G170: 1424.78 | H170: 1415.92 | I170: 1401.33 | J170: 1448.23 | K170: 1462.82 | L170: 1471.68 | M170: 1453.95 | N170: 1430.5 | O170: 6491250 | P170: 1.18%
A171: 161 | B171: Banking | C171: SBIN | D171: 2023-12-28 | E171: 576.10 | F171: 574.63 | G171: 570.82 | H171: 565.53 | I171: 561.72 | J171: 579.92 | K171: 583.73 | L171: 589.02 | M171: 578.45 | N171: 569.35 | O171: 110416500 | P171: -7.11%
A172: 162 | B172: Cement | C172: SHREECEM | D172: 2023-12-28 | E172: 27232.65 | F172: 27099.57 | G172: 26919.18 | H172: 26605.72 | I172: 26425.33 | J172: 27413.03 | K172: 27593.42 | L172: 27906.88 | M172: 27279.95 | N172: 26786.1 | O172: 161450 | P172: -0.95%
A173: 163 | B173: Capital_Goods | C173: SIEMENS | D173: 2023-12-28 | E173: 3771.55 | F173: 3747.10 | G173: 3696.20 | H173: 3620.85 | I173: 3569.95 | J173: 3822.45 | K173: 3873.35 | L173: 3948.70 | M173: 3798 | N173: 3671.75 | O173: 2147100 | P173: -1.70%
A174: 164 | B174: Textile | C174: SRF | D174: 2023-12-28 | E174: 2430.85 | F174: 2422.83 | G174: 2383.17 | H174: 2335.48 | I174: 2295.82 | J174: 2470.52 | K174: 2510.18 | L174: 2557.87 | M174: 2462.5 | N174: 2375.15 | O174: 3664500 | P174: 9.93%
A175: 165 | B175: Finance | C175: SHRIRAMFIN | D175: 2023-12-28 | E175: 2014.05 | F175: 2020.10 | G175: 2002.25 | H175: 1990.45 | I175: 1972.60 | J175: 2031.90 | K175: 2049.75 | L175: 2061.55 | M175: 2037.95 | N175: 2008.3 | O175: 6690900 | P175: -0.76%
A176: 166 | B176: Pharma | C176: SUNPHARMA | D176: 2023-12-28 | E176: 1236.45 | F176: 1238.70 | G176: 1228.65 | H176: 1220.85 | I176: 1210.80 | J176: 1246.50 | K176: 1256.55 | L176: 1264.35 | M176: 1248.75 | N176: 1230.9 | O176: 16437400 | P176: -1.00%
A177: 167 | B177: Media | C177: SUNTV | D177: 2023-12-28 | E177: 678.95 | F177: 682.52 | G177: 673.13 | H177: 667.32 | I177: 657.93 | J177: 688.33 | K177: 697.72 | L177: 703.53 | M177: 691.9 | N177: 676.7 | O177: 7141500 | P177: 1.67%
A178: 168 | B178: Pharma | C178: SYNGENE | D178: 2023-12-28 | E178: 750.90 | F178: 755.80 | G178: 743.60 | H178: 736.30 | I178: 724.10 | J178: 763.10 | K178: 775.30 | L178: 782.60 | M178: 768 | N178: 748.5 | O178: 4780000 | P178: 1.81%
A179: 169 | B179: Chemical | C179: TATACHEM | D179: 2023-12-28 | E179: 959.60 | F179: 961.85 | G179: 954.75 | H179: 949.90 | I179: 942.80 | J179: 966.70 | K179: 973.80 | L179: 978.65 | M179: 968.95 | N179: 957 | O179: 11140250 | P179: 0.28%
A180: 170 | B180: Telecom | C180: TATACOMM | D180: 2023-12-28 | E180: 1663.20 | F180: 1685.42 | G180: 1635.83 | H180: 1608.47 | I180: 1558.88 | J180: 1712.78 | K180: 1762.37 | L180: 1789.73 | M180: 1735 | N180: 1658.05 | O180: 8261000 | P180: 14.51%
A181: 171 | B181: FMCG | C181: TATACONSUM | D181: 2023-12-28 | E181: 950.20 | F181: 952.13 | G181: 944.77 | H181: 939.33 | I181: 931.97 | J181: 957.57 | K181: 964.93 | L181: 970.37 | M181: 959.5 | N181: 946.7 | O181: 9473400 | P181: 1.68%
A182: 172 | B182: Automobile | C182: TATAMOTORS | D182: 2023-12-28 | E182: 708.40 | F182: 710.10 | G182: 705.35 | H182: 702.30 | I182: 697.55 | J182: 713.15 | K182: 717.90 | L182: 720.95 | M182: 714.85 | N182: 707.05 | O182: 62836800 | P182: -1.32%
A183: 173 | B183: Power | C183: TATAPOWER | D183: 2023-12-28 | E183: 277.45 | F183: 275.98 | G183: 271.47 | H183: 265.48 | I183: 260.97 | J183: 281.97 | K183: 286.48 | L183: 292.47 | M183: 280.5 | N183: 270 | O183: 96923250 | P183: -1.16%
A184: 174 | B184: Metals | C184: TATASTEEL | D184: 2023-12-28 | E184: 130.90 | F184: 130.27 | G184: 129.23 | H184: 127.57 | I184: 126.53 | J184: 131.93 | K184: 132.97 | L184: 134.63 | M184: 131.3 | N184: 128.6 | O184: 176011000 | P184: 0.08%
A185: 175 | B185: Technology | C185: TCS | D185: 2023-12-28 | E185: 3528.05 | F185: 3522.07 | G185: 3512.13 | H185: 3496.22 | I185: 3486.28 | J185: 3537.98 | K185: 3547.92 | L185: 3563.83 | M185: 3532 | N185: 3506.15 | O185: 12054875 | P185: -0.79%
A186: 176 | B186: Technology | C186: TECHM | D186: 2023-12-28 | E186: 1227.95 | F186: 1227.47 | G186: 1221.23 | H186: 1214.52 | I186: 1208.28 | J186: 1234.18 | K186: 1240.42 | L186: 1247.13 | M186: 1233.7 | N186: 1220.75 | O186: 14939400 | P186: 1.01%
A187: 177 | B187: FMCG | C187: TITAN | D187: 2023-12-28 | E187: 3506.70 | F187: 3504.72 | G187: 3493.08 | H187: 3479.47 | I187: 3467.83 | J187: 3518.33 | K187: 3529.97 | L187: 3543.58 | M187: 3516.35 | N187: 3491.1 | O187: 4767825 | P187: 0.27%
A188: 178 | B188: Pharma | C188: TORNTPHARM | D188: 2023-12-28 | E188: 2160.70 | F188: 2152.43 | G188: 2139.07 | H188: 2117.43 | I188: 2104.07 | J188: 2174.07 | K188: 2187.43 | L188: 2209.07 | M188: 2165.8 | N188: 2130.8 | O188: 1638500 | P188: 2.82%
A189: 179 | B189: Others | C189: TRENT | D189: 2023-12-28 | E189: 2824.25 | F189: 2816.35 | G189: 2774.90 | H189: 2725.55 | I189: 2684.10 | J189: 2865.70 | K189: 2907.15 | L189: 2956.50 | M189: 2857.8 | N189: 2767 | O189: 3223200 | P189: -0.51%
A190: 180 | B190: Automobile | C190: TVSMOTOR | D190: 2023-12-28 | E190: 1899.10 | F190: 1896.57 | G190: 1868.53 | H190: 1837.97 | I190: 1809.93 | J190: 1927.13 | K190: 1955.17 | L190: 1985.73 | M190: 1924.6 | N190: 1866 | O190: 7454300 | P190: 3.35%
A191: 181 | B191: FMCG | C191: UBL | D191: 2023-12-28 | E191: 1684.80 | F191: 1678.10 | G191: 1661.70 | H191: 1638.60 | I191: 1622.20 | J191: 1701.20 | K191: 1717.60 | L191: 1740.70 | M191: 1694.5 | N191: 1655 | O191: 3132800 | P191: 2.84%
A192: 182 | B192: Cement | C192: ULTRACEMCO | D192: 2023-12-28 | E192: 9072.65 | F192: 9091.95 | G192: 8995.70 | H192: 8918.75 | I192: 8822.50 | J192: 9168.90 | K192: 9265.15 | L192: 9342.10 | M192: 9188.2 | N192: 9015 | O192: 1297000 | P192: 4.69%
A193: 183 | B193: Chemical | C193: UPL | D193: 2023-12-28 | E193: 578.40 | F193: 577.02 | G193: 574.08 | H193: 569.77 | I193: 566.83 | J193: 581.33 | K193: 584.27 | L193: 588.58 | M193: 579.95 | N193: 572.7 | O193: 29611400 | P193: 0.35%
A194: 184 | B194: Metals | C194: VEDL | D194: 2023-12-28 | E194: 241.45 | F194: 239.98 | G194: 236.02 | H194: 230.58 | I194: 226.62 | J194: 245.42 | K194: 249.38 | L194: 254.82 | M194: 243.95 | N194: 234.55 | O194: 80166500 | P194: 3.16%
A195: 185 | B195: Capital_Goods | C195: VOLTAS | D195: 2023-12-28 | E195: 841.75 | F195: 841.20 | G195: 834.55 | H195: 827.35 | I195: 820.70 | J195: 848.40 | K195: 855.05 | L195: 862.25 | M195: 847.85 | N195: 834 | O195: 8583000 | P195: -0.36%
A196: 186 | B196: Technology | C196: WIPRO | D196: 2023-12-28 | E196: 410.45 | F196: 411.93 | G196: 407.57 | H196: 404.68 | I196: 400.32 | J196: 414.82 | K196: 419.18 | L196: 422.07 | M196: 416.3 | N196: 409.05 | O196: 46948500 | P196: 5.11%
A197: 187 | B197: Media | C197: ZEEL | D197: 2023-12-28 | E197: 268.50 | F197: 265.60 | G197: 258.90 | H197: 249.30 | I197: 242.60 | J197: 275.20 | K197: 281.90 | L197: 291.50 | M197: 272.3 | N197: 256 | O197: 113154000 | P197: 2.18%
A198: 188 | B198: Pharma | C198: ZYDUSLIFE | D198: 2023-12-28 | E198: 644.65 | F198: 646.95 | G198: 641.20 | H198: 637.75 | I198: 632.00 | J198: 650.40 | K198: 656.15 | L198: 659.60 | M198: 652.7 | N198: 643.5 | O198: 6162300 | P198: 2.62%
A221: Pivot Point: This is trigger point for intra day buy/sell based on the price range of the previous day
A222: As per the tool,the trader should take BUY position just above Pivot and keep the stop loss of pivot point and the first target would be Resistance 1(R1)
A223: If R1 is crossed then R2 becomes the next target with stop loss of at R1
A224: Similarly if price goes below pivot point then the trader should sell and keep a stop loss of pivot point and the first target would be S1
A225: If S1 is crossed then S2 becomes the next target with stop loss of at S1
A227: Disclaimer:
A228: This document has been prepared by the Retail Research Desk of Asit C Mehta
A229: Investment Intermediates Ltd. and is meant for use of the recipient only
... 7 more rows

Sheet Cash Intra
M5: Back to Main Page
A6: FOR INTRA DAY TRADING | K6: =Main!B10 -> 2023-12-04
A8: Sr.no | C8: CLOSE RATE | D8: Pivot Point | E8: Supports | H8: Resistances
E9: S1 | F9: S2 | G9: S3 | H9: R1 | I9: R2 | J9: R3 | K9: HIGH | L9: LOW | M9: Total Trade Quanity in Lakhs
A10: 1 | B10: Nifty 50 | C10: 20267.90 | D10: 20247.72 | E10: 20203.88 | F10: 20139.87 | G10: 20096.03 | H10: 20311.73 | I10: 20355.57 | J10: 20419.58 | K10: 20291.55 | L10: 20183.70
A11: 2 | B11: Nifty Bank | C11: 44814.20 | D11: 44765.68 | E11: 44580.27 | F11: 44346.33 | G11: 44160.92 | H11: 44999.62 | I11: 45185.03 | J11: 45418.97 | K11: 44951.10 | L11: 44531.75
A12: 3 | B12: Nifty CPSE | C12: 4291.65 | D12: 4300.13 | E12: 4260.12 | F12: 4228.58 | G12: 4188.57 | H12: 4331.67 | I12: 4371.68 | J12: 4403.22 | K12: 4340.15 | L12: 4268.60
A13: 4 | B13: Nifty Infra | C13: 6651.65 | D13: 6641.88 | E13: 6622.32 | F13: 6592.98 | G13: 6573.42 | H13: 6671.22 | I13: 6690.78 | J13: 6720.12 | K13: 6661.45 | L13: 6612.55
A14: 5 | B14: Nifty IT | C14: 32598.70 | D14: 32602.42 | E14: 32475.03 | F14: 32351.37 | G14: 32223.98 | H14: 32726.08 | I14: 32853.47 | J14: 32977.13 | K14: 32729.80 | L14: 32478.75
A15: 6 | B15: Nifty PSE | C15: 6911.85 | D15: 6907.35 | E15: 6840.30 | F15: 6768.75 | G15: 6701.70 | H15: 6978.90 | I15: 7045.95 | J15: 7117.50 | K15: 6974.40 | L15: 6835.80
A16: 7 | B16: Nifty Midcap 50 | C16: 12334.50 | D16: 12319.72 | E16: 12280.23 | F16: 12225.97 | G16: 12186.48 | H16: 12373.98 | I16: 12413.47 | J16: 12467.73 | K16: 12359.20 | L16: 12265.45
A17: 8 | B17: ABB | C17: 4387.25 | D17: 4404.02 | E17: 4359.03 | F17: 4330.82 | G17: 4285.83 | H17: 4432.23 | I17: 4477.22 | J17: 4505.43 | K17: 4449 | L17: 4375.8 | M17: 1.50704
A18: 9 | B18: ABBOTINDIA | C18: 23679.5 | D18: 23739.87 | E18: 23553.83 | F18: 23428.17 | G18: 23242.13 | H18: 23865.53 | I18: 24051.57 | J18: 24177.23 | K18: 23925.9 | L18: 23614.2 | M18: 0.06396
A19: 10 | B19: ABCAPITAL | C19: 169.9 | D19: 170.38 | E19: 168.52 | F19: 167.13 | G19: 165.27 | H19: 171.77 | I19: 173.63 | J19: 175.02 | K19: 172.25 | L19: 169 | M19: 77.9361
A20: 11 | B20: ABFRL | C20: 231.4 | D20: 233.07 | E20: 229.33 | F20: 227.27 | G20: 223.53 | H20: 235.13 | I20: 238.87 | J20: 240.93 | K20: 236.8 | L20: 231 | M20: 30.27206
A21: 12 | B21: ACC | C21: 1900.25 | D21: 1899.12 | E21: 1887.03 | F21: 1873.82 | G21: 1861.73 | H21: 1912.33 | I21: 1924.42 | J21: 1937.63 | K21: 1911.2 | L21: 1885.9 | M21: 4.65342
A22: 13 | B22: ADANIENT | C22: 2362.7 | D22: 2373.38 | E22: 2343.42 | F22: 2324.13 | G22: 2294.17 | H22: 2392.67 | I22: 2422.63 | J22: 2441.92 | K22: 2403.35 | L22: 2354.1 | M22: 17.92983
A23: 14 | B23: ADANIGREEN | C23: 1026.5 | D23: 1030.50 | E23: 1016.00 | F23: 1005.50 | G23: 991.00 | H23: 1041.00 | I23: 1055.50 | J23: 1066.00 | K23: 1045 | L23: 1020 | M23: 11.81792
A24: 15 | B24: ADANIPORTS | C24: 827.8 | D24: 830.83 | E24: 822.47 | F24: 817.13 | G24: 808.77 | H24: 836.17 | I24: 844.53 | J24: 849.87 | K24: 839.2 | L24: 825.5 | M24: 29.32775
A25: 16 | B25: ADANIPOWER | C25: 440.4 | D25: 443.52 | E25: 432.23 | F25: 424.07 | G25: 412.78 | H25: 451.68 | I25: 462.97 | J25: 471.13 | K25: 454.8 | L25: 435.35 | M25: 137.612
A26: 17 | B26: ALKEM | C26: 4647.9 | D26: 4670.53 | E26: 4599.12 | F26: 4550.33 | G26: 4478.92 | H26: 4719.32 | I26: 4790.73 | J26: 4839.52 | K26: 4741.95 | L26: 4621.75 | M26: 2.64101
A27: 18 | B27: AMBUJACEM | C27: 442 | D27: 441.33 | E27: 438.67 | F27: 435.33 | G27: 432.67 | H27: 444.67 | I27: 447.33 | J27: 450.67 | K27: 444 | L27: 438 | M27: 24.78791
A28: 19 | B28: APOLLOHOSP | C28: 5591.15 | D28: 5603.05 | E28: 5518.45 | F28: 5445.75 | G28: 5361.15 | H28: 5675.75 | I28: 5760.35 | J28: 5833.05 | K28: 5687.65 | L28: 5530.35 | M28: 5.4699
A29: 20 | B29: APOLLOTYRE | C29: 442.45 | D29: 439.77 | E29: 433.73 | F29: 425.02 | G29: 418.98 | H29: 448.48 | I29: 454.52 | J29: 463.23 | K29: 445.8 | L29: 431.05 | M29: 48.70523
A30: 21 | B30: ASHOKLEY | C30: 176.3 | D30: 178.52 | E30: 172.83 | F30: 169.37 | G30: 163.68 | H30: 181.98 | I30: 187.67 | J30: 191.13 | K30: 184.2 | L30: 175.05 | M30: 131.66604
A31: 22 | B31: ASIANPAINT | C31: 3173.4 | D31: 3168.08 | E31: 3145.57 | F31: 3117.73 | G31: 3095.22 | H31: 3195.92 | I31: 3218.43 | J31: 3246.27 | K31: 3190.6 | L31: 3140.25 | M31: 9.60196
A32: 23 | B32: ASTRAL | C32: 1978.45 | D32: 1969.33 | E32: 1953.67 | F32: 1928.88 | G32: 1913.22 | H32: 1994.12 | I32: 2009.78 | J32: 2034.57 | K32: 1985 | L32: 1944.55 | M32: 7.90565
A33: 24 | B33: ATGL | C33: 701.45 | D33: 707.17 | E33: 691.33 | F33: 681.22 | G33: 665.38 | H33: 717.28 | I33: 733.12 | J33: 743.23 | K33: 723 | L33: 697.05 | M33: 22.95605
A34: 25 | B34: AUBANK | C34: 742.45 | D34: 744.63 | E34: 737.87 | F34: 733.28 | G34: 726.52 | H34: 749.22 | I34: 755.98 | J34: 760.57 | K34: 751.4 | L34: 740.05 | M34: 11.78096
A35: 26 | B35: AUROPHARMA | C35: 1033.75 | D35: 1041.47 | E35: 1023.28 | F35: 1012.82 | G35: 994.63 | H35: 1051.93 | I35: 1070.12 | J35: 1080.58 | K35: 1059.65 | L35: 1031 | M35: 12.27116
A36: 27 | B36: AWL | C36: 340.25 | D36: 342.08 | E36: 337.17 | F36: 334.08 | G36: 329.17 | H36: 345.17 | I36: 350.08 | J36: 353.17 | K36: 347 | L36: 339 | M36: 21.40231
A37: 28 | B37: AXISBANK | C37: 1104.65 | D37: 1094.62 | E37: 1080.23 | F37: 1055.82 | G37: 1041.43 | H37: 1119.03 | I37: 1133.42 | J37: 1157.83 | K37: 1109 | L37: 1070.2 | M37: 144.28758
A38: 29 | B38: BAJAJ-AUTO | C38: 6046.05 | D38: 6046.45 | E38: 6002.90 | F38: 5959.75 | G38: 5916.20 | H38: 6089.60 | I38: 6133.15 | J38: 6176.30 | K38: 6090 | L38: 6003.3 | M38: 4.39023
A39: 30 | B39: BAJAJFINSV | C39: 1685.95 | D39: 1681.53 | E39: 1674.37 | F39: 1662.78 | G39: 1655.62 | H39: 1693.12 | I39: 1700.28 | J39: 1711.87 | K39: 1688.7 | L39: 1669.95 | M39: 11.01136
A40: 31 | B40: BAJAJHLDNG | C40: 7332.9 | D40: 7344.47 | E40: 7248.98 | F40: 7165.07 | G40: 7069.58 | H40: 7428.38 | I40: 7523.87 | J40: 7607.78 | K40: 7439.95 | L40: 7260.55 | M40: 0.30157
A41: 32 | B41: BAJFINANCE | C41: 7259.35 | D41: 7227.07 | E41: 7174.28 | F41: 7089.22 | G41: 7036.43 | H41: 7312.13 | I41: 7364.92 | J41: 7449.98 | K41: 7279.85 | L41: 7142 | M41: 9.00477
A42: 33 | B42: BALKRISIND | C42: 2559.7 | D42: 2568.73 | E42: 2538.97 | F42: 2518.23 | G42: 2488.47 | H42: 2589.47 | I42: 2619.23 | J42: 2639.97 | K42: 2598.5 | L42: 2548 | M42: 2.65697
A43: 34 | B43: BANDHANBNK | C43: 226.25 | D43: 227.23 | E43: 224.57 | F43: 222.88 | G43: 220.22 | H43: 228.92 | I43: 231.58 | J43: 233.27 | K43: 229.9 | L43: 225.55 | M43: 66.73816
A44: 35 | B44: BANKBARODA | C44: 201.85 | D44: 201.35 | E44: 198.85 | F44: 195.85 | G44: 193.35 | H44: 204.35 | I44: 206.85 | J44: 209.85 | K44: 203.85 | L44: 198.35 | M44: 219.23402
A45: 36 | B45: BANKINDIA | C45: 107.5 | D45: 106.92 | E45: 104.78 | F45: 102.07 | G45: 99.93 | H45: 109.63 | I45: 111.77 | J45: 114.48 | K45: 109.05 | L45: 104.2 | M45: 239.26731
A46: 37 | B46: BATAINDIA | C46: 1618.1 | D46: 1621.90 | E46: 1609.80 | F46: 1601.50 | G46: 1589.40 | H46: 1630.20 | I46: 1642.30 | J46: 1650.60 | K46: 1634 | L46: 1613.6 | M46: 0.87118
A47: 38 | B47: BEL | C47: 147.45 | D47: 148.17 | E47: 146.03 | F47: 144.62 | G47: 142.48 | H47: 149.58 | I47: 151.72 | J47: 153.13 | K47: 150.3 | L47: 146.75 | M47: 344.66616
A48: 39 | B48: BERGEPAINT | C48: 586.15 | D48: 587.35 | E48: 572.80 | F48: 559.45 | G48: 544.90 | H48: 600.70 | I48: 615.25 | J48: 628.60 | K48: 601.9 | L48: 574 | M48: 27.95922
A49: 40 | B49: BHARATFORG | C49: 1156.5 | D49: 1148.18 | E49: 1132.92 | F49: 1109.33 | G49: 1094.07 | H49: 1171.77 | I49: 1187.03 | J49: 1210.62 | K49: 1163.45 | L49: 1124.6 | M49: 27.14425
A50: 41 | B50: BHARTIARTL | C50: 1014.7 | D50: 1015.15 | E50: 1007.75 | F50: 1000.80 | G50: 993.40 | H50: 1022.10 | I50: 1029.50 | J50: 1036.45 | K50: 1022.55 | L50: 1008.2 | M50: 55.4495
A51: 42 | B51: BHEL | C51: 170.5 | D51: 171.38 | E51: 168.62 | F51: 166.73 | G51: 163.97 | H51: 173.27 | I51: 176.03 | J51: 177.92 | K51: 174.15 | L51: 169.5 | M51: 376.23687
A52: 43 | B52: BIOCON | C52: 240.65 | D52: 241.93 | E52: 238.77 | F52: 236.88 | G52: 233.72 | H52: 243.82 | I52: 246.98 | J52: 248.87 | K52: 245.1 | L52: 240.05 | M52: 30.20077
A53: 44 | B53: BOSCHLTD | C53: 22083.55 | D53: 21899.63 | E53: 21673.92 | F53: 21264.28 | G53: 21038.57 | H53: 22309.27 | I53: 22534.98 | J53: 22944.62 | K53: 22125.35 | L53: 21490 | M53: 0.49102
A54: 45 | B54: BPCL | C54: 438 | D54: 437.93 | E54: 433.47 | F54: 428.93 | G54: 424.47 | H54: 442.47 | I54: 446.93 | J54: 451.47 | K54: 442.4 | L54: 433.4 | M54: 96.39421
A55: 46 | B55: BRITANNIA | C55: 4970.75 | D55: 4938.27 | E55: 4892.53 | F55: 4814.32 | G55: 4768.58 | H55: 5016.48 | I55: 5062.22 | J55: 5140.43 | K55: 4984 | L55: 4860.05 | M55: 4.85597
A56: 47 | B56: CANBK | C56: 410.3 | D56: 411.45 | E56: 403.85 | F56: 397.40 | G56: 389.80 | H56: 417.90 | I56: 425.50 | J56: 431.95 | K56: 419.05 | L56: 405 | M56: 99.40229
A57: 48 | B57: CGPOWER | C57: 455.95 | D57: 452.67 | E57: 446.43 | F57: 436.92 | G57: 430.68 | H57: 462.18 | I57: 468.42 | J57: 477.93 | K57: 458.9 | L57: 443.15 | M57: 27.97416
A58: 49 | B58: CHOLAFIN | C58: 1128.2 | D58: 1129.07 | E58: 1119.13 | F58: 1110.07 | G58: 1100.13 | H58: 1138.13 | I58: 1148.07 | J58: 1157.13 | K58: 1139 | L58: 1120 | M58: 10.40604
A59: 50 | B59: CIPLA | C59: 1205.7 | D59: 1209.02 | E59: 1200.18 | F59: 1194.67 | G59: 1185.83 | H59: 1214.53 | I59: 1223.37 | J59: 1228.88 | K59: 1217.85 | L59: 1203.5 | M59: 10.7868
A60: 51 | B60: COALINDIA | C60: 346.65 | D60: 346.73 | E60: 342.37 | F60: 338.08 | G60: 333.72 | H60: 351.02 | I60: 355.38 | J60: 359.67 | K60: 351.1 | L60: 342.45 | M60: 151.05221
A61: 52 | B61: COFORGE | C61: 5714 | D61: 5739.95 | E61: 5669.05 | F61: 5624.10 | G61: 5553.20 | H61: 5784.90 | I61: 5855.80 | J61: 5900.75 | K61: 5810.85 | L61: 5695 | M61: 1.77578
A62: 53 | B62: COLPAL | C62: 2279.25 | D62: 2251.85 | E62: 2214.70 | F62: 2150.15 | G62: 2113.00 | H62: 2316.40 | I62: 2353.55 | J62: 2418.10 | K62: 2289 | L62: 2187.3 | M62: 6.37907
A63: 54 | B63: CONCOR | C63: 785.15 | D63: 781.20 | E63: 774.45 | F63: 763.75 | G63: 757.00 | H63: 791.90 | I63: 798.65 | J63: 809.35 | K63: 787.95 | L63: 770.5 | M63: 11.54908
A64: 55 | B64: COROMANDEL | C64: 1169.6 | D64: 1168.53 | E64: 1159.57 | F64: 1149.53 | G64: 1140.57 | H64: 1178.57 | I64: 1187.53 | J64: 1197.57 | K64: 1177.5 | L64: 1158.5 | M64: 1.84002
A65: 56 | B65: CROMPTON | C65: 289.9 | D65: 288.48 | E65: 286.42 | F65: 282.93 | G65: 280.87 | H65: 291.97 | I65: 294.03 | J65: 297.52 | K65: 290.55 | L65: 285 | M65: 17.71128
A66: 57 | B66: CUMMINSIND | C66: 1920.2 | D66: 1915.73 | E66: 1902.47 | F66: 1884.73 | G66: 1871.47 | H66: 1933.47 | I66: 1946.73 | J66: 1964.47 | K66: 1929 | L66: 1898 | M66: 3.26619
A67: 58 | B67: DABUR | C67: 541.15 | D67: 541.08 | E67: 537.77 | F67: 534.38 | G67: 531.07 | H67: 544.47 | I67: 547.78 | J67: 551.17 | K67: 544.4 | L67: 537.7 | M67: 15.84387
A68: 59 | B68: DALBHARAT | C68: 2265.15 | D68: 2253.23 | E68: 2231.47 | F68: 2197.78 | G68: 2176.02 | H68: 2286.92 | I68: 2308.68 | J68: 2342.37 | K68: 2275 | L68: 2219.55 | M68: 3.54401
A69: 60 | B69: DEEPAKNTR | C69: 2214.2 | D69: 2211.78 | E69: 2194.57 | F69: 2174.93 | G69: 2157.72 | H69: 2231.42 | I69: 2248.63 | J69: 2268.27 | K69: 2229 | L69: 2192.15 | M69: 2.93066
A70: 61 | B70: DELHIVERY | C70: 397.45 | D70: 396.22 | E70: 392.43 | F70: 387.42 | G70: 383.63 | H70: 401.23 | I70: 405.02 | J70: 410.03 | K70: 400 | L70: 391.2 | M70: 14.39914
A71: 62 | B71: DEVYANI | C71: 175.1 | D71: 174.95 | E71: 172.75 | F71: 170.40 | G71: 168.20 | H71: 177.30 | I71: 179.50 | J71: 181.85 | K71: 177.15 | L71: 172.6 | M71: 47.09716
A72: 63 | B72: DIVISLAB | C72: 3792.7 | D72: 3794.80 | E72: 3769.90 | F72: 3747.10 | G72: 3722.20 | H72: 3817.60 | I72: 3842.50 | J72: 3865.30 | K72: 3819.7 | L72: 3772 | M72: 2.60031
A73: 64 | B73: DIXON | C73: 5951.65 | D73: 5833.53 | E73: 5632.12 | F73: 5312.58 | G73: 5111.17 | H73: 6153.07 | I73: 6354.48 | J73: 6674.02 | K73: 6034.95 | L73: 5514 | M73: 21.8154
A74: 65 | B74: DLF | C74: 629.25 | D74: 629.70 | E74: 625.10 | F74: 620.95 | G74: 616.35 | H74: 633.85 | I74: 638.45 | J74: 642.60 | K74: 634.3 | L74: 625.55 | M74: 34.38389
A75: 66 | B75: DMART | C75: 3988.4 | D75: 3971.52 | E75: 3948.03 | F75: 3907.67 | G75: 3884.18 | H75: 4011.88 | I75: 4035.37 | J75: 4075.73 | K75: 3995 | L75: 3931.15 | M75: 3.80041
A76: 67 | B76: DRREDDY | C76: 5749.4 | D76: 5781.80 | E76: 5707.05 | F76: 5664.70 | G76: 5589.95 | H76: 5824.15 | I76: 5898.90 | J76: 5941.25 | K76: 5856.55 | L76: 5739.45 | M76: 2.783
A77: 68 | B77: EICHERMOT | C77: 3891.2 | D77: 3907.75 | E77: 3865.50 | F77: 3839.80 | G77: 3797.55 | H77: 3933.45 | I77: 3975.70 | J77: 4001.40 | K77: 3950 | L77: 3882.05 | M77: 6.83211
A78: 69 | B78: ESCORTS | C78: 3205.2 | D78: 3201.23 | E78: 3149.07 | F78: 3092.93 | G78: 3040.77 | H78: 3257.37 | I78: 3309.53 | J78: 3365.67 | K78: 3253.4 | L78: 3145.1 | M78: 4.78524
A79: 70 | B79: FEDERALBNK | C79: 148.75 | D79: 149.02 | E79: 147.73 | F79: 146.72 | G79: 145.43 | H79: 150.03 | I79: 151.32 | J79: 152.33 | K79: 150.3 | L79: 148 | M79: 121.79761
A80: 71 | B80: FLUOROCHEM | C80: 2849.75 | D80: 2853.45 | E80: 2827.30 | F80: 2804.85 | G80: 2778.70 | H80: 2875.90 | I80: 2902.05 | J80: 2924.50 | K80: 2879.6 | L80: 2831 | M80: 0.75985
A81: 72 | B81: FORTIS | C81: 383.8 | D81: 381.65 | E81: 377.35 | F81: 370.90 | G81: 366.60 | H81: 388.10 | I81: 392.40 | J81: 398.85 | K81: 385.95 | L81: 375.2 | M81: 19.773
A82: 73 | B82: GAIL | C82: 136.05 | D82: 135.25 | E82: 133.15 | F82: 130.25 | G82: 128.15 | H82: 138.15 | I82: 140.25 | J82: 143.15 | K82: 137.35 | L82: 132.35 | M82: 536.60727
A83: 74 | B83: GLAND | C83: 1809.35 | D83: 1809.78 | E83: 1779.57 | F83: 1749.78 | G83: 1719.57 | H83: 1839.57 | I83: 1869.78 | J83: 1899.57 | K83: 1840 | L83: 1780 | M83: 4.07645
A84: 75 | B84: GODREJCP | C84: 1025.4 | D84: 1020.80 | E84: 1012.60 | F84: 999.80 | G84: 991.60 | H84: 1033.60 | I84: 1041.80 | J84: 1054.60 | K84: 1029 | L84: 1008 | M84: 15.67362
A85: 76 | B85: GODREJPROP | C85: 1872.65 | D85: 1874.57 | E85: 1852.63 | F85: 1832.62 | G85: 1810.68 | H85: 1894.58 | I85: 1916.52 | J85: 1936.53 | K85: 1896.5 | L85: 1854.55 | M85: 3.9185
A86: 77 | B86: GRASIM | C86: 2016.05 | D86: 2021.02 | E86: 2003.03 | F86: 1990.02 | G86: 1972.03 | H86: 2034.03 | I86: 2052.02 | J86: 2065.03 | K86: 2039 | L86: 2008 | M86: 9.28511
A87: 78 | B87: GUJGASLTD | C87: 434.05 | D87: 435.12 | E87: 431.23 | F87: 428.42 | G87: 424.53 | H87: 437.93 | I87: 441.82 | J87: 444.63 | K87: 439 | L87: 432.3 | M87: 7.19517
A88: 79 | B88: HAL | C88: 2462.25 | D88: 2466.47 | E88: 2432.93 | F88: 2403.62 | G88: 2370.08 | H88: 2495.78 | I88: 2529.32 | J88: 2558.63 | K88: 2500 | L88: 2437.15 | M88: 40.12398
A89: 80 | B89: HAVELLS | C89: 1312.45 | D89: 1312.82 | E89: 1305.63 | F89: 1298.82 | G89: 1291.63 | H89: 1319.63 | I89: 1326.82 | J89: 1333.63 | K89: 1320 | L89: 1306 | M89: 4.06906
A90: 81 | B90: HCLTECH | C90: 1336.7 | D90: 1337.90 | E90: 1326.80 | F90: 1316.90 | G90: 1305.80 | H90: 1347.80 | I90: 1358.90 | J90: 1368.80 | K90: 1349 | L90: 1328 | M90: 18.54324
A91: 82 | B91: HDFCAMC | C91: 2928.05 | D91: 2950.23 | E91: 2902.47 | F91: 2876.88 | G91: 2829.12 | H91: 2975.82 | I91: 3023.58 | J91: 3049.17 | K91: 2998 | L91: 2924.65 | M91: 2.4822
A92: 83 | B92: HDFCBANK | C92: 1555.4 | D92: 1557.75 | E92: 1549.75 | F92: 1544.10 | G92: 1536.10 | H92: 1563.40 | I92: 1571.40 | J92: 1577.05 | K92: 1565.75 | L92: 1552.1 | M92: 110.76768
A93: 84 | B93: HDFCLIFE | C93: 682.15 | D93: 685.73 | E93: 676.47 | F93: 670.78 | G93: 661.52 | H93: 691.42 | I93: 700.68 | J93: 706.37 | K93: 695 | L93: 680.05 | M93: 21.06753
A94: 85 | B94: HEROMOTOCO | C94: 3760 | D94: 3788.45 | E94: 3711.90 | F94: 3663.80 | G94: 3587.25 | H94: 3836.55 | I94: 3913.10 | J94: 3961.20 | K94: 3865 | L94: 3740.35 | M94: 10.60628
A95: 86 | B95: HINDALCO | C95: 517.2 | D95: 519.10 | E95: 513.40 | F95: 509.60 | G95: 503.90 | H95: 522.90 | I95: 528.60 | J95: 532.40 | K95: 524.8 | L95: 515.3 | M95: 49.33886
A96: 87 | B96: HINDPETRO | C96: 345.55 | D96: 348.65 | E96: 340.95 | F96: 336.35 | G96: 328.65 | H96: 353.25 | I96: 360.95 | J96: 365.55 | K96: 356.35 | L96: 344.05 | M96: 74.6433
A97: 88 | B97: HINDUNILVR | C97: 2563.65 | D97: 2562.53 | E97: 2543.12 | F97: 2522.58 | G97: 2503.17 | H97: 2583.07 | I97: 2602.48 | J97: 2623.02 | K97: 2581.95 | L97: 2542 | M97: 13.45599
A98: 89 | B98: HINDZINC | C98: 300.15 | D98: 300.00 | E98: 298.00 | F98: 295.85 | G98: 293.85 | H98: 302.15 | I98: 304.15 | J98: 306.30 | K98: 302 | L98: 297.85 | M98: 3.95237
A99: 90 | B99: HONAUT | C99: 36679.7 | D99: 36765.22 | E99: 36519.48 | F99: 36359.27 | G99: 36113.53 | H99: 36925.43 | I99: 37171.17 | J99: 37331.38 | K99: 37010.95 | L99: 36605 | M99: 0.02549
A100: 91 | B100: ICICIBANK | C100: 946.7 | D100: 943.90 | E100: 935.80 | F100: 924.90 | G100: 916.80 | H100: 954.80 | I100: 962.90 | J100: 973.80 | K100: 952 | L100: 933 | M100: 169.86046
A101: 92 | B101: ICICIGI | C101: 1457.65 | D101: 1466.40 | E101: 1440.80 | F101: 1423.95 | G101: 1398.35 | H101: 1483.25 | I101: 1508.85 | J101: 1525.70 | K101: 1492 | L101: 1449.55 | M101: 4.54189
A102: 93 | B102: ICICIPRULI | C102: 558.8 | D102: 559.85 | E102: 552.60 | F102: 546.40 | G102: 539.15 | H102: 566.05 | I102: 573.30 | J102: 579.50 | K102: 567.1 | L102: 553.65 | M102: 12.0988
A103: 94 | B103: IDEA | C103: 13.25 | D103: 13.33 | E103: 13.12 | F103: 12.98 | G103: 12.77 | H103: 13.47 | I103: 13.68 | J103: 13.82 | K103: 13.55 | L103: 13.2 | M103: 1815.42248
A104: 95 | B104: IDFCFIRSTB | C104: 86.1 | D104: 85.97 | E104: 85.53 | F104: 84.97 | G104: 84.53 | H104: 86.53 | I104: 86.97 | J104: 87.53 | K104: 86.4 | L104: 85.4 | M104: 188.4236
A105: 96 | B105: IGL | C105: 394.75 | D105: 395.02 | E105: 389.23 | F105: 383.72 | G105: 377.93 | H105: 400.53 | I105: 406.32 | J105: 411.83 | K105: 400.8 | L105: 389.5 | M105: 29.15746
A106: 97 | B106: INDHOTEL | C106: 426.4 | D106: 426.00 | E106: 422.10 | F106: 417.80 | G106: 413.90 | H106: 430.30 | I106: 434.20 | J106: 438.50 | K106: 429.9 | L106: 421.7 | M106: 35.8751
A107: 98 | B107: INDIANB | C107: 401.15 | D107: 400.82 | E107: 395.53 | F107: 389.92 | G107: 384.63 | H107: 406.43 | I107: 411.72 | J107: 417.33 | K107: 406.1 | L107: 395.2 | M107: 33.68855
A108: 99 | B108: INDIGO | C108: 2744.95 | D108: 2735.08 | E108: 2715.22 | F108: 2685.48 | G108: 2665.62 | H108: 2764.82 | I108: 2784.68 | J108: 2814.42 | K108: 2754.95 | L108: 2705.35 | M108: 7.34476
A109: 100 | B109: INDUSINDBK | C109: 1461.05 | D109: 1470.73 | E109: 1448.47 | F109: 1435.88 | G109: 1413.62 | H109: 1483.32 | I109: 1505.58 | J109: 1518.17 | K109: 1493 | L109: 1458.15 | M109: 40.63279
A110: 101 | B110: INDUSTOWER | C110: 187.65 | D110: 187.10 | E110: 184.95 | F110: 182.25 | G110: 180.10 | H110: 189.80 | I110: 191.95 | J110: 194.65 | K110: 189.25 | L110: 184.4 | M110: 77.68619
A111: 102 | B111: INFY | C111: 1452.3 | D111: 1452.78 | E111: 1445.67 | F111: 1439.03 | G111: 1431.92 | H111: 1459.42 | I111: 1466.53 | J111: 1473.17 | K111: 1459.9 | L111: 1446.15 | M111: 34.89187
A112: 103 | B112: IOC | C112: 111.25 | D112: 111.93 | E112: 109.92 | F112: 108.58 | G112: 106.57 | H112: 113.27 | I112: 115.28 | J112: 116.62 | K112: 113.95 | L112: 110.6 | M112: 241.31009
A113: 104 | B113: IPCALAB | C113: 1149.7 | D113: 1142.22 | E113: 1131.43 | F113: 1113.17 | G113: 1102.38 | H113: 1160.48 | I113: 1171.27 | J113: 1189.53 | K113: 1153 | L113: 1123.95 | M113: 3.04454
A114: 105 | B114: IRCTC | C114: 701.3 | D114: 703.77 | E114: 697.53 | F114: 693.77 | G114: 687.53 | H114: 707.53 | I114: 713.77 | J114: 717.53 | K114: 710 | L114: 700 | M114: 10.60638
A115: 106 | B115: IRFC | C115: 75.4 | D115: 75.82 | E115: 74.38 | F115: 73.37 | G115: 71.93 | H115: 76.83 | I115: 78.27 | J115: 79.28 | K115: 77.25 | L115: 74.8 | M115: 344.11168
A116: 107 | B116: ITC | C116: 449.8 | D116: 446.05 | E116: 441.15 | F116: 432.50 | G116: 427.60 | H116: 454.70 | I116: 459.60 | J116: 468.25 | K116: 450.95 | L116: 437.4 | M116: 193.36856
A117: 108 | B117: JINDALSTEL | C117: 692.2 | D117: 685.52 | E117: 677.73 | F117: 663.27 | G117: 655.48 | H117: 699.98 | I117: 707.77 | J117: 722.23 | K117: 693.3 | L117: 671.05 | M117: 21.80409
A118: 109 | B118: JSWENERGY | C118: 424.6 | D118: 421.22 | E118: 414.13 | F118: 403.67 | G118: 396.58 | H118: 431.68 | I118: 438.77 | J118: 449.23 | K118: 428.3 | L118: 410.75 | M118: 71.05287
A119: 110 | B119: JSWSTEEL | C119: 810.8 | D119: 807.57 | E119: 800.13 | F119: 789.47 | G119: 782.03 | H119: 818.23 | I119: 825.67 | J119: 836.33 | K119: 815 | L119: 796.9 | M119: 20.64512
A120: 111 | B120: JUBLFOOD | C120: 565.4 | D120: 564.03 | E120: 561.07 | F120: 556.73 | G120: 553.77 | H120: 568.37 | I120: 571.33 | J120: 575.67 | K120: 567 | L120: 559.7 | M120: 19.46123
A121: 112 | B121: KOTAKBANK | C121: 1750.5 | D121: 1754.92 | E121: 1743.83 | F121: 1737.17 | G121: 1726.08 | H121: 1761.58 | I121: 1772.67 | J121: 1779.33 | K121: 1766 | L121: 1748.25 | M121: 20.02378
A122: 113 | B122: L&TFH | C122: 151 | D122: 151.70 | E122: 148.15 | F122: 145.30 | G122: 141.75 | H122: 154.55 | I122: 158.10 | J122: 160.95 | K122: 155.25 | L122: 148.85 | M122: 135.24713
A123: 114 | B123: LALPATHLAB | C123: 2743.05 | D123: 2735.07 | E123: 2706.13 | F123: 2669.22 | G123: 2640.28 | H123: 2771.98 | I123: 2800.92 | J123: 2837.83 | K123: 2764 | L123: 2698.15 | M123: 2.75599
A124: 115 | B124: LAURUSLABS | C124: 378.75 | D124: 380.95 | E124: 375.40 | F124: 372.05 | G124: 366.50 | H124: 384.30 | I124: 389.85 | J124: 393.20 | K124: 386.5 | L124: 377.6 | M124: 10.91037
A125: 116 | B125: LICHSGFIN | C125: 492.7 | D125: 495.50 | E125: 488.00 | F125: 483.30 | G125: 475.80 | H125: 500.20 | I125: 507.70 | J125: 512.40 | K125: 503 | L125: 490.8 | M125: 38.04499
A126: 117 | B126: LICI | C126: 670.9 | D126: 675.15 | E126: 662.90 | F126: 654.90 | G126: 642.65 | H126: 683.15 | I126: 695.40 | J126: 703.40 | K126: 687.4 | L126: 667.15 | M126: 16.16633
A127: 118 | B127: LT | C127: 3190.65 | D127: 3169.88 | E127: 3141.82 | F127: 3092.98 | G127: 3064.92 | H127: 3218.72 | I127: 3246.78 | J127: 3295.62 | K127: 3197.95 | L127: 3121.05 | M127: 21.12908
A128: 119 | B128: LTIM | C128: 5577.05 | D128: 5569.88 | E128: 5529.77 | F128: 5482.48 | G128: 5442.37 | H128: 5617.17 | I128: 5657.28 | J128: 5704.57 | K128: 5610 | L128: 5522.6 | M128: 1.95286
A129: 120 | B129: LTTS | C129: 4801.9 | D129: 4789.35 | E129: 4749.65 | F129: 4697.40 | G129: 4657.70 | H129: 4841.60 | I129: 4881.30 | J129: 4933.55 | K129: 4829.05 | L129: 4737.1 | M129: 1.5479
A130: 121 | B130: LUPIN | C130: 1296.65 | D130: 1292.77 | E130: 1280.33 | F130: 1264.02 | G130: 1251.58 | H130: 1309.08 | I130: 1321.52 | J130: 1337.83 | K130: 1305.2 | L130: 1276.45 | M130: 13.77103
A131: 122 | B131: M&M | C131: 1625.5 | D131: 1637.57 | E131: 1609.13 | F131: 1592.77 | G131: 1564.33 | H131: 1653.93 | I131: 1682.37 | J131: 1698.73 | K131: 1666 | L131: 1621.2 | M131: 24.89755
A132: 123 | B132: M&MFIN | C132: 273.65 | D132: 273.93 | E132: 270.52 | F132: 267.38 | G132: 263.97 | H132: 277.07 | I132: 280.48 | J132: 283.62 | K132: 277.35 | L132: 270.8 | M132: 32.73302
A133: 124 | B133: MANKIND | C133: 1914 | D133: 1917.02 | E133: 1895.03 | F133: 1876.07 | G133: 1854.08 | H133: 1935.98 | I133: 1957.97 | J133: 1976.93 | K133: 1939 | L133: 1898.05 | M133: 1.83029
A134: 125 | B134: MARICO | C134: 536.9 | D134: 537.37 | E134: 533.13 | F134: 529.37 | G134: 525.13 | H134: 541.13 | I134: 545.37 | J134: 549.13 | K134: 541.6 | L134: 533.6 | M134: 11.42691
A135: 126 | B135: MARUTI | C135: 10585.7 | D135: 10625.92 | E135: 10492.83 | F135: 10399.97 | G135: 10266.88 | H135: 10718.78 | I135: 10851.87 | J135: 10944.73 | K135: 10759 | L135: 10533.05 | M135: 5.91519
A136: 127 | B136: MAXHEALTH | C136: 652.35 | D136: 643.15 | E136: 631.50 | F136: 610.65 | G136: 599.00 | H136: 664.00 | I136: 675.65 | J136: 696.50 | K136: 654.8 | L136: 622.3 | M136: 22.42286
A137: 128 | B137: MCDOWELL-N | C137: 1053.8 | D137: 1052.83 | E137: 1048.67 | F137: 1043.53 | G137: 1039.37 | H137: 1057.97 | I137: 1062.13 | J137: 1067.27 | K137: 1057 | L137: 1047.7 | M137: 2.69341
A138: 129 | B138: MFSL | C138: 1020.3 | D138: 1018.73 | E138: 1012.87 | F138: 1005.43 | G138: 999.57 | H138: 1026.17 | I138: 1032.03 | J138: 1039.47 | K138: 1024.6 | L138: 1011.3 | M138: 11.05208
A139: 130 | B139: MOTHERSON | C139: 93.1 | D139: 92.75 | E139: 91.65 | F139: 90.20 | G139: 89.10 | H139: 94.20 | I139: 95.30 | J139: 96.75 | K139: 93.85 | L139: 91.3 | M139: 145.52035
A140: 131 | B140: MPHASIS | C140: 2375.2 | D140: 2366.73 | E140: 2348.47 | F140: 2321.73 | G140: 2303.47 | H140: 2393.47 | I140: 2411.73 | J140: 2438.47 | K140: 2385 | L140: 2340 | M140: 2.49951
A141: 132 | B141: MRF | C141: 111409.3 | D141: 111539.93 | E141: 110979.87 | F141: 110550.43 | G141: 109990.37 | H141: 111969.37 | I141: 112529.43 | J141: 112958.87 | K141: 112100 | L141: 111110.5 | M141: 0.03677
A142: 133 | B142: MSUMI | C142: 61.35 | D142: 61.55 | E142: 60.75 | F142: 60.15 | G142: 59.35 | H142: 62.15 | I142: 62.95 | J142: 63.55 | K142: 62.35 | L142: 60.95 | M142: 70.74229
A143: 134 | B143: MUTHOOTFIN | C143: 1450.75 | D143: 1461.58 | E143: 1435.17 | F143: 1419.58 | G143: 1393.17 | H143: 1477.17 | I143: 1503.58 | J143: 1519.17 | K143: 1488 | L143: 1446 | M143: 11.86611
A144: 135 | B144: NAUKRI | C144: 4572.9 | D144: 4581.47 | E144: 4511.93 | F144: 4450.97 | G144: 4381.43 | H144: 4642.43 | I144: 4711.97 | J144: 4772.93 | K144: 4651 | L144: 4520.5 | M144: 2.38806
A145: 136 | B145: NAVINFLUOR | C145: 3729.9 | D145: 3736.10 | E145: 3704.35 | F145: 3678.80 | G145: 3647.05 | H145: 3761.65 | I145: 3793.40 | J145: 3818.95 | K145: 3767.85 | L145: 3710.55 | M145: 1.1664
A146: 137 | B146: NESTLEIND | C146: 24338.6 | D146: 24286.67 | E146: 24208.33 | F146: 24078.07 | G146: 23999.73 | H146: 24416.93 | I146: 24495.27 | J146: 24625.53 | K146: 24365 | L146: 24156.4 | M146: 0.6365
A147: 138 | B147: NHPC | C147: 56.4 | D147: 56.20 | E147: 54.75 | F147: 53.10 | G147: 51.65 | H147: 57.85 | I147: 59.30 | J147: 60.95 | K147: 57.65 | L147: 54.55 | M147: 662.33355
A148: 139 | B148: NMDC | C148: 182.05 | D148: 182.62 | E148: 180.53 | F148: 179.02 | G148: 176.93 | H148: 184.13 | I148: 186.22 | J148: 187.73 | K148: 184.7 | L148: 181.1 | M148: 108.49741
A149: 140 | B149: NTPC | C149: 268.95 | D149: 268.72 | E149: 261.98 | F149: 255.02 | G149: 248.28 | H149: 275.68 | I149: 282.42 | J149: 289.38 | K149: 275.45 | L149: 261.75 | M149: 291.2132
A150: 141 | B150: NYKAA | C150: 176.65 | D150: 175.88 | E150: 173.77 | F150: 170.88 | G150: 168.77 | H150: 178.77 | I150: 180.88 | J150: 183.77 | K150: 178 | L150: 173 | M150: 62.42256
A151: 142 | B151: OBEROIRLTY | C151: 1415.05 | D151: 1414.43 | E151: 1404.07 | F151: 1393.08 | G151: 1382.72 | H151: 1425.42 | I151: 1435.78 | J151: 1446.77 | K151: 1424.8 | L151: 1403.45 | M151: 8.07914
A152: 143 | B152: OFSS | C152: 4043.3 | D152: 4042.43 | E152: 4004.87 | F152: 3966.43 | G152: 3928.87 | H152: 4080.87 | I152: 4118.43 | J152: 4156.87 | K152: 4080 | L152: 4004 | M152: 0.47294
A153: 144 | B153: OIL | C153: 309.9 | D153: 309.97 | E153: 305.43 | F153: 300.97 | G153: 296.43 | H153: 314.43 | I153: 318.97 | J153: 323.43 | K153: 314.5 | L153: 305.5 | M153: 21.9224
A154: 145 | B154: ONGC | C154: 194.55 | D154: 195.68 | E154: 193.12 | F154: 191.68 | G154: 189.12 | H154: 197.12 | I154: 199.68 | J154: 201.12 | K154: 198.25 | L154: 194.25 | M154: 99.3574
A155: 146 | B155: PAGEIND | C155: 37790.65 | D155: 37631.40 | E155: 37309.25 | F155: 36827.85 | G155: 36505.70 | H155: 38112.80 | I155: 38434.95 | J155: 38916.35 | K155: 37953.55 | L155: 37150 | M155: 0.23223
A156: 147 | B156: PATANJALI | C156: 1378 | D156: 1386.63 | E156: 1363.37 | F156: 1348.73 | G156: 1325.47 | H156: 1401.27 | I156: 1424.53 | J156: 1439.17 | K156: 1409.9 | L156: 1372 | M156: 2.1249
A157: 148 | B157: PAYTM | C157: 870.65 | D157: 874.00 | E157: 863.85 | F157: 857.05 | G157: 846.90 | H157: 880.80 | I157: 890.95 | J157: 897.75 | K157: 884.15 | L157: 867.2 | M157: 11.99062
A158: 149 | B158: PEL | C158: 929.15 | D158: 932.72 | E158: 923.53 | F158: 917.92 | G158: 908.73 | H158: 938.33 | I158: 947.52 | J158: 953.13 | K158: 941.9 | L158: 927.1 | M158: 8.73288
A159: 150 | B159: PERSISTENT | C159: 6433.3 | D159: 6435.55 | E159: 6387.75 | F159: 6342.20 | G159: 6294.40 | H159: 6481.10 | I159: 6528.90 | J159: 6574.45 | K159: 6483.35 | L159: 6390 | M159: 2.07847
A160: 151 | B160: PETRONET | C160: 201.95 | D160: 202.57 | E160: 200.13 | F160: 198.32 | G160: 195.88 | H160: 204.38 | I160: 206.82 | J160: 208.63 | K160: 205 | L160: 200.75 | M160: 72.34662
A161: 152 | B161: PFC | C161: 365.15 | D161: 356.83 | E161: 345.32 | F161: 325.48 | G161: 313.97 | H161: 376.67 | I161: 388.18 | J161: 408.02 | K161: 368.35 | L161: 337 | M161: 512.98211
A162: 153 | B162: PGHH | C162: 17393.15 | D162: 17322.63 | E162: 17175.32 | F162: 16957.48 | G162: 16810.17 | H162: 17540.47 | I162: 17687.78 | J162: 17905.62 | K162: 17469.95 | L162: 17104.8 | M162: 0.07836
A163: 154 | B163: PIDILITIND | C163: 2562.15 | D163: 2560.78 | E163: 2545.42 | F163: 2528.68 | G163: 2513.32 | H163: 2577.52 | I163: 2592.88 | J163: 2609.62 | K163: 2576.15 | L163: 2544.05 | M163: 3.005
A164: 155 | B164: PIIND | C164: 3816.85 | D164: 3799.68 | E164: 3777.37 | F164: 3737.88 | G164: 3715.57 | H164: 3839.17 | I164: 3861.48 | J164: 3900.97 | K164: 3822 | L164: 3760.2 | M164: 2.48448
A165: 156 | B165: PNB | C165: 80.7 | D165: 80.08 | E165: 78.67 | F165: 76.63 | G165: 75.22 | H165: 82.12 | I165: 83.53 | J165: 85.57 | K165: 81.5 | L165: 78.05 | M165: 849.58693
A166: 157 | B166: POLICYBZR | C166: 861.3 | D166: 852.72 | E166: 831.93 | F166: 802.57 | G166: 781.78 | H166: 882.08 | I166: 902.87 | J166: 932.23 | K166: 873.5 | L166: 823.35 | M166: 15.09734
A167: 158 | B167: POLYCAB | C167: 5234.55 | D167: 5268.22 | E167: 5192.43 | F167: 5150.32 | G167: 5074.53 | H167: 5310.33 | I167: 5386.12 | J167: 5428.23 | K167: 5344 | L167: 5226.1 | M167: 4.33155
A168: 159 | B168: POONAWALLA | C168: 409.85 | D168: 408.42 | E168: 403.13 | F168: 396.42 | G168: 391.13 | H168: 415.13 | I168: 420.42 | J168: 427.13 | K168: 413.7 | L168: 401.7 | M168: 56.63153
A169: 160 | B169: POWERGRID | C169: 210.2 | D169: 210.70 | E169: 208.95 | F169: 207.70 | G169: 205.95 | H169: 211.95 | I169: 213.70 | J169: 214.95 | K169: 212.45 | L169: 209.45 | M169: 207.19909
A170: 161 | B170: PRESTIGE | C170: 1037.8 | D170: 1034.43 | E170: 1020.17 | F170: 1002.53 | G170: 988.27 | H170: 1052.07 | I170: 1066.33 | J170: 1083.97 | K170: 1048.7 | L170: 1016.8 | M170: 16.25407
A171: 162 | B171: RAMCOCEM | C171: 1005.7 | D171: 1002.32 | E171: 994.68 | F171: 983.67 | G171: 976.03 | H171: 1013.33 | I171: 1020.97 | J171: 1031.98 | K171: 1009.95 | L171: 991.3 | M171: 3.03877
A172: 163 | B172: RECLTD | C172: 374 | D172: 369.27 | E172: 355.83 | F172: 337.67 | G172: 324.23 | H172: 387.43 | I172: 400.87 | J172: 419.03 | K172: 382.7 | L172: 351.1 | M172: 398.39613
A173: 164 | B173: RELIANCE | C173: 2394.3 | D173: 2389.43 | E173: 2382.47 | F173: 2370.63 | G173: 2363.67 | H173: 2401.27 | I173: 2408.23 | J173: 2420.07 | K173: 2396.4 | L173: 2377.6 | M173: 71.71421
A174: 165 | B174: SAIL | C174: 93.15 | D174: 93.18 | E174: 92.17 | F174: 91.18 | G174: 90.17 | H174: 94.17 | I174: 95.18 | J174: 96.17 | K174: 94.2 | L174: 92.2 | M174: 282.08739
A175: 166 | B175: SBICARD | C175: 739.95 | D175: 742.15 | E175: 736.80 | F175: 733.65 | G175: 728.30 | H175: 745.30 | I175: 750.65 | J175: 753.80 | K175: 747.5 | L175: 739 | M175: 11.85861
A176: 167 | B176: SBILIFE | C176: 1423.65 | D176: 1429.58 | E176: 1414.17 | F176: 1404.68 | G176: 1389.27 | H176: 1439.07 | I176: 1454.48 | J176: 1463.97 | K176: 1445 | L176: 1420.1 | M176: 8.08841
A177: 168 | B177: SBIN | C177: 571.75 | D177: 570.83 | E177: 567.47 | F177: 563.18 | G177: 559.82 | H177: 575.12 | I177: 578.48 | J177: 582.77 | K177: 574.2 | L177: 566.55 | M177: 106.1423
A178: 169 | B178: SHREECEM | C178: 27026.55 | D178: 26905.67 | E178: 26745.88 | F178: 26465.22 | G178: 26305.43 | H178: 27186.33 | I178: 27346.12 | J178: 27626.78 | K178: 27065.45 | L178: 26625 | M178: 0.16305
A179: 170 | B179: SHRIRAMFIN | C179: 2003.25 | D179: 2010.05 | E179: 1990.20 | F179: 1977.15 | G179: 1957.30 | H179: 2023.10 | I179: 2042.95 | J179: 2056.00 | K179: 2029.9 | L179: 1997 | M179: 6.0699
A180: 171 | B180: SIEMENS | C180: 3753.1 | D180: 3726.75 | E180: 3673.55 | F180: 3594.00 | G180: 3540.80 | H180: 3806.30 | I180: 3859.50 | J180: 3939.05 | K180: 3779.95 | L180: 3647.2 | M180: 4.01008
A181: 172 | B181: SONACOMS | C181: 562.15 | D181: 561.38 | E181: 556.77 | F181: 551.38 | G181: 546.77 | H181: 566.77 | I181: 571.38 | J181: 576.77 | K181: 566 | L181: 556 | M181: 20.72845
A182: 173 | B182: SRF | C182: 2412.5 | D182: 2406.10 | E182: 2367.20 | F182: 2321.90 | G182: 2283.00 | H182: 2451.40 | I182: 2490.30 | J182: 2535.60 | K182: 2445 | L182: 2360.8 | M182: 11.17033
A183: 174 | B183: SUNPHARMA | C183: 1231.25 | D183: 1232.70 | E183: 1223.55 | F183: 1215.85 | G183: 1206.70 | H183: 1240.40 | I183: 1249.55 | J183: 1257.25 | K183: 1241.85 | L183: 1225 | M183: 17.49751
A184: 175 | B184: SUNTV | C184: 673.75 | D184: 677.42 | E184: 667.98 | F184: 662.22 | G184: 652.78 | H184: 683.18 | I184: 692.62 | J184: 698.38 | K184: 686.85 | L184: 671.65 | M184: 10.77574
A185: 176 | B185: SYNGENE | C185: 746.7 | D185: 751.68 | E185: 739.37 | F185: 732.03 | G185: 719.72 | H185: 759.02 | I185: 771.33 | J185: 778.67 | K185: 764 | L185: 744.35 | M185: 8.40576
A186: 177 | B186: TATACHEM | C186: 969.95 | D186: 972.23 | E186: 963.77 | F186: 957.58 | G186: 949.12 | H186: 978.42 | I186: 986.88 | J186: 993.07 | K186: 980.7 | L186: 966.05 | M186: 6.03363
A187: 178 | B187: TATACOMM | C187: 1659.85 | D187: 1680.95 | E187: 1627.95 | F187: 1596.05 | G187: 1543.05 | H187: 1712.85 | I187: 1765.85 | J187: 1797.75 | K187: 1733.95 | L187: 1649.05 | M187: 16.66654
A188: 179 | B188: TATACONSUM | C188: 942.85 | D188: 945.17 | E188: 937.43 | F188: 932.02 | G188: 924.28 | H188: 950.58 | I188: 958.32 | J188: 963.73 | K188: 952.9 | L188: 939.75 | M188: 11.29388
A189: 180 | B189: TATAELXSI | C189: 8423.25 | D189: 8393.20 | E189: 8346.40 | F189: 8269.55 | G189: 8222.75 | H189: 8470.05 | I189: 8516.85 | J189: 8593.70 | K189: 8440 | L189: 8316.35 | M189: 1.27176
A190: 181 | B190: TATAMOTORS | C190: 705.45 | D190: 706.48 | E190: 701.97 | F190: 698.48 | G190: 693.97 | H190: 709.97 | I190: 714.48 | J190: 717.97 | K190: 711 | L190: 703 | M190: 105.65415
A191: 182 | B191: TATAPOWER | C191: 276 | D191: 274.35 | E191: 270.20 | F191: 264.40 | G191: 260.25 | H191: 280.15 | I191: 284.30 | J191: 290.10 | K191: 278.5 | L191: 268.55 | M191: 321.59928
A192: 183 | B192: TATASTEEL | C192: 130 | D192: 129.45 | E192: 128.60 | F192: 127.20 | G192: 126.35 | H192: 130.85 | I192: 131.70 | J192: 133.10 | K192: 130.3 | L192: 128.05 | M192: 311.92397
A193: 184 | B193: TCS | C193: 3511.65 | D193: 3506.22 | E193: 3495.48 | F193: 3479.32 | G193: 3468.58 | H193: 3522.38 | I193: 3533.12 | J193: 3549.28 | K193: 3516.95 | L193: 3490.05 | M193: 11.72141
A194: 185 | B194: TECHM | C194: 1220.55 | D194: 1219.63 | E194: 1212.47 | F194: 1204.38 | G194: 1197.22 | H194: 1227.72 | I194: 1234.88 | J194: 1242.97 | K194: 1226.8 | L194: 1211.55 | M194: 10.17856
A195: 186 | B195: TIINDIA | C195: 3291.7 | D195: 3320.70 | E195: 3252.85 | F195: 3214.00 | G195: 3146.15 | H195: 3359.55 | I195: 3427.40 | J195: 3466.25 | K195: 3388.55 | L195: 3281.85 | M195: 2.1394
A196: 187 | B196: TITAN | C196: 3489.5 | D196: 3486.50 | E196: 3473.00 | F196: 3456.50 | G196: 3443.00 | H196: 3503.00 | I196: 3516.50 | J196: 3533.00 | K196: 3500 | L196: 3470 | M196: 6.55263
A197: 188 | B197: TORNTPHARM | C197: 2151.25 | D197: 2142.40 | E197: 2127.35 | F197: 2103.45 | G197: 2088.40 | H197: 2166.30 | I197: 2181.35 | J197: 2205.25 | K197: 2157.45 | L197: 2118.5 | M197: 3.08776
A198: 189 | B198: TORNTPOWER | C198: 952.45 | D198: 958.97 | E198: 938.48 | F198: 924.52 | G198: 904.03 | H198: 972.93 | I198: 993.42 | J198: 1007.38 | K198: 979.45 | L198: 945 | M198: 6.35463
A199: 190 | B199: TRENT | C199: 2807.7 | D199: 2799.17 | E199: 2760.93 | F199: 2714.17 | G199: 2675.93 | H199: 2845.93 | I199: 2884.17 | J199: 2930.93 | K199: 2837.4 | L199: 2752.4 | M199: 10.49846
A200: 191 | B200: TRIDENT | C200: 36.3 | D200: 36.47 | E200: 36.08 | F200: 35.87 | G200: 35.48 | H200: 36.68 | I200: 37.07 | J200: 37.28 | K200: 36.85 | L200: 36.25 | M200: 67.54465
A201: 192 | B201: TTML | C201: 94.1 | D201: 94.50 | E201: 91.90 | F201: 89.70 | G201: 87.10 | H201: 96.70 | I201: 99.30 | J201: 101.50 | K201: 97.1 | L201: 92.3 | M201: 88.45546
A202: 193 | B202: TVSMOTOR | C202: 1909.8 | D202: 1900.50 | E202: 1877.00 | F202: 1844.20 | G202: 1820.70 | H202: 1933.30 | I202: 1956.80 | J202: 1989.60 | K202: 1924 | L202: 1867.7 | M202: 12.69657
A203: 194 | B203: UBL | C203: 1672 | D203: 1665.02 | E203: 1650.13 | F203: 1628.27 | G203: 1613.38 | H203: 1686.88 | I203: 1701.77 | J203: 1723.63 | K203: 1679.9 | L203: 1643.15 | M203: 1.98248
A204: 195 | B204: ULTRACEMCO | C204: 9033.85 | D204: 9056.42 | E204: 8949.43 | F204: 8865.02 | G204: 8758.03 | H204: 9140.83 | I204: 9247.82 | J204: 9332.23 | K204: 9163.4 | L204: 8972 | M204: 3.53015
A205: 196 | B205: UNIONBANK | C205: 108.8 | D205: 109.05 | E205: 107.40 | F205: 106.00 | G205: 104.35 | H205: 110.45 | I205: 112.10 | J205: 113.50 | K205: 110.7 | L205: 107.65 | M205: 202.04953
... 28 more rows

Sheet MidCap Intra
L5: Back To Main Page
A6: FOR INTRA DAY TRADING | K6: =Main!B10 -> 2023-12-04
A9: Sr.no | B9: Scrip | C9: CLOSE RATE | D9: Pivot Point | E9: Supports | H9: Resistances
E10: S1 | F10: S2 | G10: S3 | H10: R1 | I10: R2 | J10: R3 | K10: HIGH | L10: LOW | M10: Total Trade Quanity in Lakhs
A11: 1 | B11: 360ONE | C11: 585.8 | D11: 582.75 | E11: 577.50 | F11: 569.20 | G11: 563.95 | H11: 591.05 | I11: 596.30 | J11: 604.60 | K11: 588 | L11: 574.45 | M11: 4.6802
A12: 2 | B12: 3MINDIA | C12: 31088.45 | D12: 31058.47 | E12: 30629.98 | F12: 30171.52 | G12: 29743.03 | H12: 31516.93 | I12: 31945.42 | J12: 32403.88 | K12: 31486.95 | L12: 30600 | M12: 0.03005
A13: 3 | B13: AARTIDRUGS | C13: 485.6 | D13: 489.67 | E13: 480.93 | F13: 476.27 | G13: 467.53 | H13: 494.33 | I13: 503.07 | J13: 507.73 | K13: 498.4 | L13: 485 | M13: 1.51693
A14: 4 | B14: AARTIIND | C14: 553.3 | D14: 553.50 | E14: 546.00 | F14: 538.70 | G14: 531.20 | H14: 560.80 | I14: 568.30 | J14: 575.60 | K14: 561 | L14: 546.2 | M14: 28.7148
A15: 5 | B15: AAVAS | C15: 1425.75 | D15: 1432.77 | E15: 1412.58 | F15: 1399.42 | G15: 1379.23 | H15: 1445.93 | I15: 1466.12 | J15: 1479.28 | K15: 1452.95 | L15: 1419.6 | M15: 2.40903
A16: 6 | B16: ABB | C16: 4387.25 | D16: 4404.02 | E16: 4359.03 | F16: 4330.82 | G16: 4285.83 | H16: 4432.23 | I16: 4477.22 | J16: 4505.43 | K16: 4449 | L16: 4375.8 | M16: 1.50704
A17: 7 | B17: ABBOTINDIA | C17: 23679.5 | D17: 23739.87 | E17: 23553.83 | F17: 23428.17 | G17: 23242.13 | H17: 23865.53 | I17: 24051.57 | J17: 24177.23 | K17: 23925.9 | L17: 23614.2 | M17: 0.06396
A18: 8 | B18: ACC | C18: 1900.25 | D18: 1899.12 | E18: 1887.03 | F18: 1873.82 | G18: 1861.73 | H18: 1912.33 | I18: 1924.42 | J18: 1937.63 | K18: 1911.2 | L18: 1885.9 | M18: 4.65342
A19: 9 | B19: ADANIENT | C19: 2362.7 | D19: 2373.38 | E19: 2343.42 | F19: 2324.13 | G19: 2294.17 | H19: 2392.67 | I19: 2422.63 | J19: 2441.92 | K19: 2403.35 | L19: 2354.1 | M19: 17.92983
A20: 10 | B20: ADANIGREEN | C20: 1026.5 | D20: 1030.50 | E20: 1016.00 | F20: 1005.50 | G20: 991.00 | H20: 1041.00 | I20: 1055.50 | J20: 1066.00 | K20: 1045 | L20: 1020 | M20: 11.81792
A21: 11 | B21: ADANIPORTS | C21: 827.8 | D21: 830.83 | E21: 822.47 | F21: 817.13 | G21: 808.77 | H21: 836.17 | I21: 844.53 | J21: 849.87 | K21: 839.2 | L21: 825.5 | M21: 29.32775
A22: 12 | B22: ADANIPOWER | C22: 440.4 | D22: 443.52 | E22: 432.23 | F22: 424.07 | G22: 412.78 | H22: 451.68 | I22: 462.97 | J22: 471.13 | K22: 454.8 | L22: 435.35 | M22: 137.612
A23: 13 | B23: ATGL | C23: 701.45 | D23: 707.17 | E23: 691.33 | F23: 681.22 | G23: 665.38 | H23: 717.28 | I23: 733.12 | J23: 743.23 | K23: 723 | L23: 697.05 | M23: 22.95605
A24: 14 | B24: AWL | C24: 340.25 | D24: 342.08 | E24: 337.17 | F24: 334.08 | G24: 329.17 | H24: 345.17 | I24: 350.08 | J24: 353.17 | K24: 347 | L24: 339 | M24: 21.40231
A25: 15 | B25: ABCAPITAL | C25: 169.9 | D25: 170.38 | E25: 168.52 | F25: 167.13 | G25: 165.27 | H25: 171.77 | I25: 173.63 | J25: 175.02 | K25: 172.25 | L25: 169 | M25: 77.9361
A26: 16 | B26: ABFRL | C26: 231.4 | D26: 233.07 | E26: 229.33 | F26: 227.27 | G26: 223.53 | H26: 235.13 | I26: 238.87 | J26: 240.93 | K26: 236.8 | L26: 231 | M26: 30.27206
A27: 17 | B27: AEGISCHEM | C27: 369.3 | D27: 370.12 | E27: 364.58 | F27: 359.87 | G27: 354.33 | H27: 374.83 | I27: 380.37 | J27: 385.08 | K27: 375.65 | L27: 365.4 | M27: 9.50919
A28: 18 | B28: AETHER | C28: 794.85 | D28: 798.45 | E28: 776.90 | F28: 758.95 | G28: 737.40 | H28: 816.40 | I28: 837.95 | J28: 855.90 | K28: 820 | L28: 780.5 | M28: 8.67208
A29: 19 | B29: AFFLE | C29: 1135.4 | D29: 1131.92 | E29: 1124.33 | F29: 1113.27 | G29: 1105.68 | H29: 1142.98 | I29: 1150.57 | J29: 1161.63 | K29: 1139.5 | L29: 1120.85 | M29: 3.13221
A30: 20 | B30: AIAENG | C30: 3634.8 | D30: 3630.82 | E30: 3604.03 | F30: 3573.27 | G30: 3546.48 | H30: 3661.58 | I30: 3688.37 | J30: 3719.13 | K30: 3657.6 | L30: 3600.05 | M30: 0.44767
A31: 21 | B31: AJANTPHARM | C31: 1963 | D31: 1969.82 | E31: 1940.98 | F31: 1918.97 | G31: 1890.13 | H31: 1991.83 | I31: 2020.67 | J31: 2042.68 | K31: 1998.65 | L31: 1947.8 | M31: 0.4809
A32: 22 | B32: APLLTD | C32: 751.15 | D32: 750.15 | E32: 741.35 | F32: 731.55 | G32: 722.75 | H32: 759.95 | I32: 768.75 | J32: 778.55 | K32: 758.95 | L32: 740.35 | M32: 3.17173
A33: 23 | B33: ALKEM | C33: 4647.9 | D33: 4670.53 | E33: 4599.12 | F33: 4550.33 | G33: 4478.92 | H33: 4719.32 | I33: 4790.73 | J33: 4839.52 | K33: 4741.95 | L33: 4621.75 | M33: 2.64101
A34: 24 | B34: ALKYLAMINE | C34: 2162.7 | D34: 2166.83 | E34: 2146.92 | F34: 2131.13 | G34: 2111.22 | H34: 2182.62 | I34: 2202.53 | J34: 2218.32 | K34: 2186.75 | L34: 2151.05 | M34: 0.35251
A35: 25 | B35: ARE&M | C35: 769.2 | D35: 761.55 | E35: 723.65 | F35: 678.10 | G35: 640.20 | H35: 807.10 | I35: 845.00 | J35: 890.55 | K35: 799.45 | L35: 716 | M35: 79.91523
A36: 26 | B36: AMBER | C36: 3132.65 | D36: 3130.55 | E36: 3062.10 | F36: 2991.55 | G36: 2923.10 | H36: 3201.10 | I36: 3269.55 | J36: 3340.10 | K36: 3199 | L36: 3060 | M36: 1.46223
A37: 27 | B37: AMBUJACEM | C37: 442 | D37: 441.33 | E37: 438.67 | F37: 435.33 | G37: 432.67 | H37: 444.67 | I37: 447.33 | J37: 450.67 | K37: 444 | L37: 438 | M37: 24.78791
A38: 28 | B38: ANGELONE | C38: 3055.55 | D38: 3070.22 | E38: 3015.43 | F38: 2975.32 | G38: 2920.53 | H38: 3110.33 | I38: 3165.12 | J38: 3205.23 | K38: 3125 | L38: 3030.1 | M38: 5.17392
A39: 29 | B39: ANURAS | C39: 1013.8 | D39: 1007.47 | E39: 995.28 | F39: 976.77 | G39: 964.58 | H39: 1025.98 | I39: 1038.17 | J39: 1056.68 | K39: 1019.65 | L39: 988.95 | M39: 3.18304
A40: 30 | B40: APARINDS | C40: 5531 | D40: 5574.27 | E40: 5467.73 | F40: 5404.47 | G40: 5297.93 | H40: 5637.53 | I40: 5744.07 | J40: 5807.33 | K40: 5680.8 | L40: 5511 | M40: 0.95447
A41: 31 | B41: APLAPOLLO | C41: 1644.95 | D41: 1676.82 | E41: 1608.63 | F41: 1572.32 | G41: 1504.13 | H41: 1713.13 | I41: 1781.32 | J41: 1817.63 | K41: 1745 | L41: 1640.5 | M41: 10.54816
A42: 32 | B42: APOLLOHOSP | C42: 5591.15 | D42: 5603.05 | E42: 5518.45 | F42: 5445.75 | G42: 5361.15 | H42: 5675.75 | I42: 5760.35 | J42: 5833.05 | K42: 5687.65 | L42: 5530.35 | M42: 5.4699
A43: 33 | B43: APOLLOTYRE | C43: 442.45 | D43: 439.77 | E43: 433.73 | F43: 425.02 | G43: 418.98 | H43: 448.48 | I43: 454.52 | J43: 463.23 | K43: 445.8 | L43: 431.05 | M43: 48.70523
A44: 34 | B44: APTUS | C44: 296.05 | D44: 297.30 | E44: 290.00 | F44: 283.95 | G44: 276.65 | H44: 303.35 | I44: 310.65 | J44: 316.70 | K44: 304.6 | L44: 291.25 | M44: 13.15766
A45: 35 | B45: ACI | C45: 591.4 | D45: 588.28 | E45: 581.67 | F45: 571.93 | G45: 565.32 | H45: 598.02 | I45: 604.63 | J45: 614.37 | K45: 594.9 | L45: 578.55 | M45: 3.17201
A46: 36 | B46: ASAHIINDIA | C46: 570.3 | D46: 572.47 | E46: 563.98 | F46: 557.67 | G46: 549.18 | H46: 578.78 | I46: 587.27 | J46: 593.58 | K46: 580.95 | L46: 566.15 | M46: 0.52908
A47: 37 | B47: ASHOKLEY | C47: 176.3 | D47: 178.52 | E47: 172.83 | F47: 169.37 | G47: 163.68 | H47: 181.98 | I47: 187.67 | J47: 191.13 | K47: 184.2 | L47: 175.05 | M47: 131.66604
A48: 38 | B48: ASIANPAINT | C48: 3173.4 | D48: 3168.08 | E48: 3145.57 | F48: 3117.73 | G48: 3095.22 | H48: 3195.92 | I48: 3218.43 | J48: 3246.27 | K48: 3190.6 | L48: 3140.25 | M48: 9.60196
A49: 39 | B49: ASTERDM | C49: 401.25 | D49: 403.55 | E49: 382.70 | F49: 364.15 | G49: 343.30 | H49: 422.10 | I49: 442.95 | J49: 461.50 | K49: 424.4 | L49: 385 | M49: 63.4959
A50: 40 | B50: ASTRAL | C50: 1978.45 | D50: 1969.33 | E50: 1953.67 | F50: 1928.88 | G50: 1913.22 | H50: 1994.12 | I50: 2009.78 | J50: 2034.57 | K50: 1985 | L50: 1944.55 | M50: 7.90565
A51: 41 | B51: ATUL | C51: 6651.65 | D51: 6648.22 | E51: 6616.43 | F51: 6581.22 | G51: 6549.43 | H51: 6683.43 | I51: 6715.22 | J51: 6750.43 | K51: 6680 | L51: 6613 | M51: 0.46185
A52: 42 | B52: AUBANK | C52: 742.45 | D52: 744.63 | E52: 737.87 | F52: 733.28 | G52: 726.52 | H52: 749.22 | I52: 755.98 | J52: 760.57 | K52: 751.4 | L52: 740.05 | M52: 11.78096
A53: 43 | B53: AUROPHARMA | C53: 1033.75 | D53: 1041.47 | E53: 1023.28 | F53: 1012.82 | G53: 994.63 | H53: 1051.93 | I53: 1070.12 | J53: 1080.58 | K53: 1059.65 | L53: 1031 | M53: 12.27116
A54: 44 | B54: AVANTIFEED | C54: 396.05 | D54: 396.02 | E54: 393.03 | F54: 390.02 | G54: 387.03 | H54: 399.03 | I54: 402.02 | J54: 405.03 | K54: 399 | L54: 393 | M54: 1.23225
A55: 45 | B55: DMART | C55: 3988.4 | D55: 3971.52 | E55: 3948.03 | F55: 3907.67 | G55: 3884.18 | H55: 4011.88 | I55: 4035.37 | J55: 4075.73 | K55: 3995 | L55: 3931.15 | M55: 3.80041
A56: 46 | B56: AXISBANK | C56: 1104.65 | D56: 1094.62 | E56: 1080.23 | F56: 1055.82 | G56: 1041.43 | H56: 1119.03 | I56: 1133.42 | J56: 1157.83 | K56: 1109 | L56: 1070.2 | M56: 144.28758
A57: 47 | B57: BAJAJ-AUTO | C57: 6046.05 | D57: 6046.45 | E57: 6002.90 | F57: 5959.75 | G57: 5916.20 | H57: 6089.60 | I57: 6133.15 | J57: 6176.30 | K57: 6090 | L57: 6003.3 | M57: 4.39023
A58: 48 | B58: BAJFINANCE | C58: 7259.35 | D58: 7227.07 | E58: 7174.28 | F58: 7089.22 | G58: 7036.43 | H58: 7312.13 | I58: 7364.92 | J58: 7449.98 | K58: 7279.85 | L58: 7142 | M58: 9.00477
A59: 49 | B59: BAJAJFINSV | C59: 1685.95 | D59: 1681.53 | E59: 1674.37 | F59: 1662.78 | G59: 1655.62 | H59: 1693.12 | I59: 1700.28 | J59: 1711.87 | K59: 1688.7 | L59: 1669.95 | M59: 11.01136
A60: 50 | B60: BAJAJHLDNG | C60: 7332.9 | D60: 7344.47 | E60: 7248.98 | F60: 7165.07 | G60: 7069.58 | H60: 7428.38 | I60: 7523.87 | J60: 7607.78 | K60: 7439.95 | L60: 7260.55 | M60: 0.30157
A61: 51 | B61: BALAMINES | C61: 2017.7 | D61: 2021.37 | E61: 2004.93 | F61: 1992.17 | G61: 1975.73 | H61: 2034.13 | I61: 2050.57 | J61: 2063.33 | K61: 2037.8 | L61: 2008.6 | M61: 0.30507
A62: 52 | B62: BALKRISIND | C62: 2559.7 | D62: 2568.73 | E62: 2538.97 | F62: 2518.23 | G62: 2488.47 | H62: 2589.47 | I62: 2619.23 | J62: 2639.97 | K62: 2598.5 | L62: 2548 | M62: 2.65697
A63: 53 | B63: BALRAMCHIN | C63: 471.5 | D63: 472.48 | E63: 468.27 | F63: 465.03 | G63: 460.82 | H63: 475.72 | I63: 479.93 | J63: 483.17 | K63: 476.7 | L63: 469.25 | M63: 9.79612
A64: 54 | B64: BANDHANBNK | C64: 226.25 | D64: 227.23 | E64: 224.57 | F64: 222.88 | G64: 220.22 | H64: 228.92 | I64: 231.58 | J64: 233.27 | K64: 229.9 | L64: 225.55 | M64: 66.73816
A65: 55 | B65: BANKBARODA | C65: 201.85 | D65: 201.35 | E65: 198.85 | F65: 195.85 | G65: 193.35 | H65: 204.35 | I65: 206.85 | J65: 209.85 | K65: 203.85 | L65: 198.35 | M65: 219.23402
A66: 56 | B66: BANKINDIA | C66: 107.5 | D66: 106.92 | E66: 104.78 | F66: 102.07 | G66: 99.93 | H66: 109.63 | I66: 111.77 | J66: 114.48 | K66: 109.05 | L66: 104.2 | M66: 239.26731
A67: 57 | B67: MAHABANK | C67: 44.35 | D67: 44.57 | E67: 43.73 | F67: 43.12 | G67: 42.28 | H67: 45.18 | I67: 46.02 | J67: 46.63 | K67: 45.4 | L67: 43.95 | M67: 253.62443
A68: 58 | B68: BASF | C68: 2952.65 | D68: 2962.40 | E68: 2934.80 | F68: 2916.95 | G68: 2889.35 | H68: 2980.25 | I68: 3007.85 | J68: 3025.70 | K68: 2990 | L68: 2944.55 | M68: 0.09843
A69: 59 | B69: BATAINDIA | C69: 1618.1 | D69: 1621.90 | E69: 1609.80 | F69: 1601.50 | G69: 1589.40 | H69: 1630.20 | I69: 1642.30 | J69: 1650.60 | K69: 1634 | L69: 1613.6 | M69: 0.87118
A70: 60 | B70: BAYERCROP | C70: 5373.95 | D70: 5388.65 | E70: 5332.30 | F70: 5290.65 | G70: 5234.30 | H70: 5430.30 | I70: 5486.65 | J70: 5528.30 | K70: 5445 | L70: 5347 | M70: 0.07924
A71: 61 | B71: BEML | C71: 2455.2 | D71: 2470.57 | E71: 2425.63 | F71: 2396.07 | G71: 2351.13 | H71: 2500.13 | I71: 2545.07 | J71: 2574.63 | K71: 2515.5 | L71: 2441 | M71: 2.95159
A72: 62 | B72: BERGEPAINT | C72: 586.15 | D72: 587.35 | E72: 572.80 | F72: 559.45 | G72: 544.90 | H72: 600.70 | I72: 615.25 | J72: 628.60 | K72: 601.9 | L72: 574 | M72: 27.95922
A73: 63 | B73: BDL | C73: 1224.4 | D73: 1213.48 | E73: 1195.97 | F73: 1167.53 | G73: 1150.02 | H73: 1241.92 | I73: 1259.43 | J73: 1287.87 | K73: 1231 | L73: 1185.05 | M73: 30.19281
A74: 64 | B74: BEL | C74: 147.45 | D74: 148.17 | E74: 146.03 | F74: 144.62 | G74: 142.48 | H74: 149.58 | I74: 151.72 | J74: 153.13 | K74: 150.3 | L74: 146.75 | M74: 344.66616
A75: 65 | B75: BHARATFORG | C75: 1156.5 | D75: 1148.18 | E75: 1132.92 | F75: 1109.33 | G75: 1094.07 | H75: 1171.77 | I75: 1187.03 | J75: 1210.62 | K75: 1163.45 | L75: 1124.6 | M75: 27.14425
A76: 66 | B76: BHEL | C76: 170.5 | D76: 171.38 | E76: 168.62 | F76: 166.73 | G76: 163.97 | H76: 173.27 | I76: 176.03 | J76: 177.92 | K76: 174.15 | L76: 169.5 | M76: 376.23687
A77: 67 | B77: BPCL | C77: 438 | D77: 437.93 | E77: 433.47 | F77: 428.93 | G77: 424.47 | H77: 442.47 | I77: 446.93 | J77: 451.47 | K77: 442.4 | L77: 433.4 | M77: 96.39421
A78: 68 | B78: BHARTIARTL | C78: 1014.7 | D78: 1015.15 | E78: 1007.75 | F78: 1000.80 | G78: 993.40 | H78: 1022.10 | I78: 1029.50 | J78: 1036.45 | K78: 1022.55 | L78: 1008.2 | M78: 55.4495
A79: 69 | B79: BIKAJI | C79: 553.85 | D79: 556.37 | E79: 547.93 | F79: 542.02 | G79: 533.58 | H79: 562.28 | I79: 570.72 | J79: 576.63 | K79: 564.8 | L79: 550.45 | M79: 1.90334
A80: 70 | B80: BIOCON | C80: 240.65 | D80: 241.93 | E80: 238.77 | F80: 236.88 | G80: 233.72 | H80: 243.82 | I80: 246.98 | J80: 248.87 | K80: 245.1 | L80: 240.05 | M80: 30.20077
A81: 71 | B81: BIRLACORPN | C81: 1424.85 | D81: 1409.03 | E81: 1382.72 | F81: 1340.58 | G81: 1314.27 | H81: 1451.17 | I81: 1477.48 | J81: 1519.62 | K81: 1435.35 | L81: 1366.9 | M81: 2.65711
A82: 72 | B82: BSOFT | C82: 634.7 | D82: 635.68 | E82: 628.97 | F82: 623.23 | G82: 616.52 | H82: 641.42 | I82: 648.13 | J82: 653.87 | K82: 642.4 | L82: 629.95 | M82: 22.55086
A83: 73 | B83: BLS | C83: 262.8 | D83: 264.03 | E83: 260.77 | F83: 258.73 | G83: 255.47 | H83: 266.07 | I83: 269.33 | J83: 271.37 | K83: 267.3 | L83: 262 | M83: 7.21636
A84: 74 | B84: BLUEDART | C84: 7060.8 | D84: 7095.65 | E84: 6992.35 | F84: 6923.90 | G84: 6820.60 | H84: 7164.10 | I84: 7267.40 | J84: 7335.85 | K84: 7198.95 | L84: 7027.2 | M84: 0.10164
A85: 75 | B85: BLUESTARCO | C85: 989 | D85: 995.28 | E85: 980.72 | F85: 972.43 | G85: 957.87 | H85: 1003.57 | I85: 1018.13 | J85: 1026.42 | K85: 1009.85 | L85: 987 | M85: 1.09354
A86: 76 | B86: BBTC | C86: 1412.35 | D86: 1405.35 | E86: 1377.00 | F86: 1341.65 | G86: 1313.30 | H86: 1440.70 | I86: 1469.05 | J86: 1504.40 | K86: 1433.7 | L86: 1370 | M86: 2.94669
A87: 77 | B87: BORORENEW | C87: 432.05 | D87: 436.85 | E87: 426.20 | F87: 420.35 | G87: 409.70 | H87: 442.70 | I87: 453.35 | J87: 459.20 | K87: 447.5 | L87: 431 | M87: 3.16635
A88: 78 | B88: BOSCHLTD | C88: 22083.55 | D88: 21899.63 | E88: 21673.92 | F88: 21264.28 | G88: 21038.57 | H88: 22309.27 | I88: 22534.98 | J88: 22944.62 | K88: 22125.35 | L88: 21490 | M88: 0.49102
A89: 79 | B89: BRIGADE | C89: 838.55 | D89: 863.17 | E89: 791.38 | F89: 744.22 | G89: 672.43 | H89: 910.33 | I89: 982.12 | J89: 1029.28 | K89: 934.95 | L89: 816 | M89: 18.25525
A90: 80 | B90: BCG | C90: 16.75 | D90: 16.93 | E90: 16.47 | F90: 16.18 | G90: 15.72 | H90: 17.22 | I90: 17.68 | J90: 17.97 | K90: 17.4 | L90: 16.65 | M90: 96.76928
A91: 81 | B91: BRITANNIA | C91: 4970.75 | D91: 4938.27 | E91: 4892.53 | F91: 4814.32 | G91: 4768.58 | H91: 5016.48 | I91: 5062.22 | J91: 5140.43 | K91: 4984 | L91: 4860.05 | M91: 4.85597
A92: 82 | B92: BSE | C92: 2498.65 | D92: 2516.25 | E92: 2457.50 | F92: 2416.35 | G92: 2357.60 | H92: 2557.40 | I92: 2616.15 | J92: 2657.30 | K92: 2575 | L92: 2475.1 | M92: 18.69971
A93: 83 | B93: MAPMYINDIA | C93: 2207.6 | D93: 2222.02 | E93: 2170.58 | F93: 2133.57 | G93: 2082.13 | H93: 2259.03 | I93: 2310.47 | J93: 2347.48 | K93: 2273.45 | L93: 2185 | M93: 1.87369
A94: 84 | B94: CAMPUS | C94: 276 | D94: 276.57 | E94: 274.43 | F94: 272.87 | G94: 270.73 | H94: 278.13 | I94: 280.27 | J94: 281.83 | K94: 278.7 | L94: 275 | M94: 4.15291
A95: 85 | B95: CANFINHOME | C95: 813.55 | D95: 803.08 | E95: 789.47 | F95: 765.38 | G95: 751.77 | H95: 827.17 | I95: 840.78 | J95: 864.87 | K95: 816.7 | L95: 779 | M95: 19.18869
A96: 86 | B96: CANBK | C96: 410.3 | D96: 411.45 | E96: 403.85 | F96: 397.40 | G96: 389.80 | H96: 417.90 | I96: 425.50 | J96: 431.95 | K96: 419.05 | L96: 405 | M96: 99.40229
A97: 87 | B97: CGCL | C97: 742.4 | D97: 742.70 | E97: 734.80 | F97: 727.20 | G97: 719.30 | H97: 750.30 | I97: 758.20 | J97: 765.80 | K97: 750.6 | L97: 735.1 | M97: 1.04115
A98: 88 | B98: CARBORUNIV | C98: 1161.5 | D98: 1171.17 | E98: 1148.83 | F98: 1136.17 | G98: 1113.83 | H98: 1183.83 | I98: 1206.17 | J98: 1218.83 | K98: 1193.5 | L98: 1158.5 | M98: 1.25332
A99: 89 | B99: CASTROLIND | C99: 140.1 | D99: 140.22 | E99: 138.48 | F99: 136.87 | G99: 135.13 | H99: 141.83 | I99: 143.57 | J99: 145.18 | K99: 141.95 | L99: 138.6 | M99: 19.13617
A100: 90 | B100: CCL | C100: 657.5 | D100: 663.15 | E100: 648.35 | F100: 639.20 | G100: 624.40 | H100: 672.30 | I100: 687.10 | J100: 696.25 | K100: 677.95 | L100: 654 | M100: 1.76404
A101: 91 | B101: CEATLTD | C101: 2171.9 | D101: 2151.18 | E101: 2113.07 | F101: 2054.23 | G101: 2016.12 | H101: 2210.02 | I101: 2248.13 | J101: 2306.97 | K101: 2189.3 | L101: 2092.35 | M101: 14.21153
A102: 92 | B102: CENTRALBK | C102: 44.3 | D102: 44.53 | E102: 43.82 | F102: 43.33 | G102: 42.62 | H102: 45.02 | I102: 45.73 | J102: 46.22 | K102: 45.25 | L102: 44.05 | M102: 100.39113
A103: 93 | B103: CDSL | C103: 1898.25 | D103: 1905.97 | E103: 1882.93 | F103: 1867.62 | G103: 1844.58 | H103: 1921.28 | I103: 1944.32 | J103: 1959.63 | K103: 1929 | L103: 1890.65 | M103: 11.3092
A104: 94 | B104: CENTURYPLY | C104: 677.05 | D104: 666.33 | E104: 652.17 | F104: 627.28 | G104: 613.12 | H104: 691.22 | I104: 705.38 | J104: 730.27 | K104: 680.5 | L104: 641.45 | M104: 6.29358
A105: 95 | B105: CENTURYTEX | C105: 1277.55 | D105: 1277.18 | E105: 1258.37 | F105: 1239.18 | G105: 1220.37 | H105: 1296.37 | I105: 1315.18 | J105: 1334.37 | K105: 1296 | L105: 1258 | M105: 1.94108
A106: 96 | B106: CERA | C106: 8655.75 | D106: 8629.30 | E106: 8558.60 | F106: 8461.45 | G106: 8390.75 | H106: 8726.45 | I106: 8797.15 | J106: 8894.30 | K106: 8700 | L106: 8532.15 | M106: 0.13063
A107: 97 | B107: CESC | C107: 100.5 | D107: 99.80 | E107: 98.20 | F107: 95.90 | G107: 94.30 | H107: 102.10 | I107: 103.70 | J107: 106.00 | K107: 101.4 | L107: 97.5 | M107: 200.65803
A108: 98 | B108: CGPOWER | C108: 455.95 | D108: 452.67 | E108: 446.43 | F108: 436.92 | G108: 430.68 | H108: 462.18 | I108: 468.42 | J108: 477.93 | K108: 458.9 | L108: 443.15 | M108: 27.97416
A109: 99 | B109: CHALET | C109: 584.6 | D109: 584.57 | E109: 575.13 | F109: 565.67 | G109: 556.23 | H109: 594.03 | I109: 603.47 | J109: 612.93 | K109: 594 | L109: 575.1 | M109: 3.23445
A110: 100 | B110: CHAMBLFERT | C110: 320.2 | D110: 320.23 | E110: 316.47 | F110: 312.73 | G110: 308.97 | H110: 323.97 | I110: 327.73 | J110: 331.47 | K110: 324 | L110: 316.5 | M110: 23.25486
A111: 101 | B111: CHEMPLASTS | C111: 482.85 | D111: 481.38 | E111: 472.87 | F111: 462.88 | G111: 454.37 | H111: 491.37 | I111: 499.88 | J111: 509.87 | K111: 489.9 | L111: 471.4 | M111: 2.81132
A112: 102 | B112: CHOLAHLDNG | C112: 1028.3 | D112: 1011.92 | E112: 977.48 | F112: 926.67 | G112: 892.23 | H112: 1062.73 | I112: 1097.17 | J112: 1147.98 | K112: 1046.35 | L112: 961.1 | M112: 9.66055
A113: 103 | B113: CHOLAFIN | C113: 1128.2 | D113: 1129.07 | E113: 1119.13 | F113: 1110.07 | G113: 1100.13 | H113: 1138.13 | I113: 1148.07 | J113: 1157.13 | K113: 1139 | L113: 1120 | M113: 10.40604
A114: 104 | B114: CIEINDIA | C114: 485 | D114: 484.30 | E114: 480.70 | F114: 476.40 | G114: 472.80 | H114: 488.60 | I114: 492.20 | J114: 496.50 | K114: 487.9 | L114: 480 | M114: 5.5326
A115: 105 | B115: CIPLA | C115: 1205.7 | D115: 1209.02 | E115: 1200.18 | F115: 1194.67 | G115: 1185.83 | H115: 1214.53 | I115: 1223.37 | J115: 1228.88 | K115: 1217.85 | L115: 1203.5 | M115: 10.7868
A116: 106 | B116: CUB | C116: 148.8 | D116: 149.08 | E116: 147.32 | F116: 145.83 | G116: 144.07 | H116: 150.57 | I116: 152.33 | J116: 153.82 | K116: 150.85 | L116: 147.6 | M116: 34.6205
A117: 107 | B117: CLEAN | C117: 1444.85 | D117: 1422.65 | E117: 1390.30 | F117: 1335.75 | G117: 1303.40 | H117: 1477.20 | I117: 1509.55 | J117: 1564.10 | K117: 1455 | L117: 1368.1 | M117: 10.19926
A118: 108 | B118: COALINDIA | C118: 346.65 | D118: 346.73 | E118: 342.37 | F118: 338.08 | G118: 333.72 | H118: 351.02 | I118: 355.38 | J118: 359.67 | K118: 351.1 | L118: 342.45 | M118: 151.05221
A119: 109 | B119: COCHINSHIP | C119: 1167 | D119: 1174.25 | E119: 1148.50 | F119: 1130.00 | G119: 1104.25 | H119: 1192.75 | I119: 1218.50 | J119: 1237.00 | K119: 1200 | L119: 1155.75 | M119: 29.01397
A120: 110 | B120: COFORGE | C120: 5714 | D120: 5739.95 | E120: 5669.05 | F120: 5624.10 | G120: 5553.20 | H120: 5784.90 | I120: 5855.80 | J120: 5900.75 | K120: 5810.85 | L120: 5695 | M120: 1.77578
A121: 111 | B121: COLPAL | C121: 2279.25 | D121: 2251.85 | E121: 2214.70 | F121: 2150.15 | G121: 2113.00 | H121: 2316.40 | I121: 2353.55 | J121: 2418.10 | K121: 2289 | L121: 2187.3 | M121: 6.37907
A122: 112 | B122: CAMS | C122: 2793.4 | D122: 2802.50 | E122: 2770.10 | F122: 2746.80 | G122: 2714.40 | H122: 2825.80 | I122: 2858.20 | J122: 2881.50 | K122: 2834.9 | L122: 2779.2 | M122: 1.66019
A123: 113 | B123: CONCOR | C123: 785.15 | D123: 781.20 | E123: 774.45 | F123: 763.75 | G123: 757.00 | H123: 791.90 | I123: 798.65 | J123: 809.35 | K123: 787.95 | L123: 770.5 | M123: 11.54908
A124: 114 | B124: COROMANDEL | C124: 1169.6 | D124: 1168.53 | E124: 1159.57 | F124: 1149.53 | G124: 1140.57 | H124: 1178.57 | I124: 1187.53 | J124: 1197.57 | K124: 1177.5 | L124: 1158.5 | M124: 1.84002
A125: 115 | B125: CRAFTSMAN | C125: 5100.75 | D125: 5092.95 | E125: 5062.80 | F125: 5024.85 | G125: 4994.70 | H125: 5130.90 | I125: 5161.05 | J125: 5199.00 | K125: 5123.1 | L125: 5055 | M125: 0.2451
A126: 116 | B126: CREDITACC | C126: 1698.1 | D126: 1702.60 | E126: 1681.25 | F126: 1664.40 | G126: 1643.05 | H126: 1719.45 | I126: 1740.80 | J126: 1757.65 | K126: 1723.95 | L126: 1685.75 | M126: 1.06139
A127: 117 | B127: CRISIL | C127: 4220.5 | D127: 4248.65 | E127: 4179.85 | F127: 4139.20 | G127: 4070.40 | H127: 4289.30 | I127: 4358.10 | J127: 4398.75 | K127: 4317.45 | L127: 4208 | M127: 0.25548
A128: 118 | B128: CROMPTON | C128: 289.9 | D128: 288.48 | E128: 286.42 | F128: 282.93 | G128: 280.87 | H128: 291.97 | I128: 294.03 | J128: 297.52 | K128: 290.55 | L128: 285 | M128: 17.71128
A129: 119 | B129: CSBBANK | C129: 384.05 | D129: 387.02 | E129: 379.03 | F129: 374.02 | G129: 366.03 | H129: 392.03 | I129: 400.02 | J129: 405.03 | K129: 395 | L129: 382 | M129: 2.71221
A130: 120 | B130: CUMMINSIND | C130: 1920.2 | D130: 1915.73 | E130: 1902.47 | F130: 1884.73 | G130: 1871.47 | H130: 1933.47 | I130: 1946.73 | J130: 1964.47 | K130: 1929 | L130: 1898 | M130: 3.26619
A131: 121 | B131: CYIENT | C131: 1998.45 | D131: 1993.23 | E131: 1967.47 | F131: 1936.48 | G131: 1910.72 | H131: 2024.22 | I131: 2049.98 | J131: 2080.97 | K131: 2019 | L131: 1962.25 | M131: 5.72524
A132: 122 | B132: DABUR | C132: 541.15 | D132: 541.08 | E132: 537.77 | F132: 534.38 | G132: 531.07 | H132: 544.47 | I132: 547.78 | J132: 551.17 | K132: 544.4 | L132: 537.7 | M132: 15.84387
A133: 123 | B133: DALBHARAT | C133: 2265.15 | D133: 2253.23 | E133: 2231.47 | F133: 2197.78 | G133: 2176.02 | H133: 2286.92 | I133: 2308.68 | J133: 2342.37 | K133: 2275 | L133: 2219.55 | M133: 3.54401
A134: 124 | B134: DATAPATTNS | C134: 2052.5 | D134: 2053.68 | E134: 2020.82 | F134: 1989.13 | G134: 1956.27 | H134: 2085.37 | I134: 2118.23 | J134: 2149.92 | K134: 2086.55 | L134: 2022 | M134: 2.11808
A135: 125 | B135: DCMSHRIRAM | C135: 969.8 | D135: 966.58 | E135: 954.22 | F135: 938.63 | G135: 926.27 | H135: 982.17 | I135: 994.53 | J135: 1010.12 | K135: 978.95 | L135: 951 | M135: 0.78785
A136: 126 | B136: DEEPAKFERT | C136: 626.9 | D136: 631.37 | E136: 621.03 | F136: 615.17 | G136: 604.83 | H136: 637.23 | I136: 647.57 | J136: 653.43 | K136: 641.7 | L136: 625.5 | M136: 6.56338
A137: 127 | B137: DEEPAKNTR | C137: 2214.2 | D137: 2211.78 | E137: 2194.57 | F137: 2174.93 | G137: 2157.72 | H137: 2231.42 | I137: 2248.63 | J137: 2268.27 | K137: 2229 | L137: 2192.15 | M137: 2.93066
A138: 128 | B138: DELHIVERY | C138: 397.45 | D138: 396.22 | E138: 392.43 | F138: 387.42 | G138: 383.63 | H138: 401.23 | I138: 405.02 | J138: 410.03 | K138: 400 | L138: 391.2 | M138: 14.39914
A139: 129 | B139: DELTACORP | C139: 145.95 | D139: 148.30 | E139: 142.40 | F139: 138.85 | G139: 132.95 | H139: 151.85 | I139: 157.75 | J139: 161.30 | K139: 154.2 | L139: 144.75 | M139: 366.92206
A140: 130 | B140: DEVYANI | C140: 175.1 | D140: 174.95 | E140: 172.75 | F140: 170.40 | G140: 168.20 | H140: 177.30 | I140: 179.50 | J140: 181.85 | K140: 177.15 | L140: 172.6 | M140: 47.09716
A141: 131 | B141: DIVISLAB | C141: 3792.7 | D141: 3794.80 | E141: 3769.90 | F141: 3747.10 | G141: 3722.20 | H141: 3817.60 | I141: 3842.50 | J141: 3865.30 | K141: 3819.7 | L141: 3772 | M141: 2.60031
A142: 132 | B142: DIXON | C142: 5951.65 | D142: 5833.53 | E142: 5632.12 | F142: 5312.58 | G142: 5111.17 | H142: 6153.07 | I142: 6354.48 | J142: 6674.02 | K142: 6034.95 | L142: 5514 | M142: 21.8154
A143: 133 | B143: DLF | C143: 629.25 | D143: 629.70 | E143: 625.10 | F143: 620.95 | G143: 616.35 | H143: 633.85 | I143: 638.45 | J143: 642.60 | K143: 634.3 | L143: 625.55 | M143: 34.38389
A144: 134 | B144: LALPATHLAB | C144: 2743.05 | D144: 2735.07 | E144: 2706.13 | F144: 2669.22 | G144: 2640.28 | H144: 2771.98 | I144: 2800.92 | J144: 2837.83 | K144: 2764 | L144: 2698.15 | M144: 2.75599
A145: 135 | B145: DRREDDY | C145: 5749.4 | D145: 5781.80 | E145: 5707.05 | F145: 5664.70 | G145: 5589.95 | H145: 5824.15 | I145: 5898.90 | J145: 5941.25 | K145: 5856.55 | L145: 5739.45 | M145: 2.783
A146: 136 | B146: EIDPARRY | C146: 535.35 | D146: 535.17 | E146: 529.23 | F146: 523.12 | G146: 517.18 | H146: 541.28 | I146: 547.22 | J146: 553.33 | K146: 541.1 | L146: 529.05 | M146: 5.97054
A147: 137 | B147: EASEMYTRIP | C147: 38.75 | D147: 38.68 | E147: 38.47 | F147: 38.18 | G147: 37.97 | H147: 38.97 | I147: 39.18 | J147: 39.47 | K147: 38.9 | L147: 38.4 | M147: 217.32957
A148: 138 | B148: ECLERX | C148: 2632.95 | D148: 2651.92 | E148: 2593.83 | F148: 2554.72 | G148: 2496.63 | H148: 2691.03 | I148: 2749.12 | J148: 2788.23 | K148: 2710 | L148: 2612.8 | M148: 1.00112
A149: 139 | B149: EICHERMOT | C149: 3891.2 | D149: 3907.75 | E149: 3865.50 | F149: 3839.80 | G149: 3797.55 | H149: 3933.45 | I149: 3975.70 | J149: 4001.40 | K149: 3950 | L149: 3882.05 | M149: 6.83211
A150: 140 | B150: EIHOTEL | C150: 236.2 | D150: 236.32 | E150: 234.43 | F150: 232.67 | G150: 230.78 | H150: 238.08 | I150: 239.97 | J150: 241.73 | K150: 238.2 | L150: 234.55 | M150: 8.54274
A151: 141 | B151: ELGIEQUIP | C151: 526.55 | D151: 528.88 | E151: 522.62 | F151: 518.68 | G151: 512.42 | H151: 532.82 | I151: 539.08 | J151: 543.02 | K151: 535.15 | L151: 524.95 | M151: 1.42625
A152: 142 | B152: EMAMILTD | C152: 515.8 | D152: 512.35 | E152: 507.05 | F152: 498.30 | G152: 493.00 | H152: 521.10 | I152: 526.40 | J152: 535.15 | K152: 517.65 | L152: 503.6 | M152: 5.78929
A153: 143 | B153: ENDURANCE | C153: 1679.7 | D153: 1682.48 | E153: 1667.32 | F153: 1654.93 | G153: 1639.77 | H153: 1694.87 | I153: 1710.03 | J153: 1722.42 | K153: 1697.65 | L153: 1670.1 | M153: 0.50259
A154: 144 | B154: ENGINERSIN | C154: 151.55 | D154: 152.78 | E154: 149.77 | F154: 147.98 | G154: 144.97 | H154: 154.57 | I154: 157.58 | J154: 159.37 | K154: 155.8 | L154: 151 | M154: 132.42776
A155: 145 | B155: EPL | C155: 196.3 | D155: 197.07 | E155: 194.38 | F155: 192.47 | G155: 189.78 | H155: 198.98 | I155: 201.67 | J155: 203.58 | K155: 199.75 | L155: 195.15 | M155: 6.76529
A156: 146 | B156: EQUITASBNK | C156: 95.15 | D156: 94.65 | E156: 93.65 | F156: 92.15 | G156: 91.15 | H156: 96.15 | I156: 97.15 | J156: 98.65 | K156: 95.65 | L156: 93.15 | M156: 33.31392
A157: 147 | B157: ERIS | C157: 926.25 | D157: 931.32 | E157: 914.63 | F157: 903.02 | G157: 886.33 | H157: 942.93 | I157: 959.62 | J157: 971.23 | K157: 948 | L157: 919.7 | M157: 0.52152
A158: 148 | B158: ESCORTS | C158: 3205.2 | D158: 3201.23 | E158: 3149.07 | F158: 3092.93 | G158: 3040.77 | H158: 3257.37 | I158: 3309.53 | J158: 3365.67 | K158: 3253.4 | L158: 3145.1 | M158: 4.78524
A159: 149 | B159: EXIDEIND | C159: 291.5 | D159: 291.33 | E159: 285.67 | F159: 279.83 | G159: 274.17 | H159: 297.17 | I159: 302.83 | J159: 308.67 | K159: 297 | L159: 285.5 | M159: 60.7906
A160: 150 | B160: FDC | C160: 397.15 | D160: 398.17 | E160: 393.88 | F160: 390.62 | G160: 386.33 | H160: 401.43 | I160: 405.72 | J160: 408.98 | K160: 402.45 | L160: 394.9 | M160: 1.57932
A161: 151 | B161: FEDERALBNK | C161: 148.75 | D161: 149.02 | E161: 147.73 | F161: 146.72 | G161: 145.43 | H161: 150.03 | I161: 151.32 | J161: 152.33 | K161: 150.3 | L161: 148 | M161: 121.79761
A162: 152 | B162: FACT | C162: 730.25 | D162: 729.32 | E162: 710.93 | F162: 691.62 | G162: 673.23 | H162: 748.63 | I162: 767.02 | J162: 786.33 | K162: 747.7 | L162: 710 | M162: 17.78872
A163: 153 | B163: FINEORG | C163: 4283.65 | D163: 4279.25 | E163: 4233.70 | F163: 4183.75 | G163: 4138.20 | H163: 4329.20 | I163: 4374.75 | J163: 4424.70 | K163: 4324.8 | L163: 4229.3 | M163: 0.8531
A164: 154 | B164: FINCABLES | C164: 1024.45 | D164: 1009.65 | E164: 986.80 | F164: 949.15 | G164: 926.30 | H164: 1047.30 | I164: 1070.15 | J164: 1107.80 | K164: 1032.5 | L164: 972 | M164: 9.69408
A165: 155 | B165: FINPIPE | C165: 205.1 | D165: 205.53 | E165: 203.42 | F165: 201.73 | G165: 199.62 | H165: 207.22 | I165: 209.33 | J165: 211.02 | K165: 207.65 | L165: 203.85 | M165: 6.32648
A166: 156 | B166: FSL | C166: 176.5 | D166: 178.00 | E166: 174.50 | F166: 172.50 | G166: 169.00 | H166: 180.00 | I166: 183.50 | J166: 185.50 | K166: 181.5 | L166: 176 | M166: 33.51108
A167: 157 | B167: FIVESTAR | C167: 733.35 | D167: 739.98 | E167: 722.02 | F167: 710.68 | G167: 692.72 | H167: 751.32 | I167: 769.28 | J167: 780.62 | K167: 757.95 | L167: 728.65 | M167: 3.31608
A168: 158 | B168: FORTIS | C168: 383.8 | D168: 381.65 | E168: 377.35 | F168: 370.90 | G168: 366.60 | H168: 388.10 | I168: 392.40 | J168: 398.85 | K168: 385.95 | L168: 375.2 | M168: 19.773
A169: 159 | B169: NYKAA | C169: 176.65 | D169: 175.88 | E169: 173.77 | F169: 170.88 | G169: 168.77 | H169: 178.77 | I169: 180.88 | J169: 183.77 | K169: 178 | L169: 173 | M169: 62.42256
A170: 160 | B170: GRINFRA | C170: 1045.95 | D170: 1047.13 | E170: 1032.37 | F170: 1018.78 | G170: 1004.02 | H170: 1060.72 | I170: 1075.48 | J170: 1089.07 | K170: 1061.9 | L170: 1033.55 | M170: 5.36142
A171: 161 | B171: GAIL | C171: 136.05 | D171: 135.25 | E171: 133.15 | F171: 130.25 | G171: 128.15 | H171: 138.15 | I171: 140.25 | J171: 143.15 | K171: 137.35 | L171: 132.35 | M171: 536.60727
A172: 162 | B172: GALAXYSURF | C172: 2812.45 | D172: 2829.03 | E172: 2791.27 | F172: 2770.08 | G172: 2732.32 | H172: 2850.22 | I172: 2887.98 | J172: 2909.17 | K172: 2866.8 | L172: 2807.85 | M172: 0.10843
A173: 163 | B173: GARFIBRES | C173: 3352.9 | D173: 3367.88 | E173: 3320.62 | F173: 3288.33 | G173: 3241.07 | H173: 3400.17 | I173: 3447.43 | J173: 3479.72 | K173: 3415.15 | L173: 3335.6 | M173: 0.06977
A174: 164 | B174: GICRE | C174: 306.9 | D174: 311.53 | E174: 300.37 | F174: 293.83 | G174: 282.67 | H174: 318.07 | I174: 329.23 | J174: 335.77 | K174: 322.7 | L174: 305 | M174: 30.62169
A175: 165 | B175: GLAND | C175: 1809.35 | D175: 1809.78 | E175: 1779.57 | F175: 1749.78 | G175: 1719.57 | H175: 1839.57 | I175: 1869.78 | J175: 1899.57 | K175: 1840 | L175: 1780 | M175: 4.07645
A176: 166 | B176: GLAXO | C176: 1678.15 | D176: 1685.37 | E176: 1662.73 | F176: 1647.32 | G176: 1624.68 | H176: 1700.78 | I176: 1723.42 | J176: 1738.83 | K176: 1708 | L176: 1669.95 | M176: 2.15618
A177: 167 | B177: GLENMARK | C177: 792.6 | D177: 789.82 | E177: 781.63 | F177: 770.67 | G177: 762.48 | H177: 800.78 | I177: 808.97 | J177: 819.93 | K177: 798 | L177: 778.85 | M177: 7.73301
A178: 168 | B178: MEDANTA | C178: 970 | D178: 964.32 | E178: 949.83 | F178: 929.67 | G178: 915.18 | H178: 984.48 | I178: 998.97 | J178: 1019.13 | K178: 978.8 | L178: 944.15 | M178: 3.7935
A179: 169 | B179: GMMPFAUDLR | C179: 1498.9 | D179: 1501.28 | E179: 1490.62 | F179: 1482.33 | G179: 1471.67 | H179: 1509.57 | I179: 1520.23 | J179: 1528.52 | K179: 1511.95 | L179: 1493 | M179: 2.47297
A180: 170 | B180: GMRINFRA | C180: 60.9 | D180: 60.82 | E180: 60.28 | F180: 59.67 | G180: 59.13 | H180: 61.43 | I180: 61.97 | J180: 62.58 | K180: 61.35 | L180: 60.2 | M180: 142.46978
A181: 171 | B181: GOCOLORS | C181: 1330.4 | D181: 1329.58 | E181: 1310.82 | F181: 1291.23 | G181: 1272.47 | H181: 1349.17 | I181: 1367.93 | J181: 1387.52 | K181: 1348.35 | L181: 1310 | M181: 0.31112
A182: 172 | B182: GODFRYPHLP | C182: 2074.35 | D182: 2059.38 | E182: 2038.77 | F182: 2003.18 | G182: 1982.57 | H182: 2094.97 | I182: 2115.58 | J182: 2151.17 | K182: 2080 | L182: 2023.8 | M182: 0.71668
A183: 173 | B183: GODREJAGRO | C183: 503.2 | D183: 505.23 | E183: 498.97 | F183: 494.73 | G183: 488.47 | H183: 509.47 | I183: 515.73 | J183: 519.97 | K183: 511.5 | L183: 501 | M183: 3.32078
A184: 174 | B184: GODREJCP | C184: 1025.4 | D184: 1020.80 | E184: 1012.60 | F184: 999.80 | G184: 991.60 | H184: 1033.60 | I184: 1041.80 | J184: 1054.60 | K184: 1029 | L184: 1008 | M184: 15.67362
A185: 175 | B185: GODREJIND | C185: 647.65 | D185: 649.97 | E185: 642.93 | F185: 638.22 | G185: 631.18 | H185: 654.68 | I185: 661.72 | J185: 666.43 | K185: 657 | L185: 645.25 | M185: 1.63205
A186: 176 | B186: GODREJPROP | C186: 1872.65 | D186: 1874.57 | E186: 1852.63 | F186: 1832.62 | G186: 1810.68 | H186: 1894.58 | I186: 1916.52 | J186: 1936.53 | K186: 1896.5 | L186: 1854.55 | M186: 3.9185
A187: 177 | B187: GRANULES | C187: 392.85 | D187: 396.42 | E187: 387.93 | F187: 383.02 | G187: 374.53 | H187: 401.33 | I187: 409.82 | J187: 414.73 | K187: 404.9 | L187: 391.5 | M187: 16.94425
A188: 178 | B188: GRAPHITE | C188: 508.3 | D188: 508.73 | E188: 499.52 | F188: 490.73 | G188: 481.52 | H188: 517.52 | I188: 526.73 | J188: 535.52 | K188: 517.95 | L188: 499.95 | M188: 18.58315
A189: 179 | B189: GRASIM | C189: 2016.05 | D189: 2021.02 | E189: 2003.03 | F189: 1990.02 | G189: 1972.03 | H189: 2034.03 | I189: 2052.02 | J189: 2065.03 | K189: 2039 | L189: 2008 | M189: 9.28511
A190: 180 | B190: GESHIP | C190: 869.35 | D190: 878.88 | E190: 853.77 | F190: 838.18 | G190: 813.07 | H190: 894.47 | I190: 919.58 | J190: 935.17 | K190: 904 | L190: 863.3 | M190: 9.37312
A191: 181 | B191: GREENPANEL | C191: 350.4 | D191: 349.62 | E191: 345.78 | F191: 341.17 | G191: 337.33 | H191: 354.23 | I191: 358.07 | J191: 362.68 | K191: 353.45 | L191: 345 | M191: 8.09423
A192: 182 | B192: GRINDWELL | C192: 2109 | D192: 2106.50 | E192: 2093.00 | F192: 2077.00 | G192: 2063.50 | H192: 2122.50 | I192: 2136.00 | J192: 2152.00 | K192: 2120 | L192: 2090.5 | M192: 1.78112
A193: 183 | B193: GUJALKALI | C193: 724.8 | D193: 726.25 | E193: 718.55 | F193: 712.30 | G193: 704.60 | H193: 732.50 | I193: 740.20 | J193: 746.45 | K193: 733.95 | L193: 720 | M193: 0.57392
A194: 184 | B194: GAEL | C194: 362.5 | D194: 366.48 | E194: 356.02 | F194: 349.53 | G194: 339.07 | H194: 372.97 | I194: 383.43 | J194: 389.92 | K194: 376.95 | L194: 360 | M194: 3.74392
A195: 185 | B195: FLUOROCHEM | C195: 2849.75 | D195: 2853.45 | E195: 2827.30 | F195: 2804.85 | G195: 2778.70 | H195: 2875.90 | I195: 2902.05 | J195: 2924.50 | K195: 2879.6 | L195: 2831 | M195: 0.75985
A196: 186 | B196: GUJGASLTD | C196: 434.05 | D196: 435.12 | E196: 431.23 | F196: 428.42 | G196: 424.53 | H196: 437.93 | I196: 441.82 | J196: 444.63 | K196: 439 | L196: 432.3 | M196: 7.19517
A197: 187 | B197: GNFC | C197: 703 | D197: 699.47 | E197: 690.18 | F197: 677.37 | G197: 668.08 | H197: 712.28 | I197: 721.57 | J197: 734.38 | K197: 708.75 | L197: 686.65 | M197: 12.46102
A198: 188 | B198: GPPL | C198: 142.15 | D198: 143.53 | E198: 139.62 | F198: 137.08 | G198: 133.17 | H198: 146.07 | I198: 149.98 | J198: 152.52 | K198: 147.45 | L198: 141 | M198: 32.79382
A199: 189 | B199: GSFC | C199: 193.7 | D199: 194.77 | E199: 192.03 | F199: 190.37 | G199: 187.63 | H199: 196.43 | I199: 199.17 | J199: 200.83 | K199: 197.5 | L199: 193.1 | M199: 44.05398
A200: 190 | B200: GSPL | C200: 290.9 | D200: 290.43 | E200: 288.87 | F200: 286.83 | G200: 285.27 | H200: 292.47 | I200: 294.03 | J200: 296.07 | K200: 292 | L200: 288.4 | M200: 11.54617
A201: 191 | B201: HEG | C201: 1662.6 | D201: 1660.82 | E201: 1643.43 | F201: 1624.27 | G201: 1606.88 | H201: 1679.98 | I201: 1697.37 | J201: 1716.53 | K201: 1678.2 | L201: 1641.65 | M201: 2.13974
A202: 192 | B202: HAPPSTMNDS | C202: 837.8 | D202: 840.63 | E202: 832.77 | F202: 827.73 | G202: 819.87 | H202: 845.67 | I202: 853.53 | J202: 858.57 | K202: 848.5 | L202: 835.6 | M202: 1.85399
A203: 193 | B203: HAVELLS | C203: 1312.45 | D203: 1312.82 | E203: 1305.63 | F203: 1298.82 | G203: 1291.63 | H203: 1319.63 | I203: 1326.82 | J203: 1333.63 | K203: 1320 | L203: 1306 | M203: 4.06906
A204: 194 | B204: HCLTECH | C204: 1336.7 | D204: 1337.90 | E204: 1326.80 | F204: 1316.90 | G204: 1305.80 | H204: 1347.80 | I204: 1358.90 | J204: 1368.80 | K204: 1349 | L204: 1328 | M204: 18.54324
A205: 195 | B205: HDFCAMC | C205: 2928.05 | D205: 2950.23 | E205: 2902.47 | F205: 2876.88 | G205: 2829.12 | H205: 2975.82 | I205: 3023.58 | J205: 3049.17 | K205: 2998 | L205: 2924.65 | M205: 2.4822
A206: 196 | B206: HDFCBANK | C206: 1555.4 | D206: 1557.75 | E206: 1549.75 | F206: 1544.10 | G206: 1536.10 | H206: 1563.40 | I206: 1571.40 | J206: 1577.05 | K206: 1565.75 | L206: 1552.1 | M206: 110.76768
... 319 more rows

Sheet Bulk Deals
E6: Back To Main Page
A7: Subject : | B7: BULK DEAL | D7: =Main!B10 -> 2023-12-04
A9: Date | B9: Scrip code | C9: Scrip Name | D9: Client Name | E9: Buy / Sell | F9: Quantity Traded | G9: Trade Price / Wt.Avg.trade price | H9: Exchange
A10: 2023-12-01 | B10: 539773 | C10: ADVIKCA | D10: SILVERTOSS SHOPPERS PRIVATE LIMITED | E10: SELL | F10: 2,702,782 | G10: 2.45 | H10: BSE
A11: 2023-12-01 | B11: 534733 | C11: AERPACE | D11: VINITAJAIN | E11: SELL | F11: 161,392 | G11: 4.08 | H11: BSE
A12: 2023-12-01 | B12: 543926 | C12: BIZOTIC | D12: VIKASKUMAR CHHAGANBHAI LAKHANKIYA | E12: SELL | F12: 58,400 | G12: 49.07 | H12: BSE
A13: 2023-12-01 | B13: 543926 | C13: BIZOTIC | D13: VIKASKUMAR CHHAGANBHAI LAKHANKIYA | E13: BUY | F13: 16,000 | G13: 54.19 | H13: BSE
A14: 2023-12-01 | B14: 504340 | C14: CONFINT | D14: STANLEY EVEREST ANTONY MENEZES | E14: BUY | F14: 100,000 | G14: 8.49 | H14: BSE
A15: 2023-12-01 | B15: 504340 | C15: CONFINT | D15: SETU SECURITIES PVT. LTD. | E15: SELL | F15: 150,000 | G15: 8.49 | H15: BSE
A16: 2023-12-01 | B16: 504340 | C16: CONFINT | D16: VISHANKVILASPATIL | E16: SELL | F16: 203,561 | G16: 8.49 | H16: BSE
A17: 2023-12-01 | B17: 504340 | C17: CONFINT | D17: GLADISMENEZES | E17: BUY | F17: 100,000 | G17: 8.49 | H17: BSE
A18: 2023-12-01 | B18: 530825 | C18: DAIKAFFI | D18: JAINAM UDAY SHAH | E18: BUY | F18: 54,919 | G18: 72.24 | H18: BSE
A19: 2023-12-01 | B19: 530825 | C19: DAIKAFFI | D19: MULTIPLIER SHARE & STOCK ADVISORS PRIVATE LIMITED | E19: SELL | F19: 103,596 | G19: 72.2 | H19: BSE
A20: 2023-12-01 | B20: 543516 | C20: DHYAANI | D20: SOMANI VENTURES AND INNOVATIONS LIMITED | E20: SELL | F20: 19,000 | G20: 91.16 | H20: BSE
A21: 2023-12-01 | B21: 543516 | C21: DHYAANI | D21: KIRAN GARG | E21: BUY | F21: 10,000 | G21: 91.1 | H21: BSE
A22: 2023-12-01 | B22: 543516 | C22: DHYAANI | D22: ANCHAL BANSAL | E22: BUY | F22: 9,000 | G22: 91.68 | H22: BSE
A23: 2023-12-01 | B23: 543516 | C23: DHYAANI | D23: ANCHAL BANSAL | E23: SELL | F23: 9,000 | G23: 92.77 | H23: BSE
A24: 2023-12-01 | B24: 517170 | C24: EDVENSWA | D24: ANUPKUMARSAHU | E24: BUY | F24: 95,526 | G24: 59.99 | H24: BSE
A25: 2023-12-01 | B25: 570005 | C25: GATECHDVR | D25: PAVANI P | E25: SELL | F25: 527,457 | G25: 9.66 | H25: BSE
A26: 2023-12-01 | B26: 539228 | C26: GGPL | D26: VISHAL MULCHANDBHAI GALA | E26: SELL | F26: 494,318 | G26: 3.97 | H26: BSE
A27: 2023-12-01 | B27: 532467 | C27: HAZOOR | D27: UMASHANKAR DADHICJH | E27: SELL | F27: 128,050 | G27: 202.15 | H27: BSE
A28: 2023-12-01 | B28: 526967 | C28: HEERAISP | D28: JR SEAMLESS PRIVATE LIMITED | E28: BUY | F28: 46,395 | G28: 7.8 | H28: BSE
A29: 2023-12-01 | B29: 514010 | C29: HIMFIBP | D29: MULTIPLIER SHARE & STOCK ADVISORS PRIVATE LIMITED | E29: SELL | F29: 590,000 | G29: 25.87 | H29: BSE
A30: 2023-12-01 | B30: 542924 | C30: JANUSCORP | D30: DEEPAK JAIN | E30: BUY | F30: 70,000 | G30: 4.42 | H30: BSE
A31: 2023-12-01 | B31: 538539 | C31: JTAPARIA | D31: SETU SECURITIES PVT. LTD. | E31: SELL | F31: 98,771 | G31: 52.36 | H31: BSE
A32: 2023-12-01 | B32: 508922 | C32: MSRINDIA | D32: NIKHIL GOLCHHA | E32: SELL | F32: 410,000 | G32: 10.55 | H32: BSE
A33: 2023-12-01 | B33: 508922 | C33: MSRINDIA | D33: SWASTIKA HOLDINGS PVT LTD | E33: BUY | F33: 410,000 | G33: 10.55 | H33: BSE
A34: 2023-12-01 | B34: 539402 | C34: NAKSH | D34: SNEHA SACHIN VISPUTE | E34: SELL | F34: 80,000 | G34: 18.49 | H34: BSE
A35: 2023-12-01 | B35: 539402 | C35: NAKSH | D35: KISHOR RAGHUNATH DIXIT | E35: BUY | F35: 80,000 | G35: 18.49 | H35: BSE
A36: 2023-12-01 | B36: 543207 | C36: NATURAL | D36: HEMA JAYPRAKASH BHAVSAR | E36: SELL | F36: 29,816 | G36: 11.13 | H36: BSE
A37: 2023-12-01 | B37: 543207 | C37: NATURAL | D37: HEMA JAYPRAKASH BHAVSAR | E37: BUY | F37: 134,622 | G37: 11 | H37: BSE
A38: 2023-12-01 | B38: 538742 | C38: PANABYTE | D38: MOHIT YAKUB GUNJA | E38: BUY | F38: 22,926 | G38: 14.34 | H38: BSE
A39: 2023-12-01 | B39: 517119 | C39: PCS | D39: MAHENDRA GIRDHARILAL WADHWANI | E39: BUY | F39: 126,645 | G39: 17.23 | H39: BSE
A40: 2023-12-01 | B40: 509835 | C40: PREMSYN | D40: ABHISHEK BANERJEE | E40: SELL | F40: 26,604 | G40: 26.01 | H40: BSE
A41: 2023-12-01 | B41: 515127 | C41: RAMASIGNS | D41: PANKAJ HASMUKH JOBALIA | E41: SELL | F41: 156,520 | G41: 2.96 | H41: BSE
A42: 2023-12-01 | B42: 539669 | C42: RGF | D42: KARVA AUTOMART LIMITED | E42: SELL | F42: 2,601,790 | G42: 0.68 | H42: BSE
A43: 2023-12-01 | B43: 539669 | C43: RGF | D43: MULTIPLIER SHARE & STOCK ADVISORS PRIVATE LIMITED | E43: BUY | F43: 1,000,000 | G43: 0.64 | H43: BSE
A44: 2023-12-01 | B44: 539669 | C44: RGF | D44: MULTIPLIER SHARE & STOCK ADVISORS PRIVATE LIMITED | E44: SELL | F44: 1,565,751 | G44: 0.64 | H44: BSE
A45: 2023-12-01 | B45: 530267 | C45: SABOOBR | D45: RAHUL ANANTRAI MEHTA | E45: BUY | F45: 51,000 | G45: 33.1 | H45: BSE
A46: 2023-12-01 | B46: 530267 | C46: SABOOBR | D46: BEENA BOHRA | E46: SELL | F46: 50,000 | G46: 33.1 | H46: BSE
A47: 2023-12-01 | B47: 542753 | C47: SEACOAST | D47: MULTIPLIER SHARE & STOCK ADVISORS PRIVATE LIMITED | E47: BUY | F47: 461,573 | G47: 2.69 | H47: BSE
A48: 2023-12-01 | B48: 542753 | C48: SEACOAST | D48: MULTIPLIER SHARE & STOCK ADVISORS PRIVATE LIMITED | E48: SELL | F48: 5,000,001 | G48: 2.73 | H48: BSE
A49: 2023-12-01 | B49: 523838 | C49: SIMPLEXINF | D49: SANTOSH INDUSTRIES LIMITED | E49: SELL | F49: 1,000,000 | G49: 83.11 | H49: BSE
A50: 2023-12-01 | B50: 523838 | C50: SIMPLEXINF | D50: SUBHAM BUILDWELL PRIVATE LIMITED | E50: BUY | F50: 1,042,465 | G50: 83.11 | H50: BSE
A51: 2023-12-01 | B51: 522152 | C51: SOLIMAC | D51: SUMANCHEPURI | E51: BUY | F51: 3 | G51: 95.67 | H51: BSE
A52: 2023-12-01 | B52: 522152 | C52: SOLIMAC | D52: SUMANCHEPURI | E52: SELL | F52: 24,544 | G52: 95.42 | H52: BSE
A53: 2023-12-01 | B53: 540492 | C53: STARLENT | D53: DHIRAJBHAI VAGHJIBHAI KORADIYA | E53: SELL | F53: 450,000 | G53: 110.25 | H53: BSE
A54: 2023-12-01 | B54: 506854 | C54: TANFACIND | D54: HIMALAYA FINANCE & INVESTMENT COMPANY | E54: BUY | F54: 180,000 | G54: 2210 | H54: BSE
A55: 2023-12-01 | B55: 506854 | C55: TANFACIND | D55: ANSHUL SPECIALTY MOLECULES PRIVATE LIMITED | E55: SELL | F55: 247,250 | G55: 2210.24 | H55: BSE
A56: 2023-12-01 | B56: 526139 | C56: TRABI | D56: MAYUR VIJAY PATWA | E56: BUY | F56: 401,000 | G56: 8.19 | H56: BSE
A57: 2023-12-01 | B57: 526139 | C57: TRABI | D57: SAHASRAR CAPITAL PRIVATE LIMITED | E57: BUY | F57: 371,570 | G57: 7.83 | H57: BSE
A58: 2023-12-01 | B58: 526139 | C58: TRABI | D58: GEETANJALI INVESTMENTS | E58: SELL | F58: 896,281 | G58: 8.16 | H58: BSE
A59: 2023-12-01 | B59: 539331 | C59: VETO | D59: MANHARLAL CHIMANLA PARIKH HUF | E59: BUY | F59: 140,000 | G59: 126 | H59: BSE
A60: 2023-12-01 | B60: 539331 | C60: VETO | D60: VETO ELECTROPOWERS INDIA PRIVATE LIMITED | E60: SELL | F60: 150,000 | G60: 126 | H60: BSE
A61: 2023-12-01 | B61: 544002 | C61: VIVAA | D61: ANAND SIDDAPPA GANIGER | E61: BUY | F61: 48,000 | G61: 32 | H61: BSE
A62: 2023-12-01 | B62: 544002 | C62: VIVAA | D62: SHRENI SHARES PRIVATE LIMITED | E62: SELL | F62: 46,000 | G62: 32 | H62: BSE
A63: 2023-12-01 | B63: 541735 | C63: VIVANTA | D63: PARTH HEMANT PARIKH | E63: SELL | F63: 1,197,700 | G63: 3.67 | H63: BSE
A64: 2023-12-01 | B64: 538970 | C64: WARDINMOBI | D64: RONAK NICHWANI | E64: BUY | F64: 1,247,425 | G64: 53.21 | H64: BSE
A65: 2023-12-01 | B65: 538970 | C65: WARDINMOBI | D65: RONAK NICHWANI | E65: SELL | F65: 1,357,425 | G65: 53.18 | H65: BSE
A66: 2023-12-01 | B66: 505872 | C66: WPIL | D66: V N ENTERPRISES LIMITED | E66: SELL | F66: 51,000 | G66: 3070 | H66: BSE
A67: 2023-12-01 | B67: 505872 | C67: WPIL | D67: HINDUSTHAN UDYOG LTD | E67: BUY | F67: 51,000 | G67: 3070 | H67: BSE
A68: 2023-12-01 | B68: 511018 | C68: ZMILGFIN | D68: VINITAJAIN | E68: SELL | F68: 10,595 | G68: 55.18 | H68: BSE
A69: 2023-12-01 | B69: 511018 | C69: ZMILGFIN | D69: HETAL CHIRAG GANDHI | E69: BUY | F69: 10,000 | G69: 55.18 | H69: BSE
A70: 2023-12-01 | B70: ARE&M | C70: Amara Raja Energy Mob Ltd | D70: GRAVITON RESEARCH CAPITAL LLP | E70: BUY | F70: 925,999 | G70: 764.75 | H70: NSE
A71: 2023-12-01 | B71: ARIHANTACA | C71: Arihant Academy Limited | D71: SHRENI SHARES PRIVATE LIMITED | E71: BUY | F71: 32,000 | G71: 128.08 | H71: NSE
A72: 2023-12-01 | B72: BCONCEPTS | C72: Brand Concepts Limited | D72: ASHISH RAMESHCHANDRA KACHOLIA | E72: BUY | F72: 100,000 | G72: 657.55 | H72: NSE
A73: 2023-12-01 | B73: BCONCEPTS | C73: Brand Concepts Limited | D73: R.B.A. FINANCE ## INVESTMENT CO. | E73: BUY | F73: 94,192 | G73: 657.55 | H73: NSE
A74: 2023-12-01 | B74: BHARTIARTL | C74: Bharti Airtel Limited | D74: BHARTI TELECOM LIMITED | E74: BUY | F74: 81,150,803 | G74: 1023 | H74: NSE
A75: 2023-12-01 | B75: BOHRAIND | C75: Bohra Industries Limited | D75: MALLILA PAWAN KUMAR | E75: BUY | F75: 10 | G75: 37.6 | H75: NSE
A76: 2023-12-01 | B76: CANTABIL | C76: Cantabil Retail Ltd | D76: AUTHUM INVESTMENT & INFRASTRUCTURE LIMITED | E76: BUY | F76: 500,000 | G76: 200.66 | H76: NSE
A77: 2023-12-01 | B77: CANTABIL | C77: Cantabil Retail Ltd | D77: P.C.KOTHARI [HUF] | E77: BUY | F77: 500,000 | G77: 200.15 | H77: NSE
A78: 2023-12-01 | B78: DATAMATICS | C78: Datamatics Global Ser.Ltd | D78: GRAVITON RESEARCH CAPITAL LLP | E78: BUY | F78: 591,226 | G78: 700.88 | H78: NSE
A79: 2023-12-01 | B79: DELTACORP | C79: Delta Corp Limited | D79: GRAVITON RESEARCH CAPITAL LLP | E79: BUY | F79: 2,217,668 | G79: 149.09 | H79: NSE
A80: 2023-12-01 | B80: DELTACORP | C80: Delta Corp Limited | D80: QE SECURITIES LLP | E80: BUY | F80: 1,227,682 | G80: 148.29 | H80: NSE
A81: 2023-12-01 | B81: DELTACORP | C81: Delta Corp Limited | D81: HRTI PRIVATE LIMITED | E81: BUY | F81: 1,481,322 | G81: 149.11 | H81: NSE
A82: 2023-12-01 | B82: ESSENTIA | C82: Integra Essentia Limited | D82: QE SECURITIES LLP | E82: BUY | F82: 2,553,432 | G82: 6.75 | H82: NSE
A83: 2023-12-01 | B83: FLAIR | C83: Flair Writing Indust Ltd | D83: MANSI SHARE AND STOCK ADVISORS PVT LTD | E83: BUY | F83: 663,723 | G83: 457.24 | H83: NSE
A84: 2023-12-01 | B84: FLAIR | C84: Flair Writing Indust Ltd | D84: NK SECURITIES RESEARCH PRIVATE LIMITED | E84: BUY | F84: 542,797 | G84: 474.04 | H84: NSE
A85: 2023-12-01 | B85: GANDHAR | C85: Gandhar Oil Refine Ind L | D85: GRAVITON RESEARCH CAPITAL LLP | E85: BUY | F85: 958,445 | G85: 286.35 | H85: NSE
A86: 2023-12-01 | B86: IBULHSGFIN | C86: Indiabulls Hsg Fin Ltd | D86: HRTI PRIVATE LIMITED | E86: BUY | F86: 5,314,189 | G86: 207.55 | H86: NSE
A87: 2023-12-01 | B87: IBULHSGFIN | C87: Indiabulls Hsg Fin Ltd | D87: GRAVITON RESEARCH CAPITAL LLP | E87: BUY | F87: 3,518,583 | G87: 207.8 | H87: NSE
A88: 2023-12-01 | B88: ISHAN | C88: Ishan International Ltd | D88: SHAH SANDIP JAYSHUKHLAL | E88: BUY | F88: 75,200 | G88: 72.75 | H88: NSE
A89: 2023-12-01 | B89: ITDCEM | C89: ITD Cementation India Lim | D89: GRAVITON RESEARCH CAPITAL LLP | E89: BUY | F89: 1,132,554 | G89: 289.35 | H89: NSE
A90: 2023-12-01 | B90: LIBAS | C90: Libas Consu Products Ltd | D90: JAI VINAYAK SECURITIES | E90: BUY | F90: 380,973 | G90: 15.97 | H90: NSE
A91: 2023-12-01 | B91: LIBAS | C91: Libas Consu Products Ltd | D91: HRTI PRIVATE LIMITED | E91: BUY | F91: 458,196 | G91: 15.96 | H91: NSE
A92: 2023-12-01 | B92: NARMADA | C92: Narmada Agrobase Limited | D92: CHAUHAN TRISHUL JITUSINH | E92: BUY | F92: 197,591 | G92: 20.75 | H92: NSE
A93: 2023-12-01 | B93: ORIENTHOT | C93: Oriental Hotels Ltd | D93: GRAVITON RESEARCH CAPITAL LLP | E93: BUY | F93: 906,019 | G93: 113.7 | H93: NSE
A94: 2023-12-01 | B94: ORTINLAB | C94: Ortin Laboratories Ltd | D94: QE SECURITIES LLP | E94: BUY | F94: 86,993 | G94: 21.02 | H94: NSE
A95: 2023-12-01 | B95: ORTINLAB | C95: Ortin Laboratories Ltd | D95: BRONZE SECURITIES PVT LTD | E95: BUY | F95: 72,386 | G95: 20.94 | H95: NSE
A96: 2023-12-01 | B96: SECURCRED | C96: SecUR Credentials Limited | D96: SHAH SANDIP JAYSHUKHLAL | E96: BUY | F96: 400,000 | G96: 23.25 | H96: NSE
A97: 2023-12-01 | B97: SECURCRED | C97: SecUR Credentials Limited | D97: CITADEL SECURITIES INDIA MARKETS PRIVATE LIMITED | E97: BUY | F97: 206,590 | G97: 20.88 | H97: NSE
A98: 2023-12-01 | B98: SHRIRAMPPS | C98: Shriram Properties Ltd | D98: GRAVITON RESEARCH CAPITAL LLP | E98: BUY | F98: 1,112,586 | G98: 112.36 | H98: NSE
A99: 2023-12-01 | B99: SHRIRAMPPS | C99: Shriram Properties Ltd | D99: CITADEL SECURITIES INDIA MARKETS PRIVATE LIMITED | E99: BUY | F99: 1,002,444 | G99: 112.05 | H99: NSE
A100: 2023-12-01 | B100: SUMIT | C100: Sumit Woods Limited | D100: MOUNTAIN VENTURES | E100: BUY | F100: 159,676 | G100: 47.3 | H100: NSE
A101: 2023-12-01 | B101: VETO | C101: Veto Switchgear Cable Ltd | D101: KRONE INVESTMENTS | E101: BUY | F101: 98,000 | G101: 126.52 | H101: NSE
A102: 2023-12-01 | B102: ARE&M | C102: Amara Raja Energy Mob Ltd | D102: GRAVITON RESEARCH CAPITAL LLP | E102: SELL | F102: 925,999 | G102: 765.83 | H102: NSE
A103: 2023-12-01 | B103: ARIHANTACA | C103: Arihant Academy Limited | D103: JIGNESH AMRUTLAL THOBHANI | E103: SELL | F103: 32,000 | G103: 128 | H103: NSE
A104: 2023-12-01 | B104: ARIHANTACA | C104: Arihant Academy Limited | D104: SHRENI SHARES PRIVATE LIMITED | E104: SELL | F104: 1,600 | G104: 129 | H104: NSE
A105: 2023-12-01 | B105: BCONCEPTS | C105: Brand Concepts Limited | D105: TANAM INVESTMENT SERVICES PRI | E105: SELL | F105: 200,000 | G105: 657.55 | H105: NSE
A106: 2023-12-01 | B106: BHARTIARTL | C106: Bharti Airtel Limited | D106: INDIAN CONTINENT INVESTMENT LIMITED | E106: SELL | F106: 81,150,803 | G106: 1023 | H106: NSE
A107: 2023-12-01 | B107: BOHRAIND | C107: Bohra Industries Limited | D107: MALLILA PAWAN KUMAR | E107: SELL | F107: 120,532 | G107: 34.22 | H107: NSE
A108: 2023-12-01 | B108: CEATLTD | C108: CEAT Limited | D108: AMANSA HOLDING PRIVATE LTD. | E108: SELL | F108: 700,000 | G108: 2115.86 | H108: NSE
A109: 2023-12-01 | B109: CELLECOR | C109: Cellecor Gadgets Limited | D109: DREAM ACHIEVER CONSULTANCY SERVICES PRIVATE LIMITED | E109: SELL | F109: 121,200 | G109: 215.03 | H109: NSE
A110: 2023-12-01 | B110: CHAVDA | C110: Chavda Infra Limited | D110: HEENABEN KIRITKUMAR PATEL | E110: SELL | F110: 186,000 | G110: 88.02 | H110: NSE
A111: 2023-12-01 | B111: CRAYONS | C111: Crayons Advertising Ltd | D111: BELGRAVE INVESTMENT FUND | E111: SELL | F111: 153,000 | G111: 164.76 | H111: NSE
A112: 2023-12-01 | B112: DATAMATICS | C112: Datamatics Global Ser.Ltd | D112: GRAVITON RESEARCH CAPITAL LLP | E112: SELL | F112: 591,226 | G112: 701.2 | H112: NSE
A113: 2023-12-01 | B113: DELTACORP | C113: Delta Corp Limited | D113: GRAVITON RESEARCH CAPITAL LLP | E113: SELL | F113: 2,480,868 | G113: 149.25 | H113: NSE
A114: 2023-12-01 | B114: DELTACORP | C114: Delta Corp Limited | D114: HRTI PRIVATE LIMITED | E114: SELL | F114: 1,751,838 | G114: 149.3 | H114: NSE
A115: 2023-12-01 | B115: DELTACORP | C115: Delta Corp Limited | D115: QE SECURITIES LLP | E115: SELL | F115: 1,359,384 | G115: 148.76 | H115: NSE
A116: 2023-12-01 | B116: ESSENTIA | C116: Integra Essentia Limited | D116: QE SECURITIES LLP | E116: SELL | F116: 2,496,062 | G116: 6.75 | H116: NSE
A117: 2023-12-01 | B117: FLAIR | C117: Flair Writing Indust Ltd | D117: MANSI SHARE AND STOCK ADVISORS PVT LTD | E117: SELL | F117: 516,547 | G117: 453.94 | H117: NSE
A118: 2023-12-01 | B118: FLAIR | C118: Flair Writing Indust Ltd | D118: NK SECURITIES RESEARCH PRIVATE LIMITED | E118: SELL | F118: 542,717 | G118: 474.54 | H118: NSE
A119: 2023-12-01 | B119: GANDHAR | C119: Gandhar Oil Refine Ind L | D119: GRAVITON RESEARCH CAPITAL LLP | E119: SELL | F119: 958,445 | G119: 286.91 | H119: NSE
A120: 2023-12-01 | B120: IBULHSGFIN | C120: Indiabulls Hsg Fin Ltd | D120: GRAVITON RESEARCH CAPITAL LLP | E120: SELL | F120: 3,549,183 | G120: 207.72 | H120: NSE
A121: 2023-12-01 | B121: IBULHSGFIN | C121: Indiabulls Hsg Fin Ltd | D121: HRTI PRIVATE LIMITED | E121: SELL | F121: 5,478,785 | G121: 207.81 | H121: NSE
A122: 2023-12-01 | B122: ISHAN | C122: Ishan International Ltd | D122: MAHADEV MANUBHAI MAKVANA | E122: SELL | F122: 73,600 | G122: 72.83 | H122: NSE
A123: 2023-12-01 | B123: ITDCEM | C123: ITD Cementation India Lim | D123: GRAVITON RESEARCH CAPITAL LLP | E123: SELL | F123: 1,132,554 | G123: 289.36 | H123: NSE
A124: 2023-12-01 | B124: LIBAS | C124: Libas Consu Products Ltd | D124: HRTI PRIVATE LIMITED | E124: SELL | F124: 458,196 | G124: 15.92 | H124: NSE
A125: 2023-12-01 | B125: LIBAS | C125: Libas Consu Products Ltd | D125: JAI VINAYAK SECURITIES | E125: SELL | F125: 380,973 | G125: 16 | H125: NSE
A126: 2023-12-01 | B126: NARMADA | C126: Narmada Agrobase Limited | D126: CHAUHAN TRISHUL JITUSINH | E126: SELL | F126: 6,823 | G126: 20.2 | H126: NSE
A127: 2023-12-01 | B127: ORIENTHOT | C127: Oriental Hotels Ltd | D127: GRAVITON RESEARCH CAPITAL LLP | E127: SELL | F127: 906,019 | G127: 113.74 | H127: NSE
A128: 2023-12-01 | B128: ORTINLAB | C128: Ortin Laboratories Ltd | D128: BRONZE SECURITIES PVT LTD | E128: SELL | F128: 72,386 | G128: 21 | H128: NSE
A129: 2023-12-01 | B129: ORTINLAB | C129: Ortin Laboratories Ltd | D129: QE SECURITIES LLP | E129: SELL | F129: 86,993 | G129: 20.89 | H129: NSE
A130: 2023-12-01 | B130: SECURCRED | C130: SecUR Credentials Limited | D130: CITADEL SECURITIES INDIA MARKETS PRIVATE LIMITED | E130: SELL | F130: 60,715 | G130: 22.4 | H130: NSE
A131: 2023-12-01 | B131: SHRIRAMPPS | C131: Shriram Properties Ltd | D131: CITADEL SECURITIES INDIA MARKETS PRIVATE LIMITED | E131: SELL | F131: 156,744 | G131: 109.74 | H131: NSE
A132: 2023-12-01 | B132: SHRIRAMPPS | C132: Shriram Properties Ltd | D132: GRAVITON RESEARCH CAPITAL LLP | E132: SELL | F132: 1,112,586 | G132: 112.38 | H132: NSE
A133: 2023-12-01 | B133: VETO | C133: Veto Switchgear Cable Ltd | D133: VETO ELECTROPOWERS (INDIA) PRIVATE LIMITED | E133: SELL | F133: 150,000 | G133: 126.06 | H133: NSE
A134: 2023-12-01 | B134: VETO | C134: Veto Switchgear Cable Ltd | D134: KRONE INVESTMENTS | E134: SELL | F134: 81,768 | G134: 126.53 | H134: NSE

Sheet Call Tracker (Equity & F&O)
M5: Back To Main Page
A6: Retail Research Technical Calls & Fundamental Performance Report for the month of December-2023
M7: =Main!B10 -> 2023-12-04
B8: Positional Call
A9: Sr.no | B9: Date | D9: Company | E9: Rec | F9: Rec Price | G9: Stop Loss*** | H9: Call Closed At | I9: Target | J9: Remark | K9: Profit / Loss per Share | L9: All charges | M9: Net Gain / Loss % | N9: Status | O9: Closed Date | P9: Market Closing Price | Q9: Second Buying Date
A10: 1 | B10: 2023-09-20 | D10: RELIANCE | E10: Accu | F10: 2285-2385 | G10: 2235 | I10: 2550-2700 | J10: Open | P10: =VLOOKUP(D10,'MidCap Intra'!$B$11:$C$568,2,0) -> 2394.30 | Q10: 2023-10-04 | S10: H
A11: 2 | B11: 2023-09-21 | D11: VGUARD | E11: Accu | F11: 285-305 | G11: 276 | I11: 330-350 | J11: Open | P11: =VLOOKUP(D11,'MidCap Intra'!$B$11:$C$568,2,0) -> 296.90 | Q11: 2023-10-09 | S11: K
A12: 3 | B12: 2023-10-13 | D12: TCS | E12: Accu <> | F12: 3441-3541 | G12: 3321 | I12: 3800-4000 | J12: Open | P12: =VLOOKUP(D12,'MidCap Intra'!$B$11:$C$568,2,0) -> 3511.65 | Q12: 2023-10-19 | S12: H
A13: 4 | B13: 2023-10-25 | D13: ICICIBANK | E13: Accu | F13: 903-929 | G13: 870 | I13: 990-1050 | J13: Open | P13: =VLOOKUP(D13,'MidCap Intra'!$B$11:$C$568,2,0) -> 946.70 | Q13: 2023-10-26 | S13: H
A14: 5 | B14: 2023-11-06 | D14: HEIDELBERG | E14: Accu | F14: 189.5 | G14: 177 | H14: 200 | I14: 204-214 | J14: Profit of Rs.15.5/- | K14: =H14-F14 -> 10.5 | L14: =(F14*-0.3)/100 -> -0.57 | M14: =(K14+L14)/F14 -> 5.24% | N14: Successful | O14: 2023-11-08 | S14: H
A15: 6 | B15: 2023-11-08 | D15: JAMNAAUTO | E15: Accu<> | F15: 106.40-111.40 | G15: 102.9 | I15: 119-125 | J15: Open | P15: =VLOOKUP(D15,'MidCap Intra'!$B$11:$C$568,2,0) -> 111.65 | S15: H
A16: 7 | B16: 2023-11-17 | D16: ASHOKLEY | E16: Accu | F16: 169-174 | G16: 163 | I16: 185-195 | J16: Open | P16: =VLOOKUP(D16,'MidCap Intra'!$B$11:$C$568,2,0) -> 176.30 | S16: K
A17: 8 | B17: 2023-11-17 | D17: AMBUJACEM | E17: Accu | F17: 402.5-422.5 | G17: 390 | I17: 450-470 | J17: Open | P17: =VLOOKUP(D17,'MidCap Intra'!$B$11:$C$568,2,0) -> 442.00 | S17: H
A18: 9 | B18: 2023-11-20 | D18: TRIDENT | E18: Accu | F18: 35.9-37 | G18: 34.35 | I18: 40-42 | J18: Open | P18: =VLOOKUP(D18,'MidCap Intra'!$B$11:$C$568,2,0) -> 36.30 | S18: H
A19: 10 | B19: 2023-11-20 | D19: RVNL | E19: Accu | F19: 159-164 | G19: 152 | I19: 174-185 | J19: Open | P19: =VLOOKUP(D19,'MidCap Intra'!$B$11:$C$568,2,0) -> 165.00 | S19: H
A20: 11 | B20: 2023-11-22 | D20: SCHAEFFLER | E20: Accu | F20: 2705-2805 | G20: 2540 | I20: 3100-3200 | J20: Open | P20: =VLOOKUP(D20,'MidCap Intra'!$B$11:$C$568,2,0) -> 2867.60 | S20: H
A21: 12 | B21: 2023-11-28 | D21: LTIM | E21: Accu | F21: 5195-5395 | G21: 4990 | I21: 5700-6000 | J21: Open | P21: =VLOOKUP(D21,'MidCap Intra'!$B$11:$C$568,2,0) -> 5577.05 | S21: H
A22: 13 | B22: 2023-11-30 | D22: ADANIPORTS | E22: Accu | F22: 798-828 | G22: 780 | I22: 870-900 | J22: Open | P22: =VLOOKUP(D22,'MidCap Intra'!$B$11:$C$568,2,0) -> 827.80 | S22: H
A27: CLBS = Closing Basis ***
A28: Dividend adjusted <> | F28: Reinitiated $
A29: Part book {} | D29: s | F29: Revised stoploss #
A33: Master Trade High Risk
A34: Sr.no | B34: Date | D34: Company | E34: Rec | F34: Rec Price | G34: Stop Loss | H34: Call Closed At | I34: Target | J34: Remark | K34: Profit / Loss per share | L34: All charges | M34: Gain / Loss per Lot | N34: Lot | O34: Status | P34: Closed Date
A35: 1 | B35: 2023-11-29 | D35: UPL DEC FUT | E35: Buy | F35: 573.5-574.5 | G35: 566 | I35: 582-590 | J35: Open | S35: N
A36: 2 | B36: 2023-11-29 | D36: ADANIPORTS DEC FUT | E36: Buy | F36: 839-840 | G36: 826.5 | I36: 852-865 | J36: Open | S36: H
A37: 3 | B37: 2023-11-30 | D37: NIFTY DEC FUT | E37: Buy | F37: 20230 | G37: 20100 | H37: 20335 | I37: 20400-20500 | J37: Profit of Rs.105/- | K37: =H37-F37 -> 105 | L37: =(H37*N37)*0.03% -> 305.03 | M37: =(K37*N37)-L37 -> 4945.0 | N37: 50 | O37: Successful | P37: 2023-12-02 | S37: H
A38: 4 | B38: 2023-11-30 | D38: POWERGRID DEC FUT | E38: Buy | F38: 210 | G38: 207 | H38: 213.2 | I38: 213-216 | J38: Profit of Rs.3.2/- | K38: =H38-F38 -> 3.2 | L38: =(H38*N38)*0.03% -> 230.26 | M38: =(K38*N38)-L38 -> 11289.7 | N38: 3600 | O38: Successful | P38: 2023-12-02 | S38: N
A39: 5 | B39: 2023-12-02 | D39: JUBLFOOD DEC FUT | E39: Buy | F39: 555.5-556.5 | G39: 548 | I39: 564-573 | J39: Open | S39: K
A40: 6 | B40: 2023-11-02 | D40: ABBOTINDIA DEC FUT | E40: Buy | F40: 23800-23850 | G40: 23550 | I40: 24088-24350 | J40: Open | S40: N
A45: Master Trade Medium Risk
A46: Sr.no | B46: Date | D46: Company | E46: Rec | F46: Rec Price | G46: Stop Loss | H46: Call Closed At | I46: Target | J46: Remark | K46: Profit/ Loss per lot | L46: All charges | M46: Gain / Loss per Lot | N46: Lot | O46: Status | P46: Closed Date
A47: 1 | B47: 2023-12-02 | D47: BANKNIFTY 44500 PE 06-DEC | E47: Buy | F47: 180-200 | G47: 90 | I47: 350-500 | J47: Open | S47: H
A50: Techno -Funda (positional)
A51: Sr.no | B51: Date | D51: Company | E51: Rec | F51: Rec Price | G51: Stop Loss*** | H51: Call Closed At | I51: Target | J51: Remark | K51: Profit / Loss per Share/Lot | L51: All charges | M51: Net Gain / Loss % | N51: Status | O51: Closed Date | P51: Market Closing Price | Q51: Second Buying Date
A52: 1 | B52: 2023-11-22 | D52: CAMS | E52: Accu | F52: 2665-2765 | G52: 2480 | I52: 3100-3300 | J52: Open | S52: H
A53: 2 | B53: 2023-12-02 | D53: HLEGLAS | E53: Accu | F53: 502.50-542.5 | G53: 477 | I53: 600-650 | J53: Open | S53: H
A56: CLBS = Closing Basis *** | F56: Reinitiated $
A57: Dividend adjusted <> | F57: Revised stoploss # | H57: .................
B66: Investment Idea
A67: Sr.no | B67: Date | D67: Company | E67: Rec | F67: Rec Price | G67: Point of Review | H67: Close Rate | I67: Target | J67: Remark | K67: Profit / Loss per Share | L67: Gain / Loss % | M67: Status | N67: Closed Date
A68: 1 | B68: 2013-11-01 | D68: L&T Finance Holding | E68: Accu | F68: 82.00 | G68: - | H68: 100 | I68: 100.00 | J68: Target Achieved | K68: =H68-F68 -> 18.00 | L68: =K68/F68 -> 21.95% | M68: Successful | N68: 2016-10-14
A69: 2 | B69: 2014-06-04 | D69: Finolex Inds | E69: Buy | F69: 257.00 | G69: - | H69: 300 | I69: 300.00 | J69: Target Achieved | K69: 43.00 | L69: 16.73% | M69: Successful | N69: 2014-07-02
A70: 3 | B70: 2014-07-08 | D70: JK Cement | E70: Buy | F70: 393.00 | G70: - | H70: 468 | I70: 468.00 | J70: Target Achieved | K70: 75.00 | L70: 19.08% | M70: Successful | N70: 2014-08-12
A71: 4 | B71: 2014-08-06 | D71: Finolex Cables | E71: Buy | F71: 205.00 | G71: - | H71: 275 | I71: 250.00 | J71: Target Achieved | K71: 70.00 | L71: 34.15% | M71: Successful | N71: 2014-11-19
A72: 5 | B72: 2014-09-04 | D72: Exide Inds | E72: Buy | F72: 162.00 | G72: - | H72: 190 | I72: 190.00 | J72: Target Achieved | K72: 28.00 | L72: 17.28% | M72: Successful | N72: 2015-01-02
A73: 6 | B73: 2014-09-04 | D73: Deepak Nitrite | E73: Buy | F73: 75.00 | G73: - | H73: 91.5 | I73: 95-100 | J73: Profit of Rs.16.50/- | K73: 16.50 | L73: 22.00% | M73: Successful | N73: 2014-11-11
A74: 7 | B74: 2014-10-01 | D74: Mercks | E74: Buy | F74: 850.00 | G74: - | H74: 982.5 | I74: 1050.00 | J74: Profit of Rs.132.50/- | K74: 132.50 | L74: 15.59% | M74: Successful | N74: 2015-02-04
A75: 8 | B75: 2014-10-01 | D75: Grindwell Norton | E75: Buy | F75: 475.00 | G75: - | H75: 515 | I75: 600.00 | J75: Profit of Rs.40/- | K75: 40.00 | L75: 8.42% | M75: Successful | N75: 2014-10-27
A76: 9 | B76: 2014-10-01 | D76: Snowman Logistics | E76: Buy | F76: 86.00 | G76: - | H76: 99 | I76: 140.00 | J76: Profit of Rs.13.00/- | K76: 13.00 | L76: 15.12% | M76: Successful | N76: 2014-10-27
A77: 10 | B77: 2014-10-14 | D77: Birla Corp | E77: Buy | F77: 496.60 | G77: - | H77: 621 | I77: 580.00 | J77: Target Achieved | K77: 124.40 | L77: 25.05% | M77: Successful | N77: 2016-08-23
A78: 11 | B78: 2014-10-14 | D78: Ultratech Cem | E78: Buy | F78: 2481.90 | G78: - | H78: 2840 | I78: 2870.00 | J78: Profit of Rs.358.10/- | K78: 358.10 | L78: 14.43% | M78: Successful | N78: 2015-01-13
A79: 12 | B79: 2014-10-16 | D79: Sintex Inds | E79: Buy | F79: 84.50 | G79: - | H79: 93 | I79: 110.00 | J79: Profit of Rs.8.50/- | K79: 8.50 | L79: 10.06% | M79: Successful | N79: 2014-10-27
A80: 13 | B80: 2014-10-16 | D80: HSIL | E80: Buy | F80: 401.00 | G80: - | H80: 428 | I80: 450.00 | J80: Profit of Rs.27.00/- | K80: 27.00 | L80: 6.73% | M80: Successful | N80: 2015-01-16
A81: 14 | B81: 2014-10-16 | D81: Eveready Inds | E81: Buy | F81: 101.00 | G81: - | H81: 112 | I81: 120.00 | J81: Profit of Rs.11.00/- | K81: 11.00 | L81: 10.89% | M81: Successful | N81: 2014-10-27
A82: 15 | B82: 2014-11-11 | D82: Pennar Inds | E82: Buy | F82: 59.00 | G82: - | H82: 76 | I82: 76.00 | J82: Target Achieved | K82: 17.00 | L82: 28.81% | M82: Successful | N82: 2017-10-24
A83: 16 | B83: 2014-11-11 | D83: Snowman Logistics | E83: Buy | F83: 99.00 | G83: - | H83: 120 | I83: 120.00 | J83: Profit of Rs.21/- | K83: 21.00 | L83: 21.21% | M83: Successful | N83: 2014-11-17
A84: 17 | B84: 2014-11-13 | D84: Dharamsi Morarji Chem | E84: Buy | F84: 22.00 | G84: - | H84: 33.55 | I84: 32.00 | J84: Profit of Rs 11.55/- | K84: 11.55 | L84: 52.50% | M84: Successful | N84: 2015-07-03
A85: 18 | B85: 2014-12-03 | D85: Tatachem | E85: Buy | F85: 440.00 | G85: - | H85: 520 | I85: 520.00 | J85: Profit of Rs 80.00/- | K85: 80.00 | L85: 18.18% | M85: Successful | N85: 2015-07-23
A86: 19 | B86: 2014-12-03 | D86: Advanta | E86: Buy | F86: 360.00 | G86: - | H86: 427 | I86: 425.00 | J86: Profit of Rs.67.00/- | K86: 67.00 | L86: 18.61% | M86: Successful | N86: 2015-02-23
A87: 20 | B87: 2015-01-08 | D87: GDL | E87: Buy | F87: 360.00 | G87: - | H87: 455 | I87: 420.00 | J87: Profit of Rs.95.00/- | K87: 95.00 | L87: 26.39% | M87: Successful | N87: 2015-01-20
A88: 21 | B88: 2015-01-08 | D88: NRB Bearing | E88: Buy | F88: 130.00 | H88: 175.5 | I88: 165.00 | J88: Profit of Rs 45.50/- | K88: 45.50 | L88: 35.00% | M88: Successful | N88: 2017-12-19
A89: 22 | B89: 2015-02-05 | D89: GSFC | E89: Accu | F89: 98.00 | H89: 120 | I89: 120.00 | J89: Target Achieved | K89: 22.00 | L89: 22.45% | M89: Successful | N89: 2017-01-18
A90: 23 | B90: 2015-02-05 | D90: Sundrmfast | E90: Accu | F90: 196.00 | H90: 262 | I90: 255.00 | J90: Target Achieved | K90: 66.00 | L90: 33.67% | M90: Successful | N90: 2016-08-17
A91: 24 | B91: 2015-03-04 | D91: GPPL | E91: Accu | F91: 235 | H91: 77.00 | I91: 280-285 | J91: Loss of Rs.158/- | K91: -158.00 | L91: -67.23% | M91: Unsuccessful | N91: 2019-02-26
A92: 25 | B92: 2015-03-04 | D92: ORIENTCEM | E92: Accu | F92: 185.00 | H92: 224 | I92: 220-225 | J92: Target Achieved | K92: 39.00 | L92: 21.08% | M92: Successful | N92: 2016-10-04
A93: 26 | B93: 2015-03-27 | D93: PFS | E93: Accu | F93: 49.5 | H93: 15.85 | I93: 67.00 | J93: Loss of Rs.33.65/- | K93: -33.65 | L93: -68% | M93: Unsuccessful | N93: 2019-06-11
A94: 27 | B94: 2015-03-30 | D94: Walchandnagar Ind Ltd | E94: Accu | F94: 183.50 | H94: 219 | I94: 218.00 | J94: Profit of Rs.35.50/- | K94: 35.50 | L94: 19.35% | M94: Successful | N94: 2015-04-09
A95: 28 | B95: 2015-04-20 | D95: Kalpataru Power Transmission Ltd | E95: Accu | F95: =(227+237)/2 -> 232.00 | H95: 298 | I95: 298.00 | J95: Target Achieved | K95: 66.00 | L95: 28.45% | M95: Successful | N95: 2017-03-29
A96: 29 | B96: 2015-05-04 | D96: Mastek Ltd | E96: Buy | F96: 385.00 | H96: =212.5+331 -> 543.5 | I96: 510.00 | J96: Profit of Rs 158.50/- | K96: 158.50 | L96: 41.17% | M96: Successful | N96: 2015-08-19
A97: 30 | B97: 2015-05-04 | D97: Suprajit Eng | E97: Buy | F97: 115.50 | H97: 146 | I97: 142.00 | J97: Profit of Rs 30.50/- | K97: 30.50 | L97: 26.41% | M97: Successful | N97: 2015-07-17
A98: 31 | B98: 2015-05-27 | D98: TCI | E98: Buy | F98: 237.50 | H98: 279.5 | I98: 278.00 | J98: Target Achieved | K98: 42.00 | L98: 17.68% | M98: Successful | N98: 2015-08-06
A99: 32 | B99: 2015-06-19 | D99: HSIL | E99: Accu | F99: 340.00 | H99: 448 | I99: 448.00 | J99: Target Achieved | K99: 108.00 | L99: 31.76% | M99: Successful | N99: 2017-10-10
A100: 33 | B100: 2015-07-06 | D100: Capital First | E100: Accu | F100: 390.00 | H100: 460 | I100: 460.00 | J100: Target Achieved | K100: 70.00 | L100: 17.95% | M100: Successful | N100: 2016-04-18
A101: 34 | B101: 2015-07-10 | D101: Dolphin OffShore | E101: Accu | F101: 122.5 | H101: 61.00 | I101: 172.00 | J101: Loss of Rs.61.50/- | K101: -61.50 | L101: -50.20% | M101: Unsuccessful | N101: 2018-08-21
A102: 35 | B102: 2015-08-03 | D102: Allcargo logistics | E102: Accu | F102: 297.50 | H102: 350 | I102: 360.00 | J102: Profit of Rs 52.50/- | K102: 52.50 | L102: 17.65% | M102: Successful | N102: 2015-08-16
A103: 36 | B103: 2015-08-03 | D103: Camline Fine | E103: Accu | F103: 115.50 | H103: 149 | I103: 140.00 | J103: Profit of Rs 33.50/- | K103: 33.50 | L103: 29.00% | M103: Successful | N103: 2017-01-05
A104: 37 | B104: 2015-09-04 | D104: TCI | E104: Accu | F104: 226.00 | H104: 292 | I104: 292.00 | J104: Target Achieved | K104: 66.00 | L104: 29.20% | M104: Successful | N104: 2015-10-09
A105: 38 | B105: 2015-09-07 | D105: Kalpataru Power Transmission Ltd | E105: Accu | F105: 232.50 | H105: 312.5 | I105: 310.00 | J105: Target Achieved | K105: 80.00 | L105: 34.41% | M105: Successful | N105: 2017-03-29
A106: 39 | B106: 2015-09-21 | D106: LLOYD ELECTRIC & ENG LTD | E106: Accu | F106: 196.50 | H106: 238 | I106: 238.00 | J106: Target Achieved | K106: 41.50 | L106: 21.12% | M106: Successful | N106: 2015-10-14
A107: 40 | B107: 2015-09-24 | D107: L&T Finance Holding | E107: Accu | F107: 65.00 | H107: 82 | I107: 82.00 | J107: Target Achieved | K107: 17.00 | L107: 26.15% | M107: Successful | N107: 2016-07-27
A108: 41 | B108: 2015-10-14 | D108: KEC International ltd | E108: Accu | F108: 144.00 | H108: 182.5 | I108: 181.00 | J108: Target Achieved | K108: 38.50 | L108: 26.74% | M108: Successful | N108: 2017-03-23
A109: 42 | B109: 2015-10-14 | D109: Gruh Finance | E109: Accu | F109: 264.00 | H109: 311 | I109: 311.00 | J109: Target Achieved | K109: 47.00 | L109: 17.80% | M109: Successful | N109: 2016-08-22
A110: 43 | B110: 2015-11-10 | D110: Pidilitind | E110: Buy | F110: 549.50 | H110: 630 | I110: 630.00 | J110: Target Achieved | K110: 80.50 | L110: 14.65% | M110: Successful | N110: 2016-02-19
A111: 44 | B111: 2015-12-04 | D111: Zensar Technology | E111: Accu | F111: 1027.50 | H111: 1315 | I111: 1250.00 | J111: Target Achieved | K111: 287.50 | L111: 27.98% | M111: Successful | N111: 2018-05-24
A112: 45 | B112: 2015-12-29 | D112: Vinati Organics Ltd | E112: Accu | F112: 465.00 | H112: 540 | I112: 540.00 | J112: Target Achieved | K112: 75.00 | L112: 16.13% | M112: Successful | N112: 2016-06-09
A113: 46 | B113: 2016-01-11 | D113: GSFC | E113: Buy | F113: 81.00 | H113: 110 | I113: 110.00 | J113: Target Achieved | K113: 29.00 | L113: 35.80% | M113: Successful | N113: 2017-01-10
A114: 47 | B114: 2016-01-13 | D114: SSWL | E114: Buy | F114: 417.50 | H114: 547 | I114: 535.00 | J114: Target Achieved | K114: 129.50 | L114: 31.02% | M114: Successful | N114: 2016-07-27
A115: 48 | B115: 2016-02-08 | D115: Persistent System Ltd | E115: Accu | F115: 650.00 | H115: 800 | I115: 800.00 | J115: Target Achieved | K115: 150.00 | L115: 23.08% | M115: Successful | N115: 2018-02-23
A116: 49 | B116: 2016-03-04 | D116: UPL | E116: Accu | F116: 437.50 | H116: 504.5 | I116: 522.00 | J116: Profit of Rs.67/- | K116: 67.00 | L116: 15.31% | M116: Successful | N116: 2016-04-20
A117: 50 | B117: 2016-03-09 | D117: Ashoka Buildcon Ltd | E117: Accu | F117: 189.50 | H117: 218 | I117: 218.00 | J117: Target Achieved | K117: 28.50 | L117: 15.04% | M117: Successful | N117: 2017-10-26
A118: 51 | B118: 2016-04-11 | D118: PTC INDIA FIN SERV LTD | E118: Accu | F118: 36.5 | H118: 15.85 | I118: 60.00 | J118: Loss of Rs.20.65/- | K118: -20.65 | L118: -56.58% | M118: Unsuccessful | N118: 2019-06-11
A119: 52 | B119: 2016-04-12 | D119: CAMLINFINE $ | E119: Accu | F119: 93.00 | H119: 149 | I119: 140.00 | J119: Profit of Rs 56/- | K119: 56.00 | L119: 60.22% | M119: Successful | N119: 2017-01-05
A120: 53 | B120: 2016-04-12 | D120: Greaves Cotton Ltd. | E120: Accu | F120: 130.00 | H120: 150 | I120: 150-155 | J120: Target Achieved | K120: 20.00 | L120: 15.38% | M120: Successful | N120: 2016-07-13
A121: 54 | B121: 2016-04-13 | D121: DHFL | E121: Accu | F121: 196.00 | H121: 299 | I121: 299.00 | J121: Target Achieved | K121: 103.00 | L121: 52.55% | M121: Successful | N121: 2016-09-07
A122: 55 | B122: 2016-04-13 | D122: Magma | E122: Accu | F122: 88.00 | H122: 103 | I122: 103.00 | J122: Target Achieved | K122: 15.00 | L122: 17.05% | M122: Successful | N122: 2016-06-09
A123: 56 | B123: 2016-05-02 | D123: KEC International ltd $ | E123: Accu | F123: 127.50 | H123: 148 | I123: 148-150 | J123: Target Achieved | K123: =H123-F123 -> 20.50 | L123: =K123/F123 -> 16.08% | M123: Successful | N123: 2016-07-13
A124: 57 | B124: 2016-05-03 | D124: Mindtree | E124: Accu | F124: 675.00 | H124: 815 | I124: 790-800 | J124: Target Achieved | K124: 140.00 | L124: 20.74% | M124: Successful | N124: 2018-02-23
A125: 58 | B125: 2016-06-01 | D125: Atulauto | E125: Accu | F125: 500 | H125: 232.50 | I125: 565-570 | J125: Loss of Rs.267.50 /- | K125: -267.50 | L125: -53.50% | M125: Unsuccessful | N125: 2019-09-27
A126: 59 | B126: 2016-06-06 | D126: TRITURBINE | E126: Accu | F126: 110.00 | H126: 126.5 | I126: 125.00 | J126: Profit of Rs.16.50/- | K126: 16.50 | L126: 15.00% | M126: Successful | N126: 2016-07-01
A127: 60 | B127: 2016-06-17 | D127: Pennar Industries Ltd | E127: Accu | F127: 44.00 | H127: 69.5 | I127: 69.50 | J127: Profit of Rs.25.50/- | K127: 25.50 | L127: 57.95% | M127: Successful | N127: 2017-08-30
A128: 61 | B128: 2016-06-28 | D128: EVEREADY | E128: Accu | F128: 262.50 | H128: 340 | I128: 333.00 | J128: Profit of Rs.77.50/- | K128: 77.50 | L128: 29.52% | M128: Successful | N128: 2017-10-09
A129: 62 | B129: 2016-06-28 | D129: FIEMIND | E129: Accu | F129: 840.00 | H129: 1230 | I129: 1230.00 | J129: Target Achieved | K129: 390.00 | L129: 46.43% | M129: Successful | N129: 2016-10-06
A130: 63 | B130: 2016-07-05 | D130: Bajaj Corp Ltd | E130: Accu | F130: 395 | H130: =(468.5+342.5)/2 -> 405.50 | I130: 510.00 | J130: Profit of Rs.10.50/- | K130: =H130-F130 -> 10.50 | L130: =K130/F130 -> 3% | M130: Neutral | N130: 2019-05-21
A131: 64 | B131: 2016-08-02 | D131: GPPL $ | E131: Buy | F131: =169.5-12.8 -> 156.7 | H131: 77.00 | I131: 198-200 | J131: Loss of Rs.79.7/- | K131: -79.70 | L131: -50.86% | M131: Unsuccessful | N131: 2019-02-26
A132: 65 | B132: 2016-08-04 | D132: WONDERLA HOLIDAYS LTD | E132: Accu | F132: 400 | H132: 305.00 | I132: 475.00 | J132: Loss of Rs.95/- | K132: -95.00 | L132: -23.75% | M132: Unsuccessful | N132: 2019-05-21
A133: 66 | B133: 2016-08-11 | D133: CAMLINFINE | E133: Accu | F133: 86.50 | H133: 130 | I133: 130.00 | J133: Profit of Rs.43.50/- | K133: 43.50 | L133: 50.29% | M133: Successful | N133: 2017-12-22
A134: 67 | B134: 2016-08-18 | D134: GRANULES | E134: Accu | F134: 133.5 | H134: 126.50 | I134: 178.00 | J134: Exit | K134: -7.00 | L134: -5.24% | M134: Unsuccessful | N134: 2016-09-02
A135: 68 | B135: 2016-08-31 | D135: VA TECH WABAG | E135: Accu | F135: 560.00 | H135: 725 | I135: 725.00 | J135: Target Achieved | K135: 165.00 | L135: 29.46% | M135: Successful | N135: 2016-03-27
A136: 69 | B136: 2016-09-01 | D136: SKIPPER LIMITED | E136: Accu | F136: 160.50 | H136: 210 | I136: 210.00 | J136: Target Achieved | K136: 49.50 | L136: 30.84% | M136: Successful | N136: 2017-05-16
A137: 70 | B137: 2016-10-03 | D137: IFBIND | E137: Accu | F137: 430.00 | H137: 596 | I137: 575.00 | J137: Profit of Rs.166/- | K137: 166.00 | L137: 38.60% | M137: Successful | N137: 2017-02-03
A138: 71 | B138: 2016-10-14 | D138: ASIANTILES | E138: Accu | F138: 280.00 | H138: 345 | I138: 345.00 | J138: Target Achieved | K138: =H138-F138 -> 65.00 | L138: =K138/F138 -> 23.21% | M138: Successful | N138: 2017-03-20
A139: 72 | B139: 2016-10-14 | D139: DEEPIND | E139: Accu | F139: 245.00 | H139: 325.5 | I139: 330.00 | J139: Profit of Rs.80.5/- | K139: 80.50 | L139: 32.86% | M139: Successful | N139: 2017-02-03
A140: 73 | B140: 2016-10-17 | D140: DCBBANK | E140: Accu | F140: 125.00 | H140: 160 | I140: 160.00 | J140: Target Achieved | K140: 35.00 | L140: 28.00% | M140: Successful | N140: 2017-03-09
A141: 74 | B141: 2016-10-17 | D141: ORIENTREF | E141: Accu | F141: 114.00 | H141: 145 | I141: 145.00 | J141: Target Achieved | K141: 31.00 | L141: =K141/F141 -> 27.19% | M141: Successful | N141: 2017-05-04
A142: 75 | B142: 2016-10-17 | D142: GANECOS | E142: Accu | F142: 212.00 | H142: 280 | I142: 276.00 | J142: Profit of Rs.68/- | K142: 68.00 | L142: 32.08% | M142: Successful | N142: 2017-05-03
A143: 76 | B143: 2016-11-04 | D143: NBCC | E143: Accu | F143: 155.00 | H143: 210 | I143: 210.00 | J143: Profit of Rs.55/- | K143: 55.00 | L143: 35.48% | M143: Successful | N143: 2017-07-28
A144: 77 | B144: 2016-12-06 | D144: PRECAM | E144: Accu | F144: 150.5 | H144: 72.50 | I144: 174.00 | J144: Loss of Rs.78/- | K144: -78.00 | L144: -51.83% | M144: Unsuccessful | N144: 2018-08-21
A145: 78 | B145: 2016-12-08 | D145: INFRATEL | E145: Accu | F145: 380.00 | H145: 478 | I145: 468.00 | J145: Target Achieved | K145: =H145-F145 -> 98.00 | L145: =K145/F145 -> 25.79% | M145: Successful | N145: 2017-10-17
A146: 79 | B146: 2016-12-30 | D146: GODREJPROP | E146: Accu | F146: 305.00 | H146: 375 | I146: 375.00 | J146: Target Achieved | K146: 70.00 | L146: 22.95% | M146: Successful | N146: 2017-02-02
A147: 80 | B147: 2017-01-04 | D147: DEEPAKNTR | E147: Accu | F147: 99.50 | H147: 158 | I147: 158.00 | J147: Target Achieved | K147: 58.50 | L147: 58.79% | M147: Successful | N147: 2017-06-12
A148: 81 | B148: 2017-01-04 | D148: DEEPAKNTR | E148: Accu | F148: 99.50 | H148: 158 | I148: 158.00 | J148: Target Achieved | K148: 58.50 | L148: 58.79% | M148: Successful | N148: 2017-06-12
A149: 82 | B149: 2017-02-20 | D149: RECLTD | E149: Accu | F149: 140.50 | H149: 220 | I149: 220.00 | J149: Target Achieved | K149: =H149-F149 -> 79.50 | L149: =K149/F149 -> 56.58% | M149: Successful | N149: 2017-05-09
A150: 83 | B150: 2017-02-20 | D150: SUBROS | E150: Accu | F150: 202.50 | H150: 234 | I150: 234.00 | J150: Target Achieved | K150: 31.50 | L150: 15.56% | M150: Successful | N150: 2017-04-11
A151: 84 | B151: 2017-03-24 | D151: VRLLOG | E151: Accu | F151: 300.50 | H151: 417.5 | I151: 420.00 | J151: Profit of Rs.117/- | K151: =H151-F151 -> 117.00 | L151: =K151/F151 -> 38.94% | M151: Successful | N151: 2017-12-01
A152: 85 | B152: 2017-03-24 | D152: FIEMIND | E152: Accu | F152: 850.00 | H152: 1042.5 | I152: 1023.00 | J152: Profit of Rs 192.50/- | K152: 192.50 | L152: 22.65% | M152: Successful | N152: 2017-04-05
A153: 86 | B153: 2017-04-05 | D153: RATNAMANI | E153: Accu | F153: 785.00 | H153: 930 | I153: 920.00 | J153: Profit of Rs.145/- | K153: =H153-F153 -> 145.00 | L153: =K153/F153 -> 18.47% | M153: Successful | N153: 2017-08-29
A154: 87 | B154: 2017-04-06 | D154: ZEEMEDIA | E154: Accu | F154: 40 | H154: 13.10 | I154: 60.00 | J154: Loss of Rs.26.9/- | K154: -26.90 | L154: -67.25% | M154: Unsuccessful | N154: 2018-02-07
A155: 88 | B155: 2017-04-12 | D155: DABUR | E155: Accu | F155: 289.50 | H155: 354 | I155: 360.00 | J155: Profit of Rs.64.5/- | K155: =H155-F155 -> 64.50 | L155: =K155/F155 -> 22.28% | M155: Successful | N155: 2017-11-01
A156: 89 | B156: 2017-04-20 | D156: KPRMILL | E156: Accu | F156: 700.00 | H156: 840 | I156: 840.00 | J156: Profit of Rs.140/- | K156: 140.00 | L156: 20.00% | M156: Successful | N156: 2017-06-07
A157: 90 | B157: 2017-06-01 | D157: ESSELPACK | E157: Accu | F157: 130.00 | H157: 144.25 | I157: 170.00 | J157: Profit of Rs.14.25/- | K157: 14.25 | L157: 10.96% | M157: Successful | N157: 2019-07-29
A158: 91 | B158: 2017-06-15 | D158: KEI | E158: Accu | F158: 214.50 | H158: 262 | I158: 262.00 | J158: Profit of Rs.47.5/- | K158: 47.50 | L158: 22.14% | M158: Successful | N158: 2017-08-30
A159: 92 | B159: 2017-07-17 | D159: MAYURUNIQ | E159: Accu | F159: 370.00 | H159: 447.5 | I159: 450.00 | J159: Target Achieved | K159: 77.50 | L159: 20.95% | M159: Successful | N159: 2017-10-27
A160: 93 | B160: 2017-07-27 | D160: RAMCOCEM | E160: Accu | F160: 657.50 | H160: 825 | I160: 820.00 | J160: Target Achieved | K160: 167.50 | L160: 25.48% | M160: Successful | N160: 2017-12-21
A161: 94 | B161: 2017-08-17 | D161: FINPIPE | E161: Accu | F161: 605.00 | H161: 750 | I161: 750.00 | J161: Profit of Rs.145/- | K161: 145.00 | L161: 23.97% | M161: Successful | N161: 2017-10-19
A162: 95 | B162: 2017-09-01 | D162: SHK | E162: Accu | F162: 255 | H162: 217.25 | I162: 320.00 | J162: Loss of Rs.37.75/- | K162: -37.75 | L162: -15% | M162: Unsuccessful | N162: 2019-07-15
A163: 96 | B163: 2017-09-19 | D163: SKIPPER | E163: Accu | F163: 215.00 | H163: 258 | I163: 258.00 | J163: Target Achieved | K163: 43.00 | L163: 20.00% | M163: Successful | N163: 2017-11-01
A164: 97 | B164: 2017-09-19 | D164: SKIPPER | E164: Accu | F164: 215.00 | H164: 258 | I164: 258.00 | J164: Target Achieved | K164: 43.00 | L164: 20.00% | M164: Successful | N164: 2017-11-01
A165: 98 | B165: 2017-09-20 | D165: CAMLINFINE$ | E165: Accu | F165: 75.00 | H165: 90 | I165: 90.00 | J165: Profit of Rs.15.00/- | K165: =H165-F165 -> 15.00 | L165: =K165/F165 -> 20.00% | M165: Successful | N165: 2017-10-11
A166: 99 | B166: 2017-10-03 | D166: GNA | E166: Accu | F166: 315.00 | H166: 392 | I166: 384.00 | J166: Profit of Rs.77/- | K166: 77.00 | L166: 24.44% | M166: Successful | N166: 2017-10-09
A167: 100 | B167: 2017-10-05 | D167: NOCIL | E167: Accu | F167: 145.00 | H167: 179 | I167: 180.00 | J167: Profit of Rs.34/- | K167: 34.00 | L167: 23.45% | M167: Successful | N167: 2017-10-17
A168: 101 | B168: 2017-10-06 | D168: CENTURYPLY | E168: Accu | F168: 256.00 | H168: 323 | I168: 320.00 | J168: Target Achieved | K168: 67.00 | L168: 26.17% | M168: Successful | N168: 2017-11-28
A169: 102 | B169: 2017-10-09 | D169: EIHOTEL | E169: Accu | F169: 137.50 | H169: 184 | I169: 183.00 | J169: Profit of Rs.46.5/- | K169: 46.50 | L169: 33.82% | M169: Successful | N169: 2018-01-08
A170: 103 | B170: 2017-10-10 | D170: NRBBEARING | E170: Accu | F170: 125.50 | H170: 158 | I170: 155.00 | J170: Profit of Rs.32.5/- | K170: 32.50 | L170: 25.90% | M170: Successful | N170: 2017-11-28
A171: 104 | B171: 2017-10-10 | D171: BOROSIL | E171: Accu | F171: 895.00 | H171: 1122.5 | I171: 1078.00 | J171: Profit of Rs.227.5/- | K171: 227.50 | L171: 25.42% | M171: Successful | N171: 2018-01-17
A172: 105 | B172: 2017-10-12 | D172: CYIENT | E172: Accu | F172: 525.00 | H172: 629 | I172: 629.00 | J172: Target Achieved | K172: 104.00 | L172: 19.81% | M172: Successful | N172: 2018-01-19
A173: 106 | B173: 2017-11-07 | D173: HATSUN | E173: Accu | F173: 740.00 | H173: 892.5 | I173: 900.00 | J173: Profit of Rs.152.5/- | K173: =H173-F173 -> 152.50 | L173: =K173/F173 -> 20.61% | M173: Successful | N173: 2017-11-13
A174: 107 | B174: 2017-12-04 | D174: SANGHIIND | E174: Accu | F174: 118.50 | H174: 143.5 | I174: 145.00 | J174: Profit of Rs.25/- | K174: 25.00 | L174: 21.10% | M174: Successful | N174: 2017-12-28
A175: 108 | B175: 2017-12-21 | D175: KAJARIACER | E175: Accu | F175: 715 | H175: 500.00 | I175: 872.00 | J175: Loss of Rs.215/- | K175: -215.00 | L175: -30.07% | M175: Unsuccessful | N175: 2019-07-24
A176: 109 | B176: 2017-12-29 | D176: GNA | E176: Accu | F176: 435.00 | H176: 542.5 | I176: 539.00 | J176: Target Achieved | K176: 107.50 | L176: 24.71% | M176: Successful | N176: 2018-04-16
A177: 110 | B177: 2017-12-29 | D177: ZENSARTECH | E177: Accu | F177: 885.00 | H177: 1090 | I177: 1084.00 | J177: Target Achieved | K177: 205.00 | L177: 23.16% | M177: Successful | N177: 2018-04-23
A178: 111 | B178: 2018-04-02 | D178: EVERESTIND | E178: Accu | F178: 478.50 | H178: 442 | I178: 613.00 | J178: Loss of Rs.36.50 /- | K178: =H178-F178 -> -36.50 | L178: =K178/F178 -> -7.63% | M178: Unsuccessful | N178: 2019-10-24
A179: 112 | B179: 2018-04-04 | D179: GPPL$ | E179: Accu | F179: =141.5-7.3 -> 134.2 | H179: 77.00 | I179: 180.00 | J179: Loss of Rs.57.2/- | K179: -57.20 | L179: -42.62% | M179: Unsuccessful | N179: 2019-02-26
A180: 113 | B180: 2018-04-19 | D180: MANPASAND | E180: Accu | F180: 430 | H180: 220.00 | I180: 537.00 | J180: Loss of Rs.210/- | K180: -210.00 | L180: -48.84% | M180: Unsuccessful | N180: 2018-06-01
A181: 114 | B181: 2018-04-30 | D181: HEIDELBERG | E181: Accu | F181: 153.5 | H181: 196 | I181: 196.00 | J181: Profit of Rs.42.50/- | K181: 42.50 | L181: 27.69% | M181: Successful | N181: 2019-05-20
A182: 115 | B182: 2018-07-25 | D182: ZEEMEDIA | E182: Accu | F182: 27.5 | H182: 13.10 | I182: 60.00 | J182: Loss of Rs.14.40/- | K182: -14.40 | L182: -52.36% | M182: Unsuccessful | N182: 2018-02-07
A183: 116 | B183: 2018-08-06 | D183: GABRIEL | E183: Accu | F183: 148.5 | H183: 102 | I183: 182.00 | J183: Loss of Rs.46.50/- | K183: =H183-F183 -> -46.50 | L183: =K183/F183 -> -31.31% | M183: Unsuccessful | N183: 2019-07-15
A184: 117 | B184: 2018-08-23 | D184: INDIANHUME | E184: Accu | F184: 285 | H184: 355 | I184: 364.00 | J184: Profit of Rs.70/- | K184: 70.00 | L184: 24.56% | M184: Successful | N184: 2018-12-21
A185: 118 | B185: 2018-08-29 | D185: GRINDWELL | E185: Accu | F185: 525 | H185: 585 | I185: 635.00 | J185: Profit of Rs.60- | K185: =H185-F185 -> 60.00 | L185: =K185/F185 -> 11.43% | M185: Successful | N185: 2019-07-16
A186: 119 | B186: 2018-10-22 | D186: FINPIPE | E186: Accu | F186: 475 | H186: 574 | I186: 570.00 | J186: Target Achieved | K186: 99.00 | L186: 20.84% | M186: Successful | N186: 2018-10-30
A187: 120 | B187: 2018-10-24 | D187: GULFOILLUB | E187: Accu | F187: 707.5 | H187: 872 | I187: 872.00 | J187: Target Achieved | K187: 164.50 | L187: 23.25% | M187: Successful | N187: 2019-01-17
A188: 121 | B188: 2018-10-25 | D188: DBCORP | E188: Accu | F188: 162 | H188: 204 | I188: 209.00 | J188: Profit of Rs.42/- | K188: 42.00 | L188: 25.93% | M188: Successful | N188: 2019-03-15
A189: 122 | B189: 2018-10-26 | D189: RITES | E189: Accu | F189: 240 | H189: 297 | I189: 297.00 | J189: Target Achieved | K189: 57.00 | L189: 23.75% | M189: Successful | N189: 2018-11-13
A190: 123 | B190: 2018-12-05 | D190: BRIGADE | E190: Accu | F190: 202.5 | H190: 255 | I190: 252.00 | J190: Target Achieved | K190: 52.50 | L190: 25.93% | M190: Successful | N190: 2019-03-18 | S190: V
A191: 124 | B191: 2018-12-31 | D191: JKCEMENT | E191: Accu | F191: 710 | H191: 866 | I191: 866.00 | J191: Target Achieved | K191: 156.00 | L191: 21.97% | M191: Successful | N191: 2019-03-29 | S191: V
A192: 125 | B192: 2019-02-26 | D192: MARICO | E192: Accu | F192: 337.25 | H192: 398.5 | I192: 411.00 | J192: Profit of Rs.61.25/- | K192: 61.25 | L192: 18.16% | M192: Successful | N192: 2019-10-22 | S192: V
A193: 126 | B193: 2019-04-04 | D193: ITDCEM | E193: Accu | F193: 130 | H193: 65 | I193: 158.00 | J193: Loss of Rs.65 /- | K193: -65.00 | L193: -50.00% | M193: Unsuccessful | N193: 2019-09-18 | S193: K
A194: 127 | B194: 2017-10-09 | D194: RECLTD | E194: Accu | F194: 141.5 | H194: 183.5 | I194: 210.00 | J194: Profit of Rs.42/- | K194: 42.00 | L194: 29.68% | M194: Successful | N194: 2017-11-03 | S194: K
A195: 128 | B195: 2017-12-05 | D195: ALLCARGO | E195: Accu | F195: 172.00 | H195: 155.25 | I195: 230.00 | J195: Loss of Rs.16.75/- | K195: -16.75 | L195: -9.74% | M195: Unsuccessful | N195: 2019-11-18 | S195: K
A196: 129 | B196: 2018-10-25 | D196: GODREJCP | E196: Accu | F196: 698.5 | H196: 890 | I196: 890.00 | J196: Profit of Rs.191.50/- | K196: 191.50 | L196: 27.42% | M196: Successful | N196: 2021-05-12 | S196: V
A197: 130 | B197: 2017-05-22 | D197: GREAVESCOT | E197: Accu | F197: 127.6 | H197: 138 | I197: 190.00 | J197: Profit of Rs.10.40 | K197: 10.40 | L197: 8.15% | M197: Successful | N197: 2019-11-05 | S197: K
A198: 131 | B198: 2018-02-27 | D198: MOLDTKPAC | E198: Accu | F198: 317 | H198: 382.5 | I198: 398.00 | J198: Profit of Rs.65.5 | K198: 65.50 | L198: 20.66% | M198: Successful | N198: 2021-02-11 | S198: K
A199: 132 | B199: 2018-03-05 | D199: LICHSGFIN | E199: Accu | F199: =510-14.4 -> 495.60 | H199: 350 | I199: 672.00 | J199: Loss of Rs.145.60/- | K199: -145.60 | L199: -29.38% | M199: Unsuccessful | N199: 2020-02-26 | S199: V
A200: 133 | B200: 2018-05-17 | D200: PHILIPCARB | E200: Accu | F200: 230.30 | H200: 102.5 | I200: 348.00 | J200: Loss of Rs.127.80/- | K200: -127.80 | L200: -55.49% | M200: Unsuccessful | N200: 2020-03-06 | S200: V
A201: 134 | B201: 2018-06-07 | D201: KEC | E201: Accu | F201: =342.5-5.1 -> 337.4 | H201: 412.5 | I201: 439.00 | J201: Profit of Rs.75.10 | K201: 75.10 | L201: 22.26% | M201: Successful | N201: 2021-02-03 | S201: K
A202: 135 | B202: 2018-07-04 | D202: ASHOKLEY | E202: Accu | F202: =127.5-5.53 -> 121.97 | H202: 122.50 | I202: 170.00 | J202: Profit of Rs.0.53/- | K202: 0.53 | L202: 0% | M202: Neutral | N202: 2021-08-23 | S202: V
A203: 136 | B203: 2018-07-13 | D203: FCONSUMER | E203: Accu | F203: 46.50 | H203: 17 | I203: 59.00 | J203: Loss of Rs.29.50/- | K203: -29.50 | L203: -63.44% | M203: Unsuccessful | N203: 2020-02-26 | S203: V
A204: 137 | B204: 2018-10-23 | D204: JKPAPER | E204: Accu | F204: 156.5 | H204: 207.5 | I204: 191.00 | J204: Target Achieved | K204: 51.00 | L204: 32.59% | M204: Successful | N204: 2021-06-22 | S204: V
A205: 138 | B205: 2018-12-05 | D205: CCL | E205: Accu | F205: 259.5 | H205: 320 | I205: 320.00 | J205: Target Achieved | K205: 60.50 | L205: 23.31% | M205: Successful | N205: 2021-05-07 | S205: V
A206: 139 | B206: 2018-12-05 | D206: VARROC | E206: Accu | F206: 715 | H206: 445 | I206: 840.00 | J206: Loss of Rs.270/- | K206: -270.00 | L206: -37.76% | M206: Unsuccessful | N206: 2019-12-01 | S206: V
A207: 140 | B207: 2019-01-04 | D207: MGL | E207: Accu | F207: 875 | H207: 1165 | I207: 1185.00 | J207: Profit of Rs.290/- | K207: 290.00 | L207: 33.14% | M207: Successful | N207: 2020-01-17 | S207: V
A208: 141 | B208: 2019-04-04 | D208: COCHINSHIP | E208: Accu | F208: =387-14.63 -> 372.37 | H208: 490 | I208: 490.00 | J208: Target Achieved | K208: 117.63 | L208: 31.59% | M208: Successful | N208: 2020-01-20 | S208: V
A209: 142 | B209: 2019-04-23 | D209: MAHINDCIE | E209: Buy | F209: 220 | H209: 127.5 | I209: 284.00 | J209: Loss of Rs.92.50/- | K209: -92.50 | L209: -42.05% | M209: Unsuccessful | N209: 2020-03-06 | S209: V
A210: 143 | B210: 2019-06-06 | D210: RADICO | E210: Buy | F210: 332.8 | H210: 405 | I210: 419.00 | J210: Profit of Rs.72.20/- | K210: 72.20 | L210: 21.69% | M210: Successful | N210: 2020-01-30 | S210: K
A211: 144 | B211: 2019-06-25 | D211: M&MFIN | E211: Accu | F211: 386 | H211: 395.00 | I211: 452.00 | J211: Profit of Rs.9/- | K211: 9.00 | L211: 2% | M211: Neutral | N211: 2020-02-07 | S211: K
A212: 145 | B212: 2019-08-30 | D212: INDHOTEL | E212: Accu | F212: 137.5 | H212: 138.50 | I212: 190.00 | J212: Profit of Rs.1/- | K212: 1.00 | L212: 1% | M212: Neutral | N212: 2021-08-24 | S212: V
A213: 146 | B213: 2019-09-23 | D213: KNRCON | E213: Accu | F213: 235 | H213: 295 | I213: 296.00 | J213: Profit of Rs.60/- | K213: 60.00 | L213: 25.53% | M213: Successful | N213: 2020-01-14 | S213: K
A214: 147 | B214: 2019-10-14 | D214: KEC$ | E214: Accu | F214: 277.5 | H214: 333 | I214: 333.00 | J214: Profit of Rs.55.50/- | K214: 55.50 | L214: 20.00% | M214: Successful | N214: 2020-01-16 | S214: V
A215: 148 | B215: 2019-10-14 | D215: MGL$ | E215: Accu | F215: 930 | H215: 1165 | I215: 1200.00 | J215: Profit of Rs.235/- | K215: 235.00 | L215: 25.27% | M215: Successful | N215: 2020-01-17 | S215: K
A216: 149 | B216: 2019-10-15 | D216: JKPAPER$ | E216: Accu | F216: 111.00 | H216: 141 | I216: 141.00 | J216: Profit of Rs.30/- | K216: 30.00 | L216: 27.03% | M216: Successful | N216: 2021-05-12 | S216: K
A217: 150 | B217: 2019-10-15 | D217: RADICO$ | E217: Accu | F217: 296.00 | H217: 370 | I217: 370.00 | J217: Target Achieved | K217: 74.00 | L217: 25.00% | M217: Successful | N217: 2020-01-23 | S217: K
A218: 151 | B218: 2019-10-16 | D218: MOLDTKPAC$ | E218: Accu | F218: 300.00 | H218: 382.5 | I218: 344.00 | J218: Profit of Rs.82.5/- | K218: 82.50 | L218: 27.50% | M218: Successful | N218: 2021-02-11 | S218: K
A219: 152 | B219: 2020-01-02 | D219: PSPPROJECT | E219: Accu | F219: 495.00 | H219: 595 | I219: 590.00 | J219: Profit of Rs.100/- | K219: 100.00 | L219: 20.20% | M219: Successful | N219: 2022-01-28 | S219: K
A220: 153 | B220: 2020-05-15 | D220: BEL | E220: Accu | F220: 67.50 | H220: 86 | I220: 86.00 | J220: Profit of Rs.18.50/- | K220: 18.50 | L220: 27.41% | M220: Successful | N220: 2020-06-26 | S220: K
A221: 154 | B221: 2020-07-23 | D221: RITES | E221: Accu | F221: 231.00 | H221: 281 | I221: 281.00 | J221: Target Achieved | K221: 50.00 | L221: 21.65% | M221: Successful | N221: 2021-06-11 | S221: K
A222: 155 | B222: 2020-09-18 | D222: IEX | E222: Accu | F222: 206 | H222: 248 | I222: 248.00 | J222: Target Achieved | K222: 42.00 | L222: 20.39% | M222: Successful | N222: 2021-01-18 | S222: K
A223: 156 | B223: 2020-11-05 | D223: IEX | E223: Accu | F223: 182.5 | H223: 248 | I223: 248.00 | J223: Target Achieved | K223: 65.50 | L223: 35.89% | M223: Successful | N223: 2021-01-18 | S223: K
A224: 157 | B224: 2020-11-05 | D224: CCL | E224: Accu | F224: 247.5 | H224: 320 | I224: 320.00 | J224: Target Achieved | K224: 72.50 | L224: 29.29% | M224: Successful | N224: 2021-05-07 | S224: K
A225: 158 | B225: 2020-11-05 | D225: POLYCAB | E225: Accu | F225: 925.00 | H225: 1095 | I225: 1093.00 | J225: Profit of Rs.170/- | K225: 170.00 | L225: 18.38% | M225: Successful | N225: 2021-01-05 | S225: K
A226: 159 | B226: 2020-11-05 | D226: COCHINSHIP | E226: Accu | F226: 332.50 | H226: 393 | I226: 406.00 | J226: Profit of Rs.60.50/- | K226: 60.50 | L226: 18.20% | M226: Successful | N226: 2021-03-01 | S226: K
A227: 160 | B227: 2020-11-06 | D227: RITES | E227: Accu | F227: 231.00 | H227: 281 | I227: 281.00 | J227: Target Achieved | K227: 50.00 | L227: 21.65% | M227: Successful | N227: 2021-06-11 | S227: K
... 41 more rows
